{"text_format":"1","workbook":"xlsx","n_sheets":4,"sheets":["Form2","Data","List","matrix"],"not_rendered":{"charts":0,"images":2,"macros":1,"external_links":0,"defined_names":209,"comments":0,"pivot_tables":0},"unopened":[],"bounds":{"document_bytes":16777216,"sheet_cells":100000,"rows_first":2000,"rows_last":500,"rows_between":2000,"halvings":0,"cell_chars":16384,"cell_head_chars":4096},"cells_cut":0,"cells_raw":0,"read":"whole","date_system":"1900"}

{"sheet":"Form2","index":0,"n_rows":212,"n_cols":75,"rows_kept":212,"cut":false,"hidden":false,"merged":[[53,1,54,22],[62,1,62,11],[63,1,65,11],[157,1,157,75],[114,1,115,14],[124,1,125,14],[134,1,134,5],[100,44,100,51],[134,50,134,57],[134,42,134,49],[130,42,131,49],[130,50,131,57],[102,44,102,51],[104,44,104,51],[106,44,106,51],[106,13,106,15],[129,1,131,5],[132,1,132,5],[133,1,133,5],[129,66,131,73],[129,11,131,22],[104,13,104,15],[104,68,104,74],[106,68,106,74],[37,69,37,75],[9,28,9,39],[10,28,10,39],[9,1,9,13],[10,1,10,13],[10,22,10,24],[37,1,37,6],[13,9,13,16],[13,1,13,8],[27,1,31,11],[17,1,19,11],[23,39,23,50],[24,39,24,50],[24,1,24,12],[23,1,23,12],[25,1,25,12],[26,1,26,24],[17,43,17,50],[18,43,18,50],[13,25,13,32],[14,42,14,54],[13,42,13,61],[37,41,37,52],[15,43,15,48],[51,1,52,28],[46,20,46,74],[25,39,25,50],[23,13,23,38],[24,13,24,38],[23,51,23,75],[26,25,26,38],[18,14,18,26],[26,39,26,50],[26,51,26,75],[42,7,42,24],[45,1,46,11],[40,61,40,68],[39,41,39,52],[37,53,37,60],[19,14,19,51],[19,54,19,74],[41,61,41,68],[42,53,42,60],[38,1,38,6],[39,69,39,75],[40,53,40,60],[39,61,39,68],[42,61,42,68],[41,7,41,24],[81,31,82,33],[82,62,82,70],[82,71,82,75],[80,1,80,11],[100,68,100,74],[13,71,13,75],[13,62,13,70],[13,17,13,24],[13,33,13,41],[24,51,25,75],[32,1,32,23],[29,58,29,74],[31,58,31,74],[25,27,25,38],[14,13,14,24],[14,55,14,63],[14,64,14,75],[15,68,16,75],[15,55,15,67],[16,55,16,67],[15,49,15,54],[16,49,16,54],[15,31,15,36],[68,35,68,75],[69,35,69,75],[55,1,55,20],[55,35,55,75],[56,1,56,20],[56,35,56,75],[58,19,59,75],[57,1,57,75],[73,1,73,75],[81,1,82,11],[81,14,82,16],[106,22,106,24],[77,1,77,11],[100,13,100,15],[102,22,102,24],[100,30,100,32],[100,22,100,24],[102,68,102,74],[81,19,82,23],[81,25,82,28],[100,3,107,7],[78,1,78,11],[140,34,140,41],[51,42,51,74],[15,37,15,42],[138,28,140,33],[138,23,140,27],[130,34,131,41],[104,22,104,24],[104,30,104,32],[135,11,137,22],[138,11,140,22],[95,1,96,13],[84,1,85,18],[102,13,102,15],[84,19,85,75],[95,14,96,75],[92,15,92,31],[92,54,92,75],[93,19,93,31],[93,47,93,75],[132,50,132,57],[111,15,111,31],[129,6,131,10],[102,30,102,32],[112,19,112,31],[140,66,140,73],[134,66,134,73],[135,66,135,73],[136,66,136,73],[135,50,135,57],[136,50,136,57],[137,50,137,57],[135,42,135,49],[137,66,137,73],[135,58,135,65],[139,50,139,57],[140,58,140,65],[138,58,138,65],[139,58,139,65],[136,42,136,49],[138,42,138,49],[138,66,138,73],[139,66,139,73],[140,42,140,49],[137,42,137,49],[144,10,144,41],[132,6,134,10],[140,50,140,57],[135,34,135,41],[136,58,136,65],[135,28,137,33],[135,23,137,27],[138,50,138,57],[135,6,137,10],[132,34,132,41],[132,42,132,49],[144,1,145,9],[138,6,140,10],[132,11,134,22],[136,34,136,41],[140,1,140,5],[135,1,135,5],[136,1,136,5],[137,1,137,5],[138,1,138,5],[139,1,139,5],[138,34,138,41],[139,34,139,41],[141,1,141,73],[148,65,148,70],[145,10,145,15],[145,16,145,24],[145,25,145,33],[145,34,145,41],[145,54,145,59],[153,26,154,59],[155,26,155,59],[153,6,154,25],[155,6,155,25],[148,34,148,41],[147,34,147,41],[145,60,145,64],[145,65,145,70],[149,16,149,24],[149,65,149,70],[147,60,147,64],[148,60,148,64],[149,60,149,64],[146,65,146,70],[150,1,150,75],[145,71,145,75],[0,1,0,75],[2,1,2,75],[1,1,1,75],[9,40,9,50],[10,40,10,50],[8,51,8,63],[9,51,9,69],[10,51,10,65],[8,1,8,17],[8,18,8,50],[7,35,7,48],[7,49,7,57],[7,58,7,63],[7,64,7,75],[8,64,8,75],[9,70,9,75],[7,1,7,12],[10,66,10,75],[9,14,9,21],[10,14,10,21],[7,13,7,34],[9,22,9,24],[9,25,9,27],[10,25,10,27],[211,0,211,76],[153,70,154,75],[172,1,173,10],[172,12,173,21],[153,60,154,69],[146,1,146,9],[147,1,147,9],[148,1,148,9],[149,1,149,9],[146,10,146,15],[147,10,147,15],[148,10,148,15],[149,10,149,15],[146,16,146,24],[147,16,147,24],[148,16,148,24],[209,21,209,35],[174,12,181,21],[146,54,146,59],[146,60,146,64],[194,1,194,55],[174,1,181,10],[146,34,146,41],[202,18,202,33],[132,66,132,73],[111,54,111,75],[132,58,132,65],[114,15,115,75],[129,28,131,33],[132,28,134,33],[132,23,134,27],[196,1,196,75],[205,18,205,34],[203,1,203,7],[146,71,146,75],[147,71,147,75],[148,71,148,75],[149,71,149,75],[147,54,147,59],[149,54,149,59],[147,65,147,70],[147,25,147,33],[149,25,149,33],[200,1,200,75],[172,23,175,37],[176,23,178,37],[197,1,197,75],[199,1,199,75],[177,68,177,74],[187,39,187,75],[146,44,146,53],[147,44,147,53],[174,56,174,74],[187,1,187,8],[187,9,187,15],[186,1,186,15],[187,16,187,38],[186,16,186,38],[180,39,180,74],[148,25,148,33],[149,44,149,53],[148,54,148,59],[146,25,146,33],[155,70,155,75],[186,39,186,75],[160,1,169,75],[153,1,154,5],[149,34,149,41],[174,45,174,55],[155,1,155,5],[155,60,155,69],[148,44,148,53],[16,43,16,48],[25,13,25,14],[25,25,25,26],[32,24,32,52],[14,25,14,41],[16,37,16,42],[15,1,15,24],[16,1,16,24],[15,25,15,30],[16,25,16,30],[25,15,25,24],[14,1,14,12],[16,31,16,36],[137,34,137,41],[137,58,137,65],[139,42,139,49],[39,53,39,60],[49,62,49,74],[47,51,47,74],[106,30,106,32],[133,34,133,41],[133,42,133,49],[134,58,134,65],[134,34,134,41],[133,50,133,57],[133,58,133,65],[133,66,133,73],[113,1,113,75],[123,1,123,75],[112,47,112,75],[129,58,131,65],[129,34,129,57],[121,15,121,31],[121,54,121,75],[122,47,122,75],[39,7,39,24],[40,41,40,52],[38,7,38,24],[39,25,39,40],[40,7,40,24],[38,53,38,60],[42,25,42,40],[129,23,131,27],[68,1,68,20],[122,19,122,31],[124,15,125,75],[83,1,83,75],[82,47,82,61],[94,1,94,75],[47,1,48,11],[49,1,50,11],[42,1,42,6],[42,41,42,52],[41,53,41,60],[41,69,41,75],[44,1,44,75],[42,69,42,75],[41,1,41,6],[38,41,38,52],[66,1,67,11],[41,41,41,52],[37,61,37,68],[38,69,38,75],[38,25,38,40],[38,61,38,68],[37,7,37,40],[144,44,145,53],[144,54,144,75],[79,1,79,11],[70,1,72,11],[74,1,75,18],[58,1,59,18],[39,1,39,6],[40,1,40,6],[66,59,66,75],[64,51,64,74],[74,19,75,75],[63,41,63,42],[78,39,78,47],[69,1,69,20],[77,58,77,71],[71,40,71,74],[40,69,40,75],[40,25,40,40],[41,25,41,40]]}
[]
[null,"Tree Risk Assessment Form 2  Individual Tree Risk Assessment"]
[null,"樹木風險評估表格2  個別樹木風險評估"]
[]
[]
[null,"General Information  基本資料 \n"]
[]
[null,"Dept. / Agency 部門 / 機構:",null,null,null,null,null,null,null,null,null,null,null,null,null,null,null,null,null,null,null,null,null,null,null,null,null,null,null,null,null,null,null,null,null,"Inspection Officer 巡查人員",null,null,null,null,null,null,null,null,null,null,null,null,null,null,null,null,null,null,null,null,null,null,"Post 職位"]
[null,"Project/Contract No. 工程/合約編號",null,null,null,null,null,null,null,null,null,null,null,null,null,null,null,null,null,null,null,null,null,null,null,null,null,null,null,null,null,null,null,null,null,null,null,null,null,null,null,null,null,null,null,null,null,null,null,null,null,"File Ref. 檔案編號"]
[null,"Date and Time of Inspection",null,null,null,null,null,null,null,null,null,null,null,null,null,null,null,null,null,null,null,null,null,null,null,null,null,null,"Last Inspection Date ",null,null,null,null,null,null,null,null,null,null,null,null,null,null,null,null,null,null,null,null,null,null,"Inspection Time Spent 是次巡查所用時間"]
[null,"巡查日期及時問",null,null,null,null,null,null,null,null,null,null,null,null,"(dd/mm/yyyy)",null,null,null,null,null,null,null,"(hr)",null,null,"(min)",null,null,"上次巡查日期",null,null,null,null,null,null,null,null,null,null,null,"(dd/mm/yyyy)",null,null,null,null,null,null,null,null,null,null,"Inspection Frequency 巡查週期"]
[]
[null,"Tree Information  樹木資料"]
[null,"TMCP Tree ID\nTMCP樹木編號",null,null,null,null,null,null,null,null,null,null,null,null,null,null,null,"Dept. Tree ID\n部門樹木編號",null,null,null,null,null,null,null,null,null,null,null,null,null,null,null,"Tree Species\n樹種",null,null,null,null,null,null,null,null,null,null,null,null,null,null,null,null,null,null,null,null,null,null,null,null,null,null,null,null,"Triage Colour\n分流顏色 "]
[null,"Tree Height(m)\n樹高(米) ",null,null,null,null,null,null,null,null,null,null,null,null,null,null,null,null,null,null,null,null,null,null,null,"Crown Spread(m)\n樹冠闊度(米) ",null,null,null,null,null,null,null,null,null,null,null,null,null,null,null,null,null,null,null,null,null,null,null,null,null,null,null,null,null,"No. of Trunk(s)\n樹幹數目"]
[null,"DBH of tree trunk(s)(mm) ",null,null,null,null,null,null,null,null,null,null,null,null,null,null,null,null,null,null,null,null,null,null,null,1,null,null,null,null,null,2,null,null,null,null,null,3,null,null,null,null,null,4,null,null,null,null,null,5,null,null,null,null,null,"Aggregated DBH (mm)",null,null,null,null,null,null,null,null,null,null,null,null,{"$f":"ROUND(SQRT(TreeTrunkDBH1^2+TreeTrunkDBH2^2+TreeTrunkDBH3^2+TreeTrunkDBH4^2+TreeTrunkDBH5^2),1)","v":0}]
[null,"每枝主幹胸徑(毫米)",null,null,null,null,null,null,null,null,null,null,null,null,null,null,null,null,null,null,null,null,null,null,null,null,null,null,null,null,null,null,null,null,null,null,null,null,null,null,null,null,null,null,null,null,null,null,null,null,null,null,null,null,null,"總胸徑(毫米)"]
[null,"Tree Status\n樹木類別",null,null,null,null,null,null,null,null,null,null,null,null,"Old and Valuable Tree 古樹名木",null,null,null,null,null,null,null,null,null,null,null,null,null,null,"(OVT No. 古樹名木登記冊編號: ",null,null,null,null,null,null,null,null,null,null,null,null,null,null,null,null,null,null,null,null,null,")",null,null,"Other tree 其他樹木"]
[null,null,null,null,null,null,null,null,null,null,null,null,null,null,"Stonewall Tree 石牆樹",null,null,null,null,null,null,null,null,null,null,null,null,null,null,"(Tree Register No. 樹木登記編號:",null,null,null,null,null,null,null,null,null,null,null,null,null,null,null,null,null,null,null,null,null,")",null,null,"Brown Root Rot Disease Infected 受褐根病感染"]
[null,null,null,null,null,null,null,null,null,null,null,null,null,null,"Large Tree(DBH ≥ 500mm or overall height ≥ 9m) 大樹(胸徑≥500毫米或高度≥9米)",null,null,null,null,null,null,null,null,null,null,null,null,null,null,null,null,null,null,null,null,null,null,null,null,null,null,null,null,null,null,null,null,null,null,null,null,null,null,null,"Tree in Confined Site 擠迫地點的樹木"]
[]
[]
[null,"Location Information  位置資料"]
[null,"Masterzone Ref. 主區編號",null,null,null,null,null,null,null,null,null,null,null,null,null,null,null,null,null,null,null,null,null,null,null,null,null,null,null,null,null,null,null,null,null,null,null,null,null,"Location (Chinese) 地點 (中文)"]
[null,"Subzone Ref. 副區編號 ",null,null,null,null,null,null,null,null,null,null,null,null,null,null,null,null,null,null,null,null,null,null,null,null,null,null,null,null,null,null,null,null,null,null,null,null,null,"Location (English) 地點 (英文) "]
[null,"Coordinates 座標",null,null,null,null,null,null,null,null,null,null,null,"X:",null,null,null,null,null,null,null,null,null,null,null,"Y:"]
[null,"Tree Risk Management Zone Category\n樹木風險管理地區類別",null,null,null,null,null,null,null,null,null,null,null,null,null,null,null,null,null,null,null,null,null,null,null,null,null,null,null,null,null,null,null,null,null,null,null,null,null,"District 地區"]
[null,"Location Type 地點類別",null,null,null,null,null,null,null,null,null,null,null,null,"Roadside landscaped area 路旁綠化地區",null,null,null,null,null,null,null,null,null,null,null,null,null,null,null,null,null,null,null,null,null,null,null,null,null,null,"Tree pit/Tree ring 樹穴/樹圈",null,null,null,null,null,null,null,null,null,null,null,null,null,null,null,null,null,null,"Central divider 中央分隔帶"]
[null,null,null,null,null,null,null,null,null,null,null,null,null,null,"Public park or recreation venue 公園或康樂場地",null,null,null,null,null,null,null,null,null,null,null,null,null,null,null,null,null,null,null,null,null,null,null,null,null,null,"Housing estate 屋邨",null,null,null,null,null,null,null,null,null,null,null,null,null,null,null,null,null,null,"Government compound 政府建築物"]
[null,null,null,null,null,null,null,null,null,null,null,null,null,null,"Planter box 花盆",null,null,null,null,null,null,null,null,null,null,null,null,null,null,null,null,null,null,null,null,null,null,null,null,null,null,"SIMAR slopes 系統性鑑辨維修責任的斜坡     "]
[null,null,null,null,null,null,null,null,null,null,null,null,null,null,"Recreational site/facility inside country parks 郊野公園內康樂用地或設施"]
[null,null,null,null,null,null,null,null,null,null,null,null,null,null,"Unleased or unallocated government land 未批租或未撥用政府土地",null,null,null,null,null,null,null,null,null,null,null,null,null,null,null,null,null,null,null,null,null,null,null,null,null,null,null,null,null,null,null,null,null,null,null,null,null,null,"Others 其他  "]
[null,"Nearby Utility Post No. 就近公用設施編號:"]
[]
[]
[null,"Target Assessment 目標物評估 (Please identify no more than five (5) potential Target(s) in the sequence of severity of consequence 請依後果的嚴重性次序選取不多於五個目標物)"]
[]
[null,"Target No.\n目標物編號",null,null,null,null,null,"Target Description 目標物的描述",null,null,null,null,null,null,null,null,null,null,null,null,null,null,null,null,null,null,null,null,null,null,null,null,null,null,null,null,null,null,null,null,null,"Target Zone\n目標物範圍",null,null,null,null,null,null,null,null,null,null,null,"Occupancy rate \n佔用率",null,null,null,null,null,null,null,"Remove target?\n可否移除目標物?",null,null,null,null,null,null,null,"Restrict usage?\n可否限制使用?"]
[null,1]
[null,2]
[null,3]
[null,4]
[null,5]
[]
[null,"Site Conditions 場地狀況"]
[null,"Topography 地勢",null,null,null,null,null,null,null,null,null,null,null,null,"Flat 平地",null,null,null,null,null,"Natural terrain 天然山坡",null,null,null,null,null,null,null,null,null,null,null,null,"Man-made slope 人造斜坡",null,null,null,null,null,null,null,null,null,null,null,null,null,"Retaining wall 擋土牆",null,null,null,null,null,null,null,null,null,null,null,"Stonewall 石牆"]
[null,null,null,null,null,null,null,null,null,null,null,null,null,null,"Others 其他:"]
[null,"Site changes 場地改變",null,null,null,null,null,null,null,null,null,null,null,null,"None  沒有",null,null,null,null,null,null,"Grade change 地表改變",null,null,null,null,null,null,null,null,null,null,null,"Site clearing 場地平整",null,null,null,null,null,null,null,null,null,null,null,"Others 其他"]
[]
[null,"Soil conditions 土壤情況",null,null,null,null,null,null,null,null,null,null,null,null,"Normal 正常",null,null,null,null,null,null,null,"Compacted 土壤被擠壓",null,null,null,null,null,null,null,null,null,null,null,"Water logging 積水",null,null,null,null,null,null,null,null,null,null,"Hard Paved 硬地鋪面",null,null,null,null,null,null,null,null,null,null,"Others 其他"]
[]
[null,"Soil crack or crack behind lean 土壤裂縫或裂縫於傾斜部位背後 #",null,null,null,null,null,null,null,null,null,null,null,null,null,null,null,null,null,null,null,null,null,null,null,null,null,null,null,null,null,"None  沒有",null,null,null,null,null,null,"Yes 有"]
[]
[null,"Restriction within dripline 滴水線範圍內有限制 @",null,null,null,null,null,null,null,null,null,null,null,null,null,null,null,null,null,null,null,null,null,null,null,"None  沒有",null,null,null,null,null,null,"<25%",null,null,null,null,null,"25-50%",null,null,null,null,null,"51-75%",null,null,null,null,null,">75%"]
[]
[null,"Tree failure record 樹木倒塌記錄 #",null,null,null,null,null,null,null,null,null,null,null,null,null,null,null,null,null,null,null,null,null,"None  沒有",null,null,null,null,null,null,null,"Yes 有"]
[null,"Brown Root Rot disease record 褐根病記錄 ✘",null,null,null,null,null,null,null,null,null,null,null,null,null,null,null,null,null,null,null,null,null,"None  沒有",null,null,null,null,null,null,null,"Yes 有"]
[null,"If these items are checked, further assessment by resistograph or tomograph(#), equipment for tree root detection(@) and/or BRRD/pathogen tests(✘) should be arranged when necessary.\n若選擇此項，應視乎情況考慮應用微鑽探、聲納探測(#)、樹根探測工具(@) 及/或褐根病/病源檢測(✘) 。"]
[null,"Other observations 其他觀察"]
[]
[]
[null,"General Conditions 總體概況"]
[null,"Tree vigor 茁壯程度",null,null,null,null,null,null,null,null,null,null,null,null,"Low 低",null,null,null,null,null,null,"Normal 正常",null,null,null,null,null,null,null,null,null,"High 高"]
[null,"Lean 傾斜",null,null,null,null,null,null,null,null,null,null,null,null,"No  沒有",null,null,null,null,null,null,"Yes 有",null,null,null,"Angle from vertical 傾斜角度 #(> 15°)",null,null,null,null,null,null,null,null,null,null,null,null,null,null,null,null,null,null,null,null,null,"Natural due to phototropism 趨光性",null,null,null,null,null,null,null,null,null,null,null,null,null,null,null,null,"Self-corrected 已自然修正"]
[null,null,null,null,null,null,null,null,null,null,null,null,null,null,"Recent Tilt 新近傾斜 #",null,null,null,null,null,null,null,null,null,null,null,null,null,null,null,null,null,null,null,null,null,null,null,"Response growth 反應生長"]
[]
[null,"Wind exposure\n受風情況",null,null,null,null,null,null,null,null,null,null,null,null,"Protected 受遮擋",null,null,null,null,null,null,null,null,null,"Partial 部份",null,null,null,null,null,null,null,"Exposed 暴露",null,null,null,null,null,null,null,null,"Wind funneling 風洞",null,null,null,null,null,null,null,null,null,null,null,"Others 其他"]
[]
[null,"Wildlife or nesting site 野生動物或鳥巢",null,null,null,null,null,null,null,null,null,null,null,null,null,null,null,null,null,null,null,null,null,"None  沒有",null,null,null,null,null,null,null,"Yes 有"]
[null,"Cable or brace 鋼索或支架",null,null,null,null,null,null,null,null,null,null,null,null,null,null,null,null,null,null,null,null,null,"None  沒有",null,null,null,null,null,null,null,"Yes 有"]
[null,"Pruning history 修剪歷史",null,null,null,null,null,null,null,null,null,null,null,null,"Cleaned 清理樹冠",null,null,null,null,null,null,null,null,null,"Thinned 疏減樹冠",null,null,null,null,null,null,null,null,null,"Raised 提升樹冠",null,null,null,null,null,null,null,null,"Reduced 縮減樹冠",null,null,null,null,null,null,null,null,null,"Structural pruning 結構修剪"]
[null,null,null,null,null,null,null,null,null,null,null,null,null,null,"Topped 削頂 ",null,null,null,null,null,null,null,null,null,"Lion-tailed 獅尾",null,null,null,null,null,null,null,null,null,"Others 其他"]
[]
[null,"If these items are checked, further assessment by resistograph or tomograph(#) should be arranged when necessary.\n若選擇此項，應視乎情況考慮應用微鑽探、聲納探測(#)。"]
[null,"Other observations 其他觀察"]
[]
[null,"Crown Conditions 樹冠狀況"]
[null,"Crown density 樹冠密度",null,null,null,null,null,null,null,null,null,null,null,null,"Normal 正常",null,null,null,null,null,null,null,"Sparse 稀疏",null,null,null,null,null,"(",null,"<25% #",null,null,null,null,null,null,"25%  - <50% #",null,null,null,null,null,null,null,null,"50% <75%",null,null,null,null,null,")",null,null,null,null,null,"Imbalanced crown 樹冠不對稱"]
[null,"Live crown ratio 活冠比",null,null,null,null,null,null,null,null,null,null,null,null,"<40% #@",null,null,null,null,null,null,null,"41 - 70%",null,null,null,null,null,null,null,null,null,null,">70%",null,null,null,null,null,"Crown load 樹冠負荷",null,null,null,null,null,null,null,null,null,null,null,"Normal 正常",null,null,null,null,null,null,null,"Heavy 過重",null,null,null,null,null,null,null,"Declined 衰弱 #@"]
[null,"Foliage 葉片",null,null,null,null,null,null,null,null,null,null,null,null,"Fallen leaf (Seasonal) 落葉(季節性)",null,null,null,null,null,null,null,null,null,null,null,null,null,null,null,null,"Defoliation (Withered) 落葉 (枯萎)",null,null,null,null,null,null,null,null,null,null,null,null,null,null,null,null,"Normal 正常",null,null,null,null,null,null,"Chlorotic 萎黃",null,null,null,null,null,null,null,"%",null,null,"Necrotic 壞死",null,null,null,null,null,null,null,"%"]
[null,"Leaf size 葉片大小",null,null,null,null,null,null,null,null,null,null,null,null,"Normal 正常",null,null,null,null,null,null,null,null,null,null,null,null,null,null,"Smaller than normal 比正常細小"]
[null,"Dieback twigs 枯枝",null,null,null,null,null,null,null,null,null,null,null,null,"<5%",null,null,null,null,"5 - <25%",null,null,null,null,null,"25 - 50%",null,null,null,null,null,">50%",null,null,null,null,"Epicormics 水橫枝",null,null,null,null,null,null,null,null,null,"Hanger 懸吊斷枝"]
[null,null,null,null,null,null,null,null,null,null,null,null,null,null,null,null,null,null,null,null,null,null,null,null,null,null,null,null,null,null,null,null,null,null,null,null,"Pest and disease 病蟲害✘",null,null,null,null,null,null,null,null,null,null,null,null,null,null,null,null,null,null,null,null,null,null,null,null,null,"Defoliation Percentage\n落葉百分比"]
[null,"If these items are checked, further assessment by resistograph or tomograph(#), equipment for tree root detection(@) and/or BRRD/pathogen tests(✘) should be arranged when necessary.\n若選擇此項，應視乎情況考慮應用微鑽探、聲納探測(#)、樹根探測工具(@) 及/或褐根病/病源檢測(✘) 。"]
[null,"Other observations 其他觀察"]
[]
[]
[]
[null,"Branch Conditions 樹枝狀況"]
[null,null,null,"Co-dominant branches 等勢枝",null,null,null,null,null,null,null,null,null,null,null,null,null,null,null,null,null,null,"Included bark 內夾樹皮",null,null,null,null,null,null,null,null,null,null,null,null,null,null,"Cross branches 疊枝",null,null,null,null,null,null,null,null,null,null,null,null,null,"Crooks or abrupt bends 不常規彎曲",null,null,null,null,null,null,null,null,null,null,null,null,null,null,null,null,null,"Sap flow 滲液"]
[null,null,null,"Cracks or splits 裂縫或裂開",null,null,null,null,null,null,null,null,null,null,null,null,null,null,null,null,null,null,"Decay or cavity 腐爛或樹洞 #",null,null,null,null,null,null,null,null,null,null,null,null,null,null,"Heavy lateral limb 重側枝",null,null,null,null,null,null,null,null,null,null,null,null,null,"Deadwood 枯木"]
[null,null,null,"Canker 潰瘍 ",null,null,null,null,null,null,null,null,null,"Galls 腫瘤 ",null,null,null,null,null,null,null,null,"Burls 節瘤 ",null,null,null,null,null,null,null,null,null,null,null,null,null,null,"Wounds or mechanical injury 傷痕或機械破損"]
[null,null,null,"Pest and disease 病蟲害 :",null,null,null,null,null,null,null,null,null,null,null,null,null,null,null,null,null,null,null,null,null,null,null,null,null,null,null,null,null,null,"Parasitic or epiphytic plants 寄生或附生植物 :"]
[null,null,null,"Fungal fruiting bodies 真菌子實體 :✘",null,null,null,null,null,null,null,null,null,null,null,null,null,null,null,null,null,null,null,null,null,null,null,null,null,null,null,null,null,null,"Response growth 反應生長 :"]
[null,"If these items are checked, further assessment by resistograph or tomograph(#), equipment for tree root detection(@) and/or BRRD/pathogen tests(✘) should be arranged when necessary.\n若選擇此項，應視乎情況考慮應用微鑽探、聲納探測(#)、樹根探測工具(@) 及/或褐根病/病源檢測(✘) 。"]
[null,"Other observations 其他觀察"]
[]
[]
[null,"Trunk Conditions 主幹狀況"]
[]
[null,null,null,"Cavity 樹洞 #(Width of cavity opening over 1/3 of trunk diameter 樹洞洞口闊度大於主幹直徑1/3)",null,null,null,null,null,"#1",null,"L 長",null,null,null,null,"(mm)",null,null,"W 闊",null,null,null,null,null,"(mm)",null,null,"D 深",null,null,null,null,"(mm)",null,null,null,"Direction 方向",null,null,null,null,null,null,null,null,null,null,null,null,null,null,null,"Height above ground 離地面高度"]
[]
[null,null,null,null,null,null,null,null,null,"#2",null,"L 長",null,null,null,null,"(mm)",null,null,"W 闊",null,null,null,null,null,"(mm)",null,null,"D 深",null,null,null,null,"(mm)",null,null,null,"Direction 方向",null,null,null,null,null,null,null,null,null,null,null,null,null,null,null,"Height above ground 離地面高度"]
[]
[null,null,null,null,null,null,null,null,null,"#3",null,"L 長",null,null,null,null,"(mm)",null,null,"W 闊",null,null,null,null,null,"(mm)",null,null,"D 深",null,null,null,null,"(mm)",null,null,null,"Direction 方向",null,null,null,null,null,null,null,null,null,null,null,null,null,null,null,"Height above ground 離地面高度"]
[]
[null,null,null,null,null,null,null,null,null,"#4",null,"L 長",null,null,null,null,"(mm)",null,null,"W 闊",null,null,null,null,null,"(mm)",null,null,"D 深",null,null,null,null,"(mm)",null,null,null,"Direction 方向",null,null,null,null,null,null,null,null,null,null,null,null,null,null,null,"Height above ground 離地面高度"]
[]
[null,null,null,"Co-dominant stems 等勢幹 #",null,null,null,null,null,null,null,null,null,null,null,null,null,null,null,null,null,null,null,"Included bark 內夾樹皮 #",null,null,null,null,null,null,null,null,null,null,null,null,null,null,null,null,null,null,null,null,"Poor taper 不良漸尖生長",null,null,null,null,null,null,null,null,null,null,null,null,null,null,"Crooks or abrupt bends 不常規彎曲"]
[null,null,null,"Cracks or splits 裂縫或裂開",null,null,null,null,null,null,null,null,null,null,null,null,null,null,null,null,null,null,null,"Abnormal bark crack 不正常樹皮裂紋",null,null,null,null,null,null,null,null,null,null,null,null,null,null,null,null,null,null,null,null,"Sap flow 滲液"]
[null,null,null,"Canker 潰瘍 ",null,null,null,null,null,null,null,null,null,"Galls 腫瘤 ",null,null,null,null,null,null,null,null,"Burls 節瘤 ",null,null,null,null,null,null,null,null,null,null,null,null,null,null,"Wounds or mechanical injury 傷痕或機械破損"]
[null,null,null,"Pest and disease 病蟲害 :",null,null,null,null,null,null,null,null,null,null,null,null,null,null,null,null,null,null,null,null,null,null,null,null,null,null,null,null,null,null,"Parasitic or epiphytic plants 寄生或附生植物 :"]
[null,null,null,"Fungal fruiting bodies 真菌子實體 : ✘",null,null,null,null,null,null,null,null,null,null,null,null,null,null,null,null,null,null,null,null,null,null,null,null,null,null,null,null,null,null,"Response growth 反應生長 :"]
[null,"If these items are checked, further assessment by resistograph or tomograph(#), equipment for tree root detection(@) and/or BRRD/pathogen tests(✘) should be arranged when necessary.\n若選擇此項，應視乎情況考慮應用微鑽探、聲納探測(#)、樹根探測工具(@) 及/或褐根病/病源檢測(✘) 。"]
[null,"Other observations 其他觀察"]
[]
[]
[null,"Root Conditions 根部狀況"]
[null,null,null,"Root collar not visible 根脊不現",null,null,null,null,null,null,null,null,null,null,null,null,null,null,null,null,null,null,"Cracks or splits 裂縫或裂開",null,null,null,null,null,null,null,null,null,null,null,null,null,null,null,null,"Exposed root根部外露",null,null,null,null,null,null,null,null,null,null,null,null,null,null,null,null,"Root rot 根部腐壞 #@"]
[null,null,null,"Cut or pruned roots  根部經切割或截根",null,null,null,null,null,null,null,null,null,null,null,null,null,null,null,null,null,null,"Trunk girdling 纏繞樹幹",null,null,null,null,null,null,null,null,null,null,null,null,null,null,null,null,"Girdling root 纏繞根",null,null,null,null,null,null,null,null,null,null,null,null,null,null,null,null,"Dead surface roots  表根枯萎"]
[null,null,null,"Root-plate movement  根基移位 #@",null,null,null,null,null,null,null,null,null,null,null,null,null,null,null,null,null,null,"Wounds or mechanical injury 傷痕或機械破損"]
[null,null,null,"Pest and disease 病蟲害 :",null,null,null,null,null,null,null,null,null,null,null,null,null,null,null,null,null,null,null,null,null,null,null,null,null,null,null,null,null,null,"Parasitic or epiphytic plants 寄生或附生植物 :"]
[null,null,null,"Fungal fruiting bodies 真菌子實體 :✘",null,null,null,null,null,null,null,null,null,null,null,null,null,null,null,null,null,null,null,null,null,null,null,null,null,null,null,null,null,null,"Response growth 反應生長 :"]
[null,"If these items are checked, further assessment by resistograph or tomograph(#), equipment for tree root detection(@) and/or BRRD/pathogen tests(✘) should be arranged when necessary.\n若選擇此項，應視乎情況考慮應用微鑽探、聲納探測(#)、樹根探測工具(@) 及/或褐根病/病源檢測(✘) 。"]
[null,"Other observations 其他觀察"]
[]
[]
[null,"Risk Categorisation 風險類別 (Please identify no more than three (3) important Target(s) for no more than three (3) Tree Part 請就不多於三個樹木部份選取不多於三個目標物)"]
[]
[null,"Target No.\n目標物編號",null,null,null,null,"Tree Part\n樹木部分",null,null,null,null,"Condition(s) of Concern\n關注狀況",null,null,null,null,null,null,null,null,null,null,null,"Part Size (mm)\n部位大小        (毫米)",null,null,null,null,"Fall Distance (m) \n下墜距離 (米)",null,null,null,null,null,"Likelihood 可能性",null,null,null,null,null,null,null,null,null,null,null,null,null,null,null,null,null,null,null,null,null,null,null,"Consequences\n後果",null,null,null,null,null,null,null,"Risk rating*\n風險評級*               (Matrix 2:                        Risk rating matrix                         風險評級組合)"]
[null,null,null,null,null,null,null,null,null,null,null,null,null,null,null,null,null,null,null,null,null,null,null,null,null,null,null,null,null,null,null,null,null,null,"Failure\n倒塌",null,null,null,null,null,null,null,"Impact\n影響",null,null,null,null,null,null,null,"Failure and Impact\n倒塌並影響        (Matrix 1 : Likelihood matrix   可能性組合)          "]
[]
[null,null,null,null,null,null,null,null,null,null,null,null,null,null,null,null,null,null,null,null,null,null,null,null,null,null,null,null,null,null,null,null,null,null,null,null,null,null,null,null,null,null,null,null,null,null,null,null,null,null,{"$f":"IF(RiskLikelihoodFailure1_1=\"\", \"\", INDEX(likelihoodMatrix, 5-MATCH(RiskLikelihoodFailure1_1,List!$Z$2:$Z$5,0),MATCH(RiskLikelihoodImpact1_1,List!$AB$2:$AB$5,0)))","v":""},null,null,null,null,null,null,null,null,null,null,null,null,null,null,null,{"$f":"IF(RiskLikelihoodMatrix1_1=\"\", \"\", INDEX(riskMatrix, MATCH(RiskLikelihoodMatrix1_1,matrix!$A$14:$A$17,0),MATCH(RiskConsequences1_1,List!$AF$2:$AF$5,0)))","v":""}]
[null,null,null,null,null,null,null,null,null,null,null,null,null,null,null,null,null,null,null,null,null,null,null,null,null,null,null,null,null,null,null,null,null,null,null,null,null,null,null,null,null,null,null,null,null,null,null,null,null,null,{"$f":"IF(RiskLikelihoodFailure1_2=\"\", \"\", INDEX(likelihoodMatrix, 5-MATCH(RiskLikelihoodFailure1_2,List!$Z$2:$Z$5,0),MATCH(RiskLikelihoodImpact1_2,List!$AB$2:$AB$5,0)))","v":""},null,null,null,null,null,null,null,null,null,null,null,null,null,null,null,{"$f":"IF(RiskLikelihoodMatrix1_2=\"\", \"\", INDEX(riskMatrix, MATCH(RiskLikelihoodMatrix1_2,matrix!$A$14:$A$17,0),MATCH(RiskConsequences1_2,List!$AF$2:$AF$5,0)))","v":""}]
[null,null,null,null,null,null,null,null,null,null,null,null,null,null,null,null,null,null,null,null,null,null,null,null,null,null,null,null,null,null,null,null,null,null,null,null,null,null,null,null,null,null,null,null,null,null,null,null,null,null,{"$f":"IF(RiskLikelihoodFailure1_3=\"\", \"\", INDEX(likelihoodMatrix, 5-MATCH(RiskLikelihoodFailure1_3,List!$Z$2:$Z$5,0),MATCH(RiskLikelihoodImpact1_3,List!$AB$2:$AB$5,0)))","v":""},null,null,null,null,null,null,null,null,null,null,null,null,null,null,null,{"$f":"IF(RiskLikelihoodMatrix1_3=\"\", \"\", INDEX(riskMatrix, MATCH(RiskLikelihoodMatrix1_3,matrix!$A$14:$A$17,0),MATCH(RiskConsequences1_3,List!$AF$2:$AF$5,0)))","v":""}]
[null,null,null,null,null,null,null,null,null,null,null,null,null,null,null,null,null,null,null,null,null,null,null,null,null,null,null,null,null,null,null,null,null,null,null,null,null,null,null,null,null,null,null,null,null,null,null,null,null,null,{"$f":"IF(RiskLikelihoodFailure2_1=\"\", \"\", INDEX(likelihoodMatrix, 5-MATCH(RiskLikelihoodFailure2_1,List!$Z$2:$Z$5,0),MATCH(RiskLikelihoodImpact2_1,List!$AB$2:$AB$5,0)))","v":""},null,null,null,null,null,null,null,null,null,null,null,null,null,null,null,{"$f":"IF(RiskLikelihoodMatrix2_1=\"\", \"\", INDEX(riskMatrix, MATCH(RiskLikelihoodMatrix2_1,matrix!$A$14:$A$17,0),MATCH(RiskConsequences2_1,List!$AF$2:$AF$5,0)))","v":""}]
[null,null,null,null,null,null,null,null,null,null,null,null,null,null,null,null,null,null,null,null,null,null,null,null,null,null,null,null,null,null,null,null,null,null,null,null,null,null,null,null,null,null,null,null,null,null,null,null,null,null,{"$f":"IF(RiskLikelihoodFailure2_2=\"\", \"\", INDEX(likelihoodMatrix, 5-MATCH(RiskLikelihoodFailure2_2,List!$Z$2:$Z$5,0),MATCH(RiskLikelihoodImpact2_2,List!$AB$2:$AB$5,0)))","v":""},null,null,null,null,null,null,null,null,null,null,null,null,null,null,null,{"$f":"IF(RiskLikelihoodMatrix2_2=\"\", \"\", INDEX(riskMatrix, MATCH(RiskLikelihoodMatrix2_2,matrix!$A$14:$A$17,0),MATCH(RiskConsequences2_2,List!$AF$2:$AF$5,0)))","v":""}]
[null,null,null,null,null,null,null,null,null,null,null,null,null,null,null,null,null,null,null,null,null,null,null,null,null,null,null,null,null,null,null,null,null,null,null,null,null,null,null,null,null,null,null,null,null,null,null,null,null,null,{"$f":"IF(RiskLikelihoodFailure2_3=\"\", \"\", INDEX(likelihoodMatrix, 5-MATCH(RiskLikelihoodFailure2_3,List!$Z$2:$Z$5,0),MATCH(RiskLikelihoodImpact2_3,List!$AB$2:$AB$5,0)))","v":""},null,null,null,null,null,null,null,null,null,null,null,null,null,null,null,{"$f":"IF(RiskLikelihoodMatrix2_3=\"\", \"\", INDEX(riskMatrix, MATCH(RiskLikelihoodMatrix2_3,matrix!$A$14:$A$17,0),MATCH(RiskConsequences2_3,List!$AF$2:$AF$5,0)))","v":""}]
[null,null,null,null,null,null,null,null,null,null,null,null,null,null,null,null,null,null,null,null,null,null,null,null,null,null,null,null,null,null,null,null,null,null,null,null,null,null,null,null,null,null,null,null,null,null,null,null,null,null,{"$f":"IF(RiskLikelihoodFailure3_1=\"\", \"\", INDEX(likelihoodMatrix, 5-MATCH(RiskLikelihoodFailure3_1,List!$Z$2:$Z$5,0),MATCH(RiskLikelihoodImpact3_1,List!$AB$2:$AB$5,0)))","v":""},null,null,null,null,null,null,null,null,null,null,null,null,null,null,null,{"$f":"IF(RiskLikelihoodMatrix3_1=\"\", \"\", INDEX(riskMatrix, MATCH(RiskLikelihoodMatrix3_1,matrix!$A$14:$A$17,0),MATCH(RiskConsequences3_1,List!$AF$2:$AF$5,0)))","v":""}]
[null,null,null,null,null,null,null,null,null,null,null,null,null,null,null,null,null,null,null,null,null,null,null,null,null,null,null,null,null,null,null,null,null,null,null,null,null,null,null,null,null,null,null,null,null,null,null,null,null,null,{"$f":"IF(RiskLikelihoodFailure3_2=\"\", \"\", INDEX(likelihoodMatrix, 5-MATCH(RiskLikelihoodFailure3_2,List!$Z$2:$Z$5,0),MATCH(RiskLikelihoodImpact3_2,List!$AB$2:$AB$5,0)))","v":""},null,null,null,null,null,null,null,null,null,null,null,null,null,null,null,{"$f":"IF(RiskLikelihoodMatrix3_2=\"\", \"\", INDEX(riskMatrix, MATCH(RiskLikelihoodMatrix3_2,matrix!$A$14:$A$17,0),MATCH(RiskConsequences3_2,List!$AF$2:$AF$5,0)))","v":""}]
[null,null,null,null,null,null,null,null,null,null,null,null,null,null,null,null,null,null,null,null,null,null,null,null,null,null,null,null,null,null,null,null,null,null,null,null,null,null,null,null,null,null,null,null,null,null,null,null,null,null,{"$f":"IF(RiskLikelihoodFailure3_3=\"\", \"\", INDEX(likelihoodMatrix, 5-MATCH(RiskLikelihoodFailure3_3,List!$Z$2:$Z$5,0),MATCH(RiskLikelihoodImpact3_3,List!$AB$2:$AB$5,0)))","v":""},null,null,null,null,null,null,null,null,null,null,null,null,null,null,null,{"$f":"IF(RiskLikelihoodMatrix3_3=\"\", \"\", INDEX(riskMatrix, MATCH(RiskLikelihoodMatrix3_3,matrix!$A$14:$A$17,0),MATCH(RiskConsequences3_3,List!$AF$2:$AF$5,0)))","v":""}]
[null,"*For tree obtained \"High\" or \"Extreme\" risk rating after assessment, appropriate mitigation measures should be followed.\n*當風險評級組合的結果為“高”或“極高”時，需要安排適當的緩減措施。"]
[]
[null,"Matrix 1: Likelihood matrix 可能性組合",null,null,null,null,null,null,null,null,null,null,null,null,null,null,null,null,null,null,null,null,null,null,null,null,null,null,null,null,null,null,null,null,null,null,null,null,null,null,null,null,null,null,"Matrix 2: Risk rating matrix 風險評級組合"]
[null,"Likelihood of Failure\n倒塌的可能性",null,null,null,null,null,null,null,null,"Likelihood of Impacting Target\n影響目標的可能性",null,null,null,null,null,null,null,null,null,null,null,null,null,null,null,null,null,null,null,null,null,null,null,null,null,null,null,null,null,null,null,null,null,"Likelihood of Failure \nand Impact \n倒塌並影響的可能性",null,null,null,null,null,null,null,null,null,"Consequences of Failure\n倒塌後果"]
[null,null,null,null,null,null,null,null,null,null,"Very Low          非常低",null,null,null,null,null,"Low \n低",null,null,null,null,null,null,null,null,"Medium\n中等",null,null,null,null,null,null,null,null,"High\n高",null,null,null,null,null,null,null,null,null,null,null,null,null,null,null,null,null,null,null,"Negligible        微小",null,null,null,null,null,"Minor           較小",null,null,null,null,"Significant        重大",null,null,null,null,null,"Severe          嚴重"]
[null,"Highly Probable            非常可能",null,null,null,null,null,null,null,null,"Unlikely \n很低機會",null,null,null,null,null,"Somewhat likely \n有機會",null,null,null,null,null,null,null,null,"Likely \n較大機會",null,null,null,null,null,null,null,null,"Very likely\n很大機會",null,null,null,null,null,null,null,null,null,"Very likely                           很大機會",null,null,null,null,null,null,null,null,null,"Low\n低",null,null,null,null,null,"Moderate\n中",null,null,null,null,"High\n高",null,null,null,null,null,"Extreme\n極高"]
[null,"Probable                            相當可能",null,null,null,null,null,null,null,null,"Unlikely \n很低機會",null,null,null,null,null,"Unlikely \n很低機會",null,null,null,null,null,null,null,null,"Somewhat likely\n有機會",null,null,null,null,null,null,null,null,"Likely\n較大機會",null,null,null,null,null,null,null,null,null,"Likely                                     較大機會",null,null,null,null,null,null,null,null,null,"Low\n低",null,null,null,null,null,"Moderate\n中",null,null,null,null,"High\n高",null,null,null,null,null,"High\n高"]
[null,"Possible                           有可能",null,null,null,null,null,null,null,null,"Unlikely \n很低機會",null,null,null,null,null,"Unlikely \n很低機會",null,null,null,null,null,null,null,null,"Unlikely \n很低機會",null,null,null,null,null,null,null,null,"Somewhat likely\n有機會",null,null,null,null,null,null,null,null,null,"Somewhat likely               有機會",null,null,null,null,null,null,null,null,null,"Low\n低",null,null,null,null,null,"Low\n低",null,null,null,null,"Moderate\n中",null,null,null,null,null,"Moderate\n中"]
[null,"Improbable                    不太可能",null,null,null,null,null,null,null,null,"Unlikely \n很低機會",null,null,null,null,null,"Unlikely \n很低機會",null,null,null,null,null,null,null,null,"Unlikely \n很低機會",null,null,null,null,null,null,null,null,"Unlikely \n很低機會",null,null,null,null,null,null,null,null,null,"Unlikely                                很低機會",null,null,null,null,null,null,null,null,null,"Low\n低",null,null,null,null,null,"Low\n低",null,null,null,null,"Low\n低",null,null,null,null,null,"Low\n低"]
[null,"* 20 Common Tree Species requiring special attention should be duly considered to be rated at \"Probable\" or \"Highly Probable\" depends on the severity of the defects.\n* 20種需特別注意的常見樹種應視乎缺陷的嚴重性而盡量評為\"相當可能\"或\"非常可能\""]
[]
[null,"Mitigation Measures 緩減措施"]
[null,"Target No.\n目標物編號",null,null,null,null,"Tree Part\n樹木部分",null,null,null,null,null,null,null,null,null,null,null,null,null,null,null,null,null,null,null,"Mitigation Measures \n緩減措施",null,null,null,null,null,null,null,null,null,null,null,null,null,null,null,null,null,null,null,null,null,null,null,null,null,null,null,null,null,null,null,null,null,"Anticipated Completion Date\n預算完成日期 (dd/mm/yyyy)",null,null,null,null,null,null,null,null,null,"Residual Risk*\n剩餘風險*"]
[]
[]
[]
[null,"*The level of \"Residual Risk\" after proposed mitigation measures against \"High\" or \"Extreme\" risking rating shall be lowered to \"Moderate\" or below, otherwise, the proposed mitigation measures shall be reviewed.\n*當執行針對“高”或“極高”水平風險評級的緩減措施後，有關的“剩餘風險”水平必需降至“中”或以下。否則，有關的緩減措施需要檢討。"]
[]
[null,"Notes, explanations, descriptions and supplmentary Information 說明、註解、描述及補充資料"]
[]
[]
[]
[]
[]
[]
[]
[]
[]
[]
[]
[]
[null,"Overall tree risk rating \n綜合樹木風險",null,null,null,null,null,null,null,null,null,null,"Overall residual risk\n綜合剩餘風險",null,null,null,null,null,null,null,null,null,null,"Advanced assessment\n進一步檢查",null,null,null,null,null,null,null,null,null,null,null,null,null,null,null,null,null,"No",null,"否"]
[null,null,null,null,null,null,null,null,null,null,null,null,null,null,null,null,null,null,null,null,null,null,null,null,null,null,null,null,null,null,null,null,null,null,null,null,null,null,null,null,null,"Yes",null,"是",null,"Please describe 請描述"]
[]
[]
[null,null,null,null,null,null,null,null,null,null,null,null,null,null,null,null,null,null,null,null,null,null,null,"Inspection limitations                                       檢查限制",null,null,null,null,null,null,null,null,null,null,null,null,null,null,null,null,null,"None 沒有",null,null,null,null,null,null,null,"Inaccessible 難以接近",null,null,null,null,null,null,null,null,null,null,null,null,null,null,"Climbers 攀緣植物"]
[null,null,null,null,null,null,null,null,null,null,null,null,null,null,null,null,null,null,null,null,null,null,null,null,null,null,null,null,null,null,null,null,null,null,null,null,null,null,null,null,null,null,null,null,null,null,null,null,null,"Root collar buried 根脊被埋",null,null,null,null,null,null,null,null,null,null,null,null,null,null,"Others"]
[]
[null,null,null,null,null,null,null,null,null,null,null,null,null,null,null,null,null,null,null,null,null,null,null,"Next inspection date 下次檢查日期"]
[]
[]
[]
[]
[]
[null,"Attached Information 附夾資料"]
[null,"Attachment Type",null,null,null,null,null,null,null,null,null,null,null,null,null,null,"Attachment Name",null,null,null,null,null,null,null,null,null,null,null,null,null,null,null,null,null,null,null,null,null,null,"Description"]
[]
[]
[]
[]
[]
[]
[]
[null,"Declaration 聲明"]
[]
[null,"I, the Inspection Officer for the above TRA Form 2, confirm that I have inspected the tree(s) at the specified date and time with due diligence, and the information given in the Form(s) is truly reflecting what I observed on site."]
[null,"本人作為以上個別樹木風險評估(表格2)的巡查人員，確認本人已在本表格所列日期及時間，謹慎小心完成有關樹木的風險評估，而本表格上填入的資料均真確無訛地反映本人在現場觀察所得。"]
[]
[null,"My academic, professional, training records and work experience met the requirements of Inspection Officer (Form 2) in the TRAM Guidelines."]
[null,"本人的學術、專業、培訓紀錄及相關工作經驗均符合「樹木風險評估及管理安排」指引中對巡查人員的要求。"]
[]
[null,"Name of Inspection Officer: ",null,null,null,null,null,null,null,null,null,null,null,null,null,null,null,null,{"$f":"IF(ISBLANK(InspOfficer), \"\", InspOfficer)","v":""}]
[null,"巡查人員姓名",null,null,null,null,null,null,null,null,null,null,null,null,null,null,null,null,"(請以英文正楷書寫。)"]
[]
[null,"Date of Form 2 Completed:"]
[null,"完成表格2日期",null,null,null,null,null,null,null,null,null,null,null,null,null,null,null,null,"(dd/mm/yyyy)"]
[]
[null,"(Please sign on the space provided if the Form 2 is submitted in paper form 若以文本形式遞交表格2, 請於以下空位簽名)"]
[null,"Signature of Inspection Officer:"]
[null,"巡查人員簽署："]
["--------------- End of Form 2 ---------------\n表格2完"]

{"sheet":"Data","index":1,"n_rows":354,"n_cols":7,"rows_kept":354,"cut":false,"hidden":true,"merged":[]}
["Field Name","Field Value","Table","Table Field","Type","Remark","RADIO BTN VALUE"]
["Dept",{"$f":"IF(ISBLANK(Dept), \"\", Dept)","v":""}]
["InspOfficer",{"$f":"IF(ISBLANK(InspOfficer), \"\", InspOfficer)","v":""}]
["Post",{"$f":"IF(ISBLANK(Post), \"\", Post)","v":""}]
["ProjNo",{"$f":"IF(ISBLANK(ProjNo), \"\", ProjNo)","v":""}]
["FileRef",{"$f":"IF(ISBLANK(FileRef), \"\", FileRef)","v":""}]
["InspDate",{"$f":"IF(OR(ISBLANK(InspDate),ISBLANK(InspHr),ISBLANK(InspMin)), \"\", InspDate&\" \"&InspHr &\":\"&InspMin)","v":""}]
["LastInspDate",{"$f":"IF(ISBLANK(LastInspDate), \"\", LastInspDate)","v":""}]
["InspTimeSpent",{"$f":"IF(ISBLANK(InspTimeSpent), \"\", INDEX(List!H2:H10, MATCH(InspTimeSpent,List!G2:G10,0)))","v":""},null,null,null,{"$f":"IF(ISBLANK(InspTimeSpent), \"\", InspTimeSpent)","v":""}]
["IndpFreq",{"$f":"IF(ISBLANK(IndpFreq), \"\", INDEX(List!J2:J19, MATCH(IndpFreq,List!I2:I19,0)))","v":""},null,null,null,{"$f":"IF(ISBLANK(IndpFreq), \"\", IndpFreq)","v":""}]
["TreeID",{"$f":"IF(ISBLANK(TreeID), \"\", TreeID)","v":""}]
["TreeSpecies",{"$f":"IF(ISBLANK(TreeSpecies), \"\", INDEX(List!L2:L773, MATCH(TreeSpecies,TreeSpeciesNameList,0)))","v":""},null,null,null,{"$f":"IF(ISBLANK(TreeSpecies), \"\", TreeSpecies)","v":""}]
["TreeSpeciesOthers",{"$f":"IF(ISBLANK(TreeSpeciesOthers), \"\", TreeSpeciesOthers)","v":""}]
["Category",{"$f":"IF(ISBLANK(Category), \"\", INDEX(List!N2:N6, MATCH(Category,List!M2:M6,0)))","v":""},null,null,null,{"$f":"IF(ISBLANK(Category), \"\", Category)","v":""}]
["TreeHeight",{"$f":"IF(ISBLANK(TreeHeight), \"\", TreeHeight)","v":""}]
["CrownSpread",{"$f":"IF(ISBLANK(CrownSpread), \"\", CrownSpread)","v":""}]
["TrunkNum",{"$f":"IF(ISBLANK(TrunkNum), \"\", TrunkNum)","v":""}]
["TreeTrunkDBH1",{"$f":"IF(ISBLANK(TreeTrunkDBH1), \"\", TreeTrunkDBH1)","v":""}]
["TreeTrunkDBH2",{"$f":"IF(ISBLANK(TreeTrunkDBH2), \"\", TreeTrunkDBH2)","v":""}]
["TreeTrunkDBH3",{"$f":"IF(ISBLANK(TreeTrunkDBH3), \"\", TreeTrunkDBH3)","v":""}]
["TreeTrunkDBH4",{"$f":"IF(ISBLANK(TreeTrunkDBH4), \"\", TreeTrunkDBH4)","v":""}]
["TreeTrunkDBH5",{"$f":"IF(ISBLANK(TreeTrunkDBH5), \"\", TreeTrunkDBH5)","v":""}]
["TreeAggDBH",{"$f":"IF(ISBLANK(TreeAggDBH), \"\", TreeAggDBH)","v":0}]
["TreeRegOVT",false]
["TreeOVTNo",{"$f":"IF(ISBLANK(TreeOVTNo), \"\", TreeOVTNo)","v":""}]
["TreeRegWall",false]
["TreeWallRegNo",{"$f":"IF(ISBLANK(TreeWallRegNo), \"\", TreeWallRegNo)","v":""}]
["TreeRegMature",false]
["TreeRegOther",false]
["TreeRegRootInfect",false]
["TreeConfineSite",false]
["MasterzoneRef",{"$f":"IF(ISBLANK(MasterzoneRef), \"\", MasterzoneRef)","v":""}]
["SubzoneRef",{"$f":"IF(ISBLANK(SubzoneRef), \"\", SubzoneRef)","v":""}]
["LocChi",{"$f":"IF(ISBLANK(LocChi), \"\", LocChi)","v":""}]
["LocEng",{"$f":"IF(ISBLANK(LocEng), \"\", LocEng)","v":""}]
["District",{"$f":"IF(ISBLANK(District), \"\", INDEX(List!AS2:AS19, MATCH(District,List!AR2:AR19,0)))","v":""},null,null,null,{"$f":"IF(ISBLANK(District), \"\", District)","v":""}]
["CoorX",{"$f":"IF(ISBLANK(CoorX), \"\", CoorX)","v":""}]
["CoorY",{"$f":"IF(ISBLANK(CoorY), \"\", CoorY)","v":""}]
["RiskZoneCategory",{"$f":"IF(ISBLANK(RiskZoneCategory), \"\", INDEX(List!P2:P22, MATCH(RiskZoneCategory,List!O2:O22,0)))","v":""},null,null,null,{"$f":"IF(ISBLANK(RiskZoneCategory), \"\", RiskZoneCategory)","v":""}]
["LocRoadsize",false]
["LocPublicPark",false]
["LocPlanter",false]
["LocCountryPark",false]
["LocUnleased",false]
["LocTreepit",false]
["LocEstate",false]
["LocSIMAR",false]
["LocSIMARDesc",{"$f":"IF(ISBLANK(LocSIMARDesc), \"\", LocSIMARDesc)","v":""}]
["LocDivider",false]
["LocGov",false]
["LocOthers",false]
["LocOthersDesc",{"$f":"IF(ISBLANK(LocOthersDesc), \"\", LocOthersDesc)","v":""}]
["LampPoleNum",{"$f":"IF(ISBLANK(LampPoleNum), \"\", LampPoleNum)","v":""}]
["Target1Desc",{"$f":"IF(ISBLANK(Target1Desc), \"\", INDEX(List!$R$2:$R$37, MATCH(Target1Desc,List!$Q$2:$Q$37,0)))","v":""},null,null,null,{"$f":"IF(ISBLANK(Target1Desc), \"\", Target1Desc)","v":""}]
["Target1DescOthers",{"$f":"IF(ISBLANK(Target1DescOthers), \"\", Target1DescOthers)","v":""}]
["Target1Zone",{"$f":"IF(ISBLANK(Target1Zone), \"\", INDEX(List!$T$2:$T$37, MATCH(Target1Zone,List!$S$2:$S$37,0)))","v":""},null,null,null,{"$f":"IF(ISBLANK(Target1Zone), \"\", Target1Zone)","v":""}]
["Target1Occupancy",{"$f":"IF(ISBLANK(Target1Occupancy), \"\", INDEX(List!$V$2:$V$37, MATCH(Target1Occupancy,List!$U$2:$U$37,0)))","v":""},null,null,null,{"$f":"IF(ISBLANK(Target1Occupancy), \"\", Target1Occupancy)","v":""}]
["Target1Remove",{"$f":"IF(ISBLANK(Target1Remove), \"\", INDEX(List!$B$2:$B$37, MATCH(Target1Remove,List!$A$2:$A$37,0)))","v":""},null,null,null,{"$f":"IF(ISBLANK(Target1Remove), \"\", Target1Remove)","v":""}]
["Target1Restrict",{"$f":"IF(ISBLANK(Target1Restrict), \"\", INDEX(List!$B$2:$B$37, MATCH(Target1Restrict,List!$A$2:$A$37,0)))","v":""},null,null,null,{"$f":"IF(ISBLANK(Target1Restrict), \"\", Target1Restrict)","v":""}]
["Target2Desc",{"$f":"IF(ISBLANK(Target2Desc), \"\", INDEX(List!$R$2:$R$37, MATCH(Target2Desc,List!$Q$2:$Q$37,0)))","v":""},null,null,null,{"$f":"IF(ISBLANK(Target2Desc), \"\", Target2Desc)","v":""}]
["Target2DescOthers",{"$f":"IF(ISBLANK(Target2DescOthers), \"\", Target2DescOthers)","v":""}]
["Target2Zone",{"$f":"IF(ISBLANK(Target2Zone), \"\", INDEX(List!$T$2:$T$37, MATCH(Target2Zone,List!$S$2:$S$37,0)))","v":""},null,null,null,{"$f":"IF(ISBLANK(Target2Zone), \"\", Target2Zone)","v":""}]
["Target2Occupancy",{"$f":"IF(ISBLANK(Target2Occupancy), \"\", INDEX(List!$V$2:$V$37, MATCH(Target2Occupancy,List!$U$2:$U$37,0)))","v":""},null,null,null,{"$f":"IF(ISBLANK(Target2Occupancy), \"\", Target2Occupancy)","v":""}]
["Target2Remove",{"$f":"IF(ISBLANK(Target2Remove), \"\", INDEX(List!$B$2:$B$37, MATCH(Target2Remove,List!$A$2:$A$37,0)))","v":""},null,null,null,{"$f":"IF(ISBLANK(Target2Remove), \"\", Target2Remove)","v":""}]
["Target2Restrict",{"$f":"IF(ISBLANK(Target2Restrict), \"\", INDEX(List!$B$2:$B$37, MATCH(Target2Restrict,List!$A$2:$A$37,0)))","v":""},null,null,null,{"$f":"IF(ISBLANK(Target2Restrict), \"\", Target2Restrict)","v":""}]
["Target3Desc",{"$f":"IF(ISBLANK(Target3Desc), \"\", INDEX(List!$R$2:$R$37, MATCH(Target3Desc,List!$Q$2:$Q$37,0)))","v":""},null,null,null,{"$f":"IF(ISBLANK(Target3Desc), \"\", Target3Desc)","v":""}]
["Target3DescOthers",{"$f":"IF(ISBLANK(Target3DescOthers), \"\", Target3DescOthers)","v":""}]
["Target3Zone",{"$f":"IF(ISBLANK(Target3Zone), \"\", INDEX(List!$T$2:$T$37, MATCH(Target3Zone,List!$S$2:$S$37,0)))","v":""},null,null,null,{"$f":"IF(ISBLANK(Target3Zone), \"\", Target3Zone)","v":""}]
["Target3Occupancy",{"$f":"IF(ISBLANK(Target3Occupancy), \"\", INDEX(List!$V$2:$V$37, MATCH(Target3Occupancy,List!$U$2:$U$37,0)))","v":""},null,null,null,{"$f":"IF(ISBLANK(Target3Occupancy), \"\", Target3Occupancy)","v":""}]
["Target3Remove",{"$f":"IF(ISBLANK(Target3Remove), \"\", INDEX(List!$B$2:$B$37, MATCH(Target3Remove,List!$A$2:$A$37,0)))","v":""},null,null,null,{"$f":"IF(ISBLANK(Target3Remove), \"\", Target3Remove)","v":""}]
["Target3Restrict",{"$f":"IF(ISBLANK(Target3Restrict), \"\", INDEX(List!$B$2:$B$37, MATCH(Target3Restrict,List!$A$2:$A$37,0)))","v":""},null,null,null,{"$f":"IF(ISBLANK(Target3Restrict), \"\", Target3Restrict)","v":""}]
["Target4Desc",{"$f":"IF(ISBLANK(Target4Desc), \"\", INDEX(List!$R$2:$R$37, MATCH(Target4Desc,List!$Q$2:$Q$37,0)))","v":""},null,null,null,{"$f":"IF(ISBLANK(Target4Desc), \"\", Target4Desc)","v":""}]
["Target4DescOthers",{"$f":"IF(ISBLANK(Target4DescOthers), \"\", Target4DescOthers)","v":""}]
["Target4Zone",{"$f":"IF(ISBLANK(Target4Zone), \"\", INDEX(List!$T$2:$T$37, MATCH(Target4Zone,List!$S$2:$S$37,0)))","v":""},null,null,null,{"$f":"IF(ISBLANK(Target4Zone), \"\", Target4Zone)","v":""}]
["Target4Occupancy",{"$f":"IF(ISBLANK(Target4Occupancy), \"\", INDEX(List!$V$2:$V$37, MATCH(Target4Occupancy,List!$U$2:$U$37,0)))","v":""},null,null,null,{"$f":"IF(ISBLANK(Target4Occupancy), \"\", Target4Occupancy)","v":""}]
["Target4Remove",{"$f":"IF(ISBLANK(Target4Remove), \"\", INDEX(List!$B$2:$B$37, MATCH(Target4Remove,List!$A$2:$A$37,0)))","v":""},null,null,null,{"$f":"IF(ISBLANK(Target4Remove), \"\", Target4Remove)","v":""}]
["Target4Restrict",{"$f":"IF(ISBLANK(Target4Restrict), \"\", INDEX(List!$B$2:$B$37, MATCH(Target4Restrict,List!$A$2:$A$37,0)))","v":""},null,null,null,{"$f":"IF(ISBLANK(Target4Restrict), \"\", Target4Restrict)","v":""}]
["Target5Desc",{"$f":"IF(ISBLANK(Target5Desc), \"\", INDEX(List!$R$2:$R$37, MATCH(Target5Desc,List!$Q$2:$Q$37,0)))","v":""},null,null,null,{"$f":"IF(ISBLANK(Target5Desc), \"\", Target5Desc)","v":""}]
["Target5DescOthers",{"$f":"IF(ISBLANK(Target5DescOthers), \"\", Target5DescOthers)","v":""}]
["Target5Zone",{"$f":"IF(ISBLANK(Target5Zone), \"\", INDEX(List!$T$2:$T$37, MATCH(Target5Zone,List!$S$2:$S$37,0)))","v":""},null,null,null,{"$f":"IF(ISBLANK(Target5Zone), \"\", Target5Zone)","v":""}]
["Target5Occupancy",{"$f":"IF(ISBLANK(Target5Occupancy), \"\", INDEX(List!$V$2:$V$37, MATCH(Target5Occupancy,List!$U$2:$U$37,0)))","v":""},null,null,null,{"$f":"IF(ISBLANK(Target5Occupancy), \"\", Target5Occupancy)","v":""}]
["Target5Remove",{"$f":"IF(ISBLANK(Target5Remove), \"\", INDEX(List!$B$2:$B$37, MATCH(Target5Remove,List!$A$2:$A$37,0)))","v":""},null,null,null,{"$f":"IF(ISBLANK(Target5Remove), \"\", Target5Remove)","v":""}]
["Target5Restrict",{"$f":"IF(ISBLANK(Target5Restrict), \"\", INDEX(List!$B$2:$B$37, MATCH(Target5Restrict,List!$A$2:$A$37,0)))","v":""},null,null,null,{"$f":"IF(ISBLANK(Target5Restrict), \"\", Target5Restrict)","v":""}]
["SiteTopoFlat",false]
["SiteTopoTerrain",false]
["SiteTopoSlope",false]
["SiteTopoRetainWall",false]
["SiteTopoStonewall",false]
["SiteTopoOthers",false]
["SiteTopoOthersDesc",{"$f":"IF(ISBLANK(SiteTopoOthersDesc), \"\", SiteTopoOthersDesc)","v":""}]
["SiteChangeNone",false]
["SiteChangeGrade",false]
["SiteChangeClearing",false]
["SiteChangeRootcut",false]
["SiteChangeOthers",false]
["SiteChangeOthersDesc",{"$f":"IF(ISBLANK(SiteChangeOthersDesc), \"\", SiteChangeOthersDesc)","v":""}]
["SiteSoliNormal",false]
["SiteSoliLimited",false]
["SiteSoliCompacted",false]
["SiteSoliWaterlogging",false]
["SiteSoilHardPaved",false]
["SiteSoliOthers",false]
["SiteSoliOthersDesc",{"$f":"IF(ISBLANK(SiteSoliOthersDesc), \"\", SiteSoliOthersDesc)","v":""}]
["SiteSoliCrakeNone",{"$f":"IF($G$104=1, TRUE, FALSE)","v":false},null,null,null,null,0]
["SiteSoliCrakeYes",{"$f":"IF($G$104=2, TRUE, FALSE)","v":false}]
["SiteSoliCrakeYesDesc",{"$f":"IF(ISBLANK(SiteSoliCrakeYesDesc), \"\", SiteSoliCrakeYesDesc)","v":""}]
["SiteDriplineNone",{"$f":"IF($G$107=1, TRUE, FALSE)","v":false},null,null,null,null,2]
["SiteDripline25",{"$f":"IF($G$107=2, TRUE, FALSE)","v":true}]
["SiteDripline2550",{"$f":"IF($G$107=3, TRUE, FALSE)","v":false}]
["SiteDripline5175",{"$f":"IF($G$107=4, TRUE, FALSE)","v":false}]
["SiteDripline75",{"$f":"IF($G$107=5, TRUE, FALSE)","v":false}]
["TreeFailureNone",{"$f":"IF($G$112=1, TRUE, FALSE)","v":false},null,null,null,null,0]
["TreeFailureYes",{"$f":"IF($G$112=2, TRUE, FALSE)","v":false}]
["TreeFailureNoneYesDesc",{"$f":"IF(ISBLANK(TreeFailureNoneYesDesc), \"\", TreeFailureNoneYesDesc)","v":""}]
["BrownRootRecordNone",{"$f":"IF($G$115=1, TRUE, FALSE)","v":false},null,null,null,null,0]
["BrownRootRecordYes",{"$f":"IF($G$115=2, TRUE, FALSE)","v":false}]
["BrownRootRecordYesDesc",{"$f":"IF(ISBLANK(BrownRootRecordYesDesc), \"\", BrownRootRecordYesDesc)","v":""}]
["SiteOtherObs",{"$f":"IF(ISBLANK(SiteOtherObs), \"\", SiteOtherObs)","v":""}]
["GenTreeVigorLow",{"$f":"IF($G$119=1, TRUE, FALSE)","v":false},null,null,null,null,0]
["GenTreeVigorNormal",{"$f":"IF($G$119=2, TRUE, FALSE)","v":false}]
["GenTreeVigorHigh",{"$f":"IF($G$119=3, TRUE, FALSE)","v":false}]
["GenLeanNo",{"$f":"IF($G$122=1, TRUE, FALSE)","v":false},null,null,null,null,0]
["GenLeanYes",{"$f":"IF($G$122=2, TRUE, FALSE)","v":false}]
["GenLeanAngle",{"$f":"IF(ISBLANK(GenLeanAngle), \"\", GenLeanAngle)","v":""}]
["GenLeanNatural",false]
["GenLeanCorrected",false]
["GenLeanRecentTile",false]
["GenLeanRespGrowth",false]
["GenLeanRespGrowthFesc",{"$f":"IF(ISBLANK(GenLeanRespGrowthFesc), \"\", GenLeanRespGrowthFesc)","v":""}]
["GenWindProtected",{"$f":"IF($G$130=1, TRUE, FALSE)","v":false},null,null,null,null,0]
["GenWindPartial",{"$f":"IF($G$130=2, TRUE, FALSE)","v":false}]
["GenWindExposed",{"$f":"IF($G$130=3, TRUE, FALSE)","v":false}]
["GenWindFunneling",{"$f":"IF($G$130=4, TRUE, FALSE)","v":false}]
["GenWindOthers",{"$f":"IF($G$130=5, TRUE, FALSE)","v":false}]
["GenWindOthersDesc",{"$f":"IF(ISBLANK(GenWindOthersDesc), \"\", GenWindOthersDesc)","v":""}]
["GenWildlifeNone",{"$f":"IF($G$136=1, TRUE, FALSE)","v":false},null,null,null,null,0]
["GenWildlifeYes",{"$f":"IF($G$136=2, TRUE, FALSE)","v":false}]
["GenWildlifeYesDesc",{"$f":"IF(ISBLANK(GenWildlifeYesDesc), \"\", GenWildlifeYesDesc)","v":""}]
["GenCableNone",{"$f":"IF($G$139=1, TRUE, FALSE)","v":false},null,null,null,null,0]
["GenCableYes",{"$f":"IF($G$139=2, TRUE, FALSE)","v":false}]
["GenCableYesDesc",{"$f":"IF(ISBLANK(GenCableYesDesc), \"\", GenCableYesDesc)","v":""}]
["GenPruningHistCleaned",false]
["GenPruningHistThinned",false]
["GenPruningHistRaised",false]
["GenPruningHistReduced",false]
["GenPruningHistStruPrune",false]
["GenPruningHistTopped",false]
["GenPruningHistLiontail",false]
["GenPruningHistOthers",false]
["GenPruningHistOthersDesc",{"$f":"IF(ISBLANK(GenPruningHistOthersDesc), \"\", GenPruningHistOthersDesc)","v":""}]
["GenOtherObs",{"$f":"IF(ISBLANK(GenOtherObs), \"\", GenOtherObs)","v":""}]
["CrownDensityNormal",{"$f":"IF($G$152=1, TRUE, FALSE)","v":false},null,null,null,null,0]
["CrownDensitySparse",{"$f":"IF($G$152=2, TRUE, FALSE)","v":false}]
["CrownDensitySparse25",{"$f":"IF($G$154=1, TRUE, FALSE)","v":false},null,null,null,null,0]
["CrownDensitySparse2550",{"$f":"IF($G$154=2, TRUE, FALSE)","v":false}]
["CrownDensitySparse5075",{"$f":"IF($G$154=3, TRUE, FALSE)","v":false}]
["CrownImbalanced",false]
["CrownLiveRatio40",{"$f":"IF($G$158=1, TRUE, FALSE)","v":false},null,null,null,null,0]
["CrownLiveRatio4170",{"$f":"IF($G$158=2, TRUE, FALSE)","v":false}]
["CrownLiveRatio70",{"$f":"IF($G$158=3, TRUE, FALSE)","v":false}]
["CrownLoadNormal",{"$f":"IF($G$161=1, TRUE, FALSE)","v":false},null,null,null,null,0]
["CrownLoadHeavy",{"$f":"IF($G$161=2, TRUE, FALSE)","v":false}]
["CrownLoadDeclined",{"$f":"IF($G$161=3, TRUE, FALSE)","v":false}]
["CrownFoliageFallen",{"$f":"IF($G$164=1, TRUE, FALSE)","v":false},null,null,null,null,0]
["CrownFoliageDefoliation",{"$f":"IF($G$164=2, TRUE, FALSE)","v":false}]
["CrownFoliageNormal",{"$f":"IF($G$164=3, TRUE, FALSE)","v":false}]
["CrownFoliageChlorotic",{"$f":"IF($G$164=4, TRUE, FALSE)","v":false}]
["CrownFoliageChloroticPer",{"$f":"IF(ISBLANK(CrownFoliageChloroticPer), \"\", CrownFoliageChloroticPer)","v":""}]
["CrownFoliageNecrotic",{"$f":"IF($G$164=5, TRUE, FALSE)","v":false}]
["CrownFoliageNecroticPer",{"$f":"IF(ISBLANK(CrownFoliageNecroticPer), \"\", CrownFoliageNecroticPer)","v":""}]
["CrownLeadsizeNormal",{"$f":"IF($G$171=1, TRUE, FALSE)","v":false},null,null,null,null,0]
["CrownLeadsizeSmall",{"$f":"IF($G$171=2, TRUE, FALSE)","v":false}]
["CrownDieback5",{"$f":"IF($G$173=1, TRUE, FALSE)","v":false},null,null,null,null,0]
["CrownDieback525",{"$f":"IF($G$173=2, TRUE, FALSE)","v":false}]
["CrownDieback2550",{"$f":"IF($G$173=3, TRUE, FALSE)","v":false}]
["CrownDieback50",{"$f":"IF($G$173=4, TRUE, FALSE)","v":false}]
["CrownEpicormics",false]
["CrownHanger",false]
["CrownPest",false]
["CrownPestCode",{"$f":"IF(ISBLANK(CrownPestCode), \"\", INDEX(List!AW2:AW21, MATCH(CrownPestCode,List!AV2:AV21,0)))","v":""}]
["CrownDefolicationPer",{"$f":"IF(ISBLANK(CrownDefolicationPer), \"\", CrownDefolicationPer)","v":""}]
["CrownOtherObs",{"$f":"IF(ISBLANK(CrownOtherObs), \"\", CrownOtherObs)","v":""}]
["BranchCodominant",false]
["BranchIncludedBark",false]
["BranchCross",false]
["BranchCrook",false]
["BranchCrack",false]
["BranchDecay",false]
["BranchHeavy",false]
["BranchDead",false]
["BranchSapFlow",false]
["BranchCanker",false]
["BranchGalls",false]
["BranchBurls",false]
["BranchWounds",false]
["BranchPest",false]
["BranchPestCode",{"$f":"IF(ISBLANK(BranchPestCode), \"\", INDEX(List!AW2:AW21, MATCH(BranchPestCode,List!AV2:AV21,0)))","v":""}]
["BranchParasitic",false]
["BranchParasiticDesc",{"$f":"IF(ISBLANK(BranchParasiticDesc), \"\", BranchParasiticDesc)","v":""}]
["BranchFungal",false]
["BranchFungalDesc",{"$f":"IF(ISBLANK(BranchFungalDesc), \"\", BranchFungalDesc)","v":""}]
["BranchRespGrowth",false]
["BranchRespGrowthDesc",{"$f":"IF(ISBLANK(BranchRespGrowthDesc), \"\", BranchRespGrowthDesc)","v":""}]
["BranchOtherObs",{"$f":"IF(ISBLANK(BranchOtherObs), \"\", BranchOtherObs)","v":""}]
["TrunkCavity",false]
["Cavity1Length",{"$f":"IF(ISBLANK(Cavity1Length), \"\", Cavity1Length)","v":""}]
["Cavity2Length",{"$f":"IF(ISBLANK(Cavity2Length), \"\", Cavity2Length)","v":""}]
["Cavity3Length",{"$f":"IF(ISBLANK(Cavity3Length), \"\", Cavity3Length)","v":""}]
["Cavity4Length",{"$f":"IF(ISBLANK(Cavity4Length), \"\", Cavity4Length)","v":""}]
["Cavity1Width",{"$f":"IF(ISBLANK(Cavity1Width), \"\", Cavity1Width)","v":""}]
["Cavity2Width",{"$f":"IF(ISBLANK(Cavity2Width), \"\", Cavity2Width)","v":""}]
["Cavity3Width",{"$f":"IF(ISBLANK(Cavity3Width), \"\", Cavity3Width)","v":""}]
["Cavity4Width",{"$f":"IF(ISBLANK(Cavity4Width), \"\", Cavity4Width)","v":""}]
["Cavity1Deep",{"$f":"IF(ISBLANK(Cavity1Deep), \"\", Cavity1Deep)","v":""}]
["Cavity2Deep",{"$f":"IF(ISBLANK(Cavity2Deep), \"\", Cavity2Deep)","v":""}]
["Cavity3Deep",{"$f":"IF(ISBLANK(Cavity3Deep), \"\", Cavity3Deep)","v":""}]
["Cavity4Deep",{"$f":"IF(ISBLANK(Cavity4Deep), \"\", Cavity4Deep)","v":""}]
["Cavity1Direction",{"$f":"IF(ISBLANK(Cavity1Direction), \"\", Cavity1Direction)","v":""}]
["Cavity2Direction",{"$f":"IF(ISBLANK(Cavity2Direction), \"\", Cavity2Direction)","v":""}]
["Cavity3Direction",{"$f":"IF(ISBLANK(Cavity3Direction), \"\", Cavity3Direction)","v":""}]
["Cavity4Direction",{"$f":"IF(ISBLANK(Cavity4Direction), \"\", Cavity4Direction)","v":""}]
["Cavity1Height",{"$f":"IF(ISBLANK(Cavity1Height), \"\", Cavity1Height)","v":""}]
["Cavity2Height",{"$f":"IF(ISBLANK(Cavity2Height), \"\", Cavity2Height)","v":""}]
["Cavity3Height",{"$f":"IF(ISBLANK(Cavity3Height), \"\", Cavity3Height)","v":""}]
["Cavity4Height",{"$f":"IF(ISBLANK(Cavity4Height), \"\", Cavity4Height)","v":""}]
["TrunkCodominant",false]
["TrunkIncludedBark",false]
["TrunkPoorTaper",false]
["TrunkCrook",false]
["TrunkCrack",false]
["TrunkBarkCrack",false]
["TrunkSapFlow",false]
["TrunkCanker",false]
["TrunkGalls",false]
["TrunkBurls",false]
["TrunkWounds",false]
["TrunkPest",false]
["TrunkPestCode",{"$f":"IF(ISBLANK(TrunkPestCode), \"\", INDEX(List!AW2:AW21, MATCH(TrunkPestCode,List!AV2:AV21,0)))","v":""}]
["TrunkParasitic",false]
["TrunkParasiticDesc",{"$f":"IF(ISBLANK(TrunkParasiticDesc), \"\", TrunkParasiticDesc)","v":""}]
["TrunkFungal",false]
["TrunkFungalDesc",{"$f":"IF(ISBLANK(TrunkFungalDesc), \"\", TrunkFungalDesc)","v":""}]
["TrunkRespGrowth",false]
["TrunkRespGrowthDesc",{"$f":"IF(ISBLANK(TrunkRespGrowthDesc), \"\", TrunkRespGrowthDesc)","v":""}]
["TrunkOtherObs",{"$f":"IF(ISBLANK(TrunkOtherObs), \"\", TrunkOtherObs)","v":""}]
["RootCollarNotVisible",false]
["RootCracks",false]
["RootExposed",false]
["RootRot",false]
["RootCut",false]
["RootTrunkGirdling",false]
["RootGirdling",false]
["RootDead",false]
["RootMovement",false]
["RootWounds",false]
["RootPest",false]
["RootPestDesc",{"$f":"IF(ISBLANK(RootPestCode), \"\", INDEX(List!AW2:AW21, MATCH(RootPestCode,List!AV2:AV21,0)))","v":""}]
["RootParasitic",false]
["RootParasiticDesc",{"$f":"IF(ISBLANK(RootParasiticDesc), \"\", RootParasiticDesc)","v":""}]
["RootFungal",false]
["RootFungalDesc",{"$f":"IF(ISBLANK(RootFungalDesc), \"\", RootFungalDesc)","v":""}]
["RootRespGrowth",false]
["RootRespGrowthDesc",{"$f":"IF(ISBLANK(RootRespGrowthDesc), \"\", RootRespGrowthDesc)","v":""}]
["RootOtherObs",{"$f":"IF(ISBLANK(RootOtherObs), \"\", RootOtherObs)","v":""}]
["RiskTargetNum1_1",{"$f":"IF(ISBLANK(RiskTargetNum1_1), \"\", RiskTargetNum1_1)","v":""}]
["RiskTargetNum1_2",{"$f":"IF(ISBLANK(RiskTargetNum1_2), \"\", RiskTargetNum1_2)","v":""}]
["RiskTargetNum1_3",{"$f":"IF(ISBLANK(RiskTargetNum1_3), \"\", RiskTargetNum1_3)","v":""}]
["RiskTargetNum2_1",{"$f":"IF(ISBLANK(RiskTargetNum2_1), \"\", RiskTargetNum2_1)","v":""}]
["RiskTargetNum2_2",{"$f":"IF(ISBLANK(RiskTargetNum2_2), \"\", RiskTargetNum2_2)","v":""}]
["RiskTargetNum2_3",{"$f":"IF(ISBLANK(RiskTargetNum2_3), \"\", RiskTargetNum2_3)","v":""}]
["RiskTargetNum3_1",{"$f":"IF(ISBLANK(RiskTargetNum3_1), \"\", RiskTargetNum3_1)","v":""}]
["RiskTargetNum3_2",{"$f":"IF(ISBLANK(RiskTargetNum3_2), \"\", RiskTargetNum3_2)","v":""}]
["RiskTargetNum3_3",{"$f":"IF(ISBLANK(RiskTargetNum3_3), \"\", RiskTargetNum3_3)","v":""}]
["RiskTreePart1",{"$f":"IF(ISBLANK(RiskTreePart1), \"\", INDEX(List!$X$2:$X$37, MATCH(RiskTreePart1,List!$W$2:$W$37,0)))","v":""},null,null,null,{"$f":"IF(ISBLANK(RiskTreePart1), \"\", RiskTreePart1)","v":""}]
["RiskTreePart2",{"$f":"IF(ISBLANK(RiskTreePart2), \"\", INDEX(List!$X$2:$X$37, MATCH(RiskTreePart2,List!$W$2:$W$37,0)))","v":""},null,null,null,{"$f":"IF(ISBLANK(RiskTreePart2), \"\", RiskTreePart2)","v":""}]
["RiskTreePart3",{"$f":"IF(ISBLANK(RiskTreePart3), \"\", INDEX(List!$X$2:$X$37, MATCH(RiskTreePart3,List!$W$2:$W$37,0)))","v":""},null,null,null,{"$f":"IF(ISBLANK(RiskTreePart3), \"\", RiskTreePart3)","v":""}]
["RiskConcern1",{"$f":"IF(ISBLANK(RiskConcern1), \"\", RiskConcern1)","v":""}]
["RiskConcern2",{"$f":"IF(ISBLANK(RiskConcern2), \"\", RiskConcern2)","v":""}]
["RiskConcern3",{"$f":"IF(ISBLANK(RiskConcern3), \"\", RiskConcern3)","v":""}]
["RiskSize1",{"$f":"IF(ISBLANK(RiskSize1), \"\", RiskSize1)","v":""}]
["RiskSize2",{"$f":"IF(ISBLANK(RiskSize2), \"\", RiskSize2)","v":""}]
["RiskSize3",{"$f":"IF(ISBLANK(RiskSize3), \"\", RiskSize3)","v":""}]
["RiskFallDestance1",{"$f":"IF(ISBLANK(RiskFallDestance1), \"\", RiskFallDestance1)","v":""}]
["RiskFallDestance2",{"$f":"IF(ISBLANK(RiskFallDestance2), \"\", RiskFallDestance2)","v":""}]
["RiskFallDestance3",{"$f":"IF(ISBLANK(RiskFallDestance3), \"\", RiskFallDestance3)","v":""}]
["RiskLikelihoodFailure1_1",{"$f":"IF(ISBLANK(RiskLikelihoodFailure1_1), \"\", INDEX(List!$AA$2:$AA$37, MATCH(RiskLikelihoodFailure1_1,List!$Z$2:$Z$37,0)))","v":""},null,null,null,{"$f":"IF(ISBLANK(RiskLikelihoodFailure1_1), \"\", RiskLikelihoodFailure1_1)","v":""}]
["RiskLikelihoodFailure1_2",{"$f":"IF(ISBLANK(RiskLikelihoodFailure1_2), \"\", INDEX(List!$AA$2:$AA$37, MATCH(RiskLikelihoodFailure1_2,List!$Z$2:$Z$37,0)))","v":""},null,null,null,{"$f":"IF(ISBLANK(RiskLikelihoodFailure1_2), \"\", RiskLikelihoodFailure1_2)","v":""}]
["RiskLikelihoodFailure1_3",{"$f":"IF(ISBLANK(RiskLikelihoodFailure1_3), \"\", INDEX(List!$AA$2:$AA$37, MATCH(RiskLikelihoodFailure1_3,List!$Z$2:$Z$37,0)))","v":""},null,null,null,{"$f":"IF(ISBLANK(RiskLikelihoodFailure1_3), \"\", RiskLikelihoodFailure1_3)","v":""}]
["RiskLikelihoodFailure2_1",{"$f":"IF(ISBLANK(RiskLikelihoodFailure2_1), \"\", INDEX(List!$AA$2:$AA$37, MATCH(RiskLikelihoodFailure2_1,List!$Z$2:$Z$37,0)))","v":""},null,null,null,{"$f":"IF(ISBLANK(RiskLikelihoodFailure2_1), \"\", RiskLikelihoodFailure2_1)","v":""}]
["RiskLikelihoodFailure2_2",{"$f":"IF(ISBLANK(RiskLikelihoodFailure2_2), \"\", INDEX(List!$AA$2:$AA$37, MATCH(RiskLikelihoodFailure2_2,List!$Z$2:$Z$37,0)))","v":""},null,null,null,{"$f":"IF(ISBLANK(RiskLikelihoodFailure2_2), \"\", RiskLikelihoodFailure2_2)","v":""}]
["RiskLikelihoodFailure2_3",{"$f":"IF(ISBLANK(RiskLikelihoodFailure2_3), \"\", INDEX(List!$AA$2:$AA$37, MATCH(RiskLikelihoodFailure2_3,List!$Z$2:$Z$37,0)))","v":""},null,null,null,{"$f":"IF(ISBLANK(RiskLikelihoodFailure2_3), \"\", RiskLikelihoodFailure2_3)","v":""}]
["RiskLikelihoodFailure3_1",{"$f":"IF(ISBLANK(RiskLikelihoodFailure3_1), \"\", INDEX(List!$AA$2:$AA$37, MATCH(RiskLikelihoodFailure3_1,List!$Z$2:$Z$37,0)))","v":""},null,null,null,{"$f":"IF(ISBLANK(RiskLikelihoodFailure3_1), \"\", RiskLikelihoodFailure3_1)","v":""}]
["RiskLikelihoodFailure3_2",{"$f":"IF(ISBLANK(RiskLikelihoodFailure3_2), \"\", INDEX(List!$AA$2:$AA$37, MATCH(RiskLikelihoodFailure3_2,List!$Z$2:$Z$37,0)))","v":""},null,null,null,{"$f":"IF(ISBLANK(RiskLikelihoodFailure3_2), \"\", RiskLikelihoodFailure3_2)","v":""}]
["RiskLikelihoodFailure3_3",{"$f":"IF(ISBLANK(RiskLikelihoodFailure3_3), \"\", INDEX(List!$AA$2:$AA$37, MATCH(RiskLikelihoodFailure3_3,List!$Z$2:$Z$37,0)))","v":""},null,null,null,{"$f":"IF(ISBLANK(RiskLikelihoodFailure3_3), \"\", RiskLikelihoodFailure3_3)","v":""}]
["RiskLikelihoodImpact1_1",{"$f":"IF(ISBLANK(RiskLikelihoodImpact1_1), \"\", INDEX(List!$AC$2:$AC$37, MATCH(RiskLikelihoodImpact1_1,List!$AB$2:$AB$37,0)))","v":""},null,null,null,{"$f":"IF(ISBLANK(RiskLikelihoodImpact1_1), \"\", RiskLikelihoodImpact1_1)","v":""}]
["RiskLikelihoodImpact1_2",{"$f":"IF(ISBLANK(RiskLikelihoodImpact1_2), \"\", INDEX(List!$AC$2:$AC$37, MATCH(RiskLikelihoodImpact1_2,List!$AB$2:$AB$37,0)))","v":""},null,null,null,{"$f":"IF(ISBLANK(RiskLikelihoodImpact1_2), \"\", RiskLikelihoodImpact1_2)","v":""}]
["RiskLikelihoodImpact1_3",{"$f":"IF(ISBLANK(RiskLikelihoodImpact1_3), \"\", INDEX(List!$AC$2:$AC$37, MATCH(RiskLikelihoodImpact1_3,List!$AB$2:$AB$37,0)))","v":""},null,null,null,{"$f":"IF(ISBLANK(RiskLikelihoodImpact1_3), \"\", RiskLikelihoodImpact1_3)","v":""}]
["RiskLikelihoodImpact2_1",{"$f":"IF(ISBLANK(RiskLikelihoodImpact2_1), \"\", INDEX(List!$AC$2:$AC$37, MATCH(RiskLikelihoodImpact2_1,List!$AB$2:$AB$37,0)))","v":""},null,null,null,{"$f":"IF(ISBLANK(RiskLikelihoodImpact2_1), \"\", RiskLikelihoodImpact2_1)","v":""}]
["RiskLikelihoodImpact2_2",{"$f":"IF(ISBLANK(RiskLikelihoodImpact2_2), \"\", INDEX(List!$AC$2:$AC$37, MATCH(RiskLikelihoodImpact2_2,List!$AB$2:$AB$37,0)))","v":""},null,null,null,{"$f":"IF(ISBLANK(RiskLikelihoodImpact2_2), \"\", RiskLikelihoodImpact2_2)","v":""}]
["RiskLikelihoodImpact2_3",{"$f":"IF(ISBLANK(RiskLikelihoodImpact2_3), \"\", INDEX(List!$AC$2:$AC$37, MATCH(RiskLikelihoodImpact2_3,List!$AB$2:$AB$37,0)))","v":""},null,null,null,{"$f":"IF(ISBLANK(RiskLikelihoodImpact2_3), \"\", RiskLikelihoodImpact2_3)","v":""}]
["RiskLikelihoodImpact3_1",{"$f":"IF(ISBLANK(RiskLikelihoodImpact3_1), \"\", INDEX(List!$AC$2:$AC$37, MATCH(RiskLikelihoodImpact3_1,List!$AB$2:$AB$37,0)))","v":""},null,null,null,{"$f":"IF(ISBLANK(RiskLikelihoodImpact3_1), \"\", RiskLikelihoodImpact3_1)","v":""}]
["RiskLikelihoodImpact3_2",{"$f":"IF(ISBLANK(RiskLikelihoodImpact3_2), \"\", INDEX(List!$AC$2:$AC$37, MATCH(RiskLikelihoodImpact3_2,List!$AB$2:$AB$37,0)))","v":""},null,null,null,{"$f":"IF(ISBLANK(RiskLikelihoodImpact3_2), \"\", RiskLikelihoodImpact3_2)","v":""}]
["RiskLikelihoodImpact3_3",{"$f":"IF(ISBLANK(RiskLikelihoodImpact3_3), \"\", INDEX(List!$AC$2:$AC$37, MATCH(RiskLikelihoodImpact3_3,List!$AB$2:$AB$37,0)))","v":""},null,null,null,{"$f":"IF(ISBLANK(RiskLikelihoodImpact3_3), \"\", RiskLikelihoodImpact3_3)","v":""}]
["RiskLikelihoodMatrix1_1",{"$f":"IFERROR(IF(ISBLANK(RiskLikelihoodMatrix1_1), \"\", INDEX(List!$AE$2:$AE$37, MATCH(RiskLikelihoodMatrix1_1,List!$AD$2:$AD$37,0))),\"\")","v":""},null,null,null,{"$f":"IF(ISBLANK(RiskLikelihoodMatrix1_1), \"\", RiskLikelihoodMatrix1_1)","v":""}]
["RiskLikelihoodMatrix1_2",{"$f":"IFERROR(IF(ISBLANK(RiskLikelihoodMatrix1_2), \"\", INDEX(List!$AE$2:$AE$37, MATCH(RiskLikelihoodMatrix1_2,List!$AD$2:$AD$37,0))),\"\")","v":""},null,null,null,{"$f":"IF(ISBLANK(RiskLikelihoodMatrix1_2), \"\", RiskLikelihoodMatrix1_2)","v":""}]
["RiskLikelihoodMatrix1_3",{"$f":"IFERROR(IF(ISBLANK(RiskLikelihoodMatrix1_3), \"\", INDEX(List!$AE$2:$AE$37, MATCH(RiskLikelihoodMatrix1_3,List!$AD$2:$AD$37,0))),\"\")","v":""},null,null,null,{"$f":"IF(ISBLANK(RiskLikelihoodMatrix1_3), \"\", RiskLikelihoodMatrix1_3)","v":""}]
["RiskLikelihoodMatrix2_1",{"$f":"IFERROR(IF(ISBLANK(RiskLikelihoodMatrix2_1), \"\", INDEX(List!$AE$2:$AE$37, MATCH(RiskLikelihoodMatrix2_1,List!$AD$2:$AD$37,0))),\"\")","v":""}]
["RiskLikelihoodMatrix2_2",{"$f":"IFERROR(IF(ISBLANK(RiskLikelihoodMatrix2_2), \"\", INDEX(List!$AE$2:$AE$37, MATCH(RiskLikelihoodMatrix2_2,List!$AD$2:$AD$37,0))),\"\")","v":""},null,null,null,{"$f":"IF(ISBLANK(RiskLikelihoodMatrix2_2), \"\", RiskLikelihoodMatrix2_2)","v":""}]
["RiskLikelihoodMatrix2_3",{"$f":"IFERROR(IF(ISBLANK(RiskLikelihoodMatrix2_3), \"\", INDEX(List!$AE$2:$AE$37, MATCH(RiskLikelihoodMatrix2_3,List!$AD$2:$AD$37,0))),\"\")","v":""},null,null,null,{"$f":"IF(ISBLANK(RiskLikelihoodMatrix2_3), \"\", RiskLikelihoodMatrix2_3)","v":""}]
["RiskLikelihoodMatrix3_1",{"$f":"IFERROR(IF(ISBLANK(RiskLikelihoodMatrix3_1), \"\", INDEX(List!$AE$2:$AE$37, MATCH(RiskLikelihoodMatrix3_1,List!$AD$2:$AD$37,0))),\"\")","v":""},null,null,null,{"$f":"IF(ISBLANK(RiskLikelihoodMatrix3_1), \"\", RiskLikelihoodMatrix3_1)","v":""}]
["RiskLikelihoodMatrix3_2",{"$f":"IFERROR(IF(ISBLANK(RiskLikelihoodMatrix3_2), \"\", INDEX(List!$AE$2:$AE$37, MATCH(RiskLikelihoodMatrix3_2,List!$AD$2:$AD$37,0))),\"\")","v":""},null,null,null,{"$f":"IF(ISBLANK(RiskLikelihoodMatrix3_2), \"\", RiskLikelihoodMatrix3_2)","v":""}]
["RiskLikelihoodMatrix3_3",{"$f":"IFERROR(IF(ISBLANK(RiskLikelihoodMatrix3_3), \"\", INDEX(List!$AE$2:$AE$37, MATCH(RiskLikelihoodMatrix3_3,List!$AD$2:$AD$37,0))),\"\")","v":""},null,null,null,{"$f":"IF(ISBLANK(RiskLikelihoodMatrix3_3), \"\", RiskLikelihoodMatrix3_3)","v":""}]
["RiskConsequences1_1",{"$f":"IF(ISBLANK(RiskConsequences1_1), \"\", INDEX(List!$AG$2:$AG$37, MATCH(RiskConsequences1_1,List!$AF$2:$AF$37,0)))","v":""},null,null,null,{"$f":"IF(ISBLANK(RiskConsequences1_1), \"\", RiskConsequences1_1)","v":""}]
["RiskConsequences1_2",{"$f":"IF(ISBLANK(RiskConsequences1_2), \"\", INDEX(List!$AG$2:$AG$37, MATCH(RiskConsequences1_2,List!$AF$2:$AF$37,0)))","v":""},null,null,null,{"$f":"IF(ISBLANK(RiskConsequences1_2), \"\", RiskConsequences1_2)","v":""}]
["RiskConsequences1_3",{"$f":"IF(ISBLANK(RiskConsequences1_3), \"\", INDEX(List!$AG$2:$AG$37, MATCH(RiskConsequences1_3,List!$AF$2:$AF$37,0)))","v":""},null,null,null,{"$f":"IF(ISBLANK(RiskConsequences1_3), \"\", RiskConsequences1_3)","v":""}]
["RiskConsequences2_1",{"$f":"IF(ISBLANK(RiskConsequences2_1), \"\", INDEX(List!$AG$2:$AG$37, MATCH(RiskConsequences2_1,List!$AF$2:$AF$37,0)))","v":""},null,null,null,{"$f":"IF(ISBLANK(RiskConsequences2_1), \"\", RiskConsequences2_1)","v":""}]
["RiskConsequences2_2",{"$f":"IF(ISBLANK(RiskConsequences2_2), \"\", INDEX(List!$AG$2:$AG$37, MATCH(RiskConsequences2_2,List!$AF$2:$AF$37,0)))","v":""},null,null,null,{"$f":"IF(ISBLANK(RiskConsequences2_2), \"\", RiskConsequences2_2)","v":""}]
["RiskConsequences2_3",{"$f":"IF(ISBLANK(RiskConsequences2_3), \"\", INDEX(List!$AG$2:$AG$37, MATCH(RiskConsequences2_3,List!$AF$2:$AF$37,0)))","v":""},null,null,null,{"$f":"IF(ISBLANK(RiskConsequences2_3), \"\", RiskConsequences2_3)","v":""}]
["RiskConsequences3_1",{"$f":"IF(ISBLANK(RiskConsequences3_1), \"\", INDEX(List!$AG$2:$AG$37, MATCH(RiskConsequences3_1,List!$AF$2:$AF$37,0)))","v":""},null,null,null,{"$f":"IF(ISBLANK(RiskConsequences3_1), \"\", RiskConsequences3_1)","v":""}]
["RiskConsequences3_2",{"$f":"IF(ISBLANK(RiskConsequences3_2), \"\", INDEX(List!$AG$2:$AG$37, MATCH(RiskConsequences3_2,List!$AF$2:$AF$37,0)))","v":""},null,null,null,{"$f":"IF(ISBLANK(RiskConsequences3_2), \"\", RiskConsequences3_2)","v":""}]
["RiskConsequences3_3",{"$f":"IF(ISBLANK(RiskConsequences3_3), \"\", INDEX(List!$AG$2:$AG$37, MATCH(RiskConsequences3_3,List!$AF$2:$AF$37,0)))","v":""},null,null,null,{"$f":"IF(ISBLANK(RiskConsequences3_3), \"\", RiskConsequences3_3)","v":""}]
["RiskRating1_1",{"$f":"IFERROR(IF(ISBLANK(RiskRating1_1), \"\", INDEX(List!$AI$2:$AI$37, MATCH(RiskRating1_1,List!$AH$2:$AH$37,0))),\"\")","v":""},null,null,null,{"$f":"IF(ISBLANK(RiskRating1_1), \"\", RiskRating1_1)","v":""}]
["RiskRating1_2",{"$f":"IFERROR(IF(ISBLANK(RiskRating1_2), \"\", INDEX(List!$AI$2:$AI$37, MATCH(RiskRating1_2,List!$AH$2:$AH$37,0))),\"\")","v":""},null,null,null,{"$f":"IF(ISBLANK(RiskRating1_2), \"\", RiskRating1_2)","v":""}]
["RiskRating1_3",{"$f":"IFERROR(IF(ISBLANK(RiskRating1_3), \"\", INDEX(List!$AI$2:$AI$37, MATCH(RiskRating1_3,List!$AH$2:$AH$37,0))),\"\")","v":""},null,null,null,{"$f":"IF(ISBLANK(RiskRating1_3), \"\", RiskRating1_3)","v":""}]
["RiskRating2_1",{"$f":"IFERROR(IF(ISBLANK(RiskRating2_1), \"\", INDEX(List!$AI$2:$AI$37, MATCH(RiskRating2_1,List!$AH$2:$AH$37,0))),\"\")","v":""},null,null,null,{"$f":"IF(ISBLANK(RiskRating2_1), \"\", RiskRating2_1)","v":""}]
["RiskRating2_2",{"$f":"IFERROR(IF(ISBLANK(RiskRating2_2), \"\", INDEX(List!$AI$2:$AI$37, MATCH(RiskRating2_2,List!$AH$2:$AH$37,0))),\"\")","v":""},null,null,null,{"$f":"IF(ISBLANK(RiskRating2_2), \"\", RiskRating2_2)","v":""}]
["RiskRating2_3",{"$f":"IFERROR(IF(ISBLANK(RiskRating2_3), \"\", INDEX(List!$AI$2:$AI$37, MATCH(RiskRating2_3,List!$AH$2:$AH$37,0))),\"\")","v":""},null,null,null,{"$f":"IF(ISBLANK(RiskRating2_3), \"\", RiskRating2_3)","v":""}]
["RiskRating3_1",{"$f":"IFERROR(IF(ISBLANK(RiskRating3_1), \"\", INDEX(List!$AI$2:$AI$37, MATCH(RiskRating3_1,List!$AH$2:$AH$37,0))),\"\")","v":""},null,null,null,{"$f":"IF(ISBLANK(RiskRating3_1), \"\", RiskRating3_1)","v":""}]
["RiskRating3_2",{"$f":"IFERROR(IF(ISBLANK(RiskRating3_2), \"\", INDEX(List!$AI$2:$AI$37, MATCH(RiskRating3_2,List!$AH$2:$AH$37,0))),\"\")","v":""},null,null,null,{"$f":"IF(ISBLANK(RiskRating3_2), \"\", RiskRating3_2)","v":""}]
["RiskRating3_3",{"$f":"IFERROR(IF(ISBLANK(RiskRating3_3), \"\", INDEX(List!$AI$2:$AI$37, MATCH(RiskRating3_3,List!$AH$2:$AH$37,0))),\"\")","v":""},null,null,null,{"$f":"IF(ISBLANK(RiskRating3_3), \"\", RiskRating3_3)","v":""}]
["MitigationTargetNoList",{"$f":"getBreakDownValue4Table(\"TableMitigation\", 1, \"1^2\")","v":{"$error":"#NAME?"}}]
["MitigationTreePartList",{"$f":"getBreakDownValue4Table2(\"TableMitigation\", 1, \"1^7\", List!W2:W9, List!X2:X9)","v":{"$error":"#NAME?"}},null,null,null,{"$f":"getBreakDownValue4Table(\"TableMitigation\", 1, \"1^7\")","v":{"$error":"#NAME?"}}]
["MitigationMeasureList",{"$f":"getBreakDownValue4MitigationMeasure(\"TableMitigation\", 1, \"1^27\", MitigationMeasuresList, List!AO2:AO9)","v":{"$error":"#NAME?"}},null,null,null,{"$f":"getBreakDownValue4Table(\"TableMitigation\", 1, \"1^27\")","v":{"$error":"#NAME?"}}]
["MitigationDateList",{"$f":"getBreakDownValue4Table(\"TableMitigation\", 1, \"1^61\")","v":{"$error":"#NAME?"}}]
["MitigationRiskList",{"$f":"getBreakDownValue4Table2(\"TableMitigation\", 1, \"1^71\", List!AL2:AL6, List!AM2:AM6)","v":{"$error":"#NAME?"}},null,null,null,{"$f":"getBreakDownValue4Table(\"TableMitigation\", 1, \"1^71\")","v":{"$error":"#NAME?"}}]
["Notes",{"$f":"IF(ISBLANK(Notes), \"\", Notes)","v":""}]
["OverallTreeRisk",{"$f":"IF(ISBLANK(OverallTreeRisk), \"\", INDEX(List!$AK$2:$AK$37, MATCH(OverallTreeRisk,List!$AJ$2:$AJ$37,0)))","v":""},null,null,null,{"$f":"IF(ISBLANK(OverallTreeRisk), \"\", OverallTreeRisk)","v":""}]
["OverallResidualRisk",{"$f":"IF(ISBLANK(OverallResidualRisk), \"\", INDEX(List!$AM$2:$AM$37, MATCH(OverallResidualRisk,List!$AL$2:$AL$37,0)))","v":""},null,null,null,{"$f":"IF(ISBLANK(OverallResidualRisk), \"\", OverallResidualRisk)","v":""}]
["AdvAssessmentNo",{"$f":"IF($G$339=1, TRUE, FALSE)","v":false},null,null,null,null,0]
["AdvAssessmentYes",{"$f":"IF($G$339=2, TRUE, FALSE)","v":false}]
["AdvAssessmentYesDesc",{"$f":"IF(ISBLANK(AdvAssessmentYesDesc), \"\", INDEX(List!$AQ$2:$AQ$37, MATCH(AdvAssessmentYesDesc,List!$AP$2:$AP$37,0)))","v":""},null,null,null,{"$f":"IF(ISBLANK(AdvAssessmentYesDesc), \"\", AdvAssessmentYesDesc)","v":""}]
["AdvAssessmentYesDescOther",{"$f":"IF(ISBLANK(AdvAssessmentYesDescOther), \"\", AdvAssessmentYesDescOther)","v":""}]
["LimitationNone",false]
["LimitationInaccessable",false]
["LimitationClimber",false]
["LimitationBuried",false]
["LimitationOthers",false]
["LimitationOthersDesc",{"$f":"IF(ISBLANK(LimitationOthersDesc), \"\", LimitationOthersDesc)","v":""}]
["NextInspectionDate",{"$f":"IF(ISBLANK(NextInspectionDate), \"\", NextInspectionDate)","v":""}]
["AttachTypeList",{"$f":"getBreakDownValue4Table2(\"TableAttachment\", 1, \"1^2\", List!AT2:AT5, List!AU2:AU5)","v":{"$error":"#NAME?"}},null,null,null,{"$f":"getBreakDownValue4Table(\"TableAttachment\", 1, \"1^2\")","v":{"$error":"#NAME?"}}]
["AttachmentIsProfileList",{"$f":"getBreakDownValue4Table(\"TableAttachment\", 1, \"1^10\")","v":{"$error":"#NAME?"}}]
["AttachFileList",{"$f":"getBreakDownValue4Table(\"TableAttachment\", 1, \"1^17\")","v":{"$error":"#NAME?"}}]
["AttachDescList",{"$f":"getBreakDownValue4Table(\"TableAttachment\", 1, \"1^40\")","v":{"$error":"#NAME?"}}]
["FormUploadTime",{"$f":"IF(ISBLANK(FormUploadTime), \"\", FormUploadTime)","v":""}]

{"sheet":"List","index":2,"n_rows":864,"n_cols":49,"rows_kept":864,"cut":false,"hidden":true,"merged":[[0,47,0,48],[0,27,0,28],[0,2,0,3],[0,6,0,7],[0,8,0,9],[0,10,0,11],[0,12,0,13],[0,14,0,15],[0,16,0,17],[0,18,0,19],[0,20,0,21],[0,22,0,23],[0,25,0,26],[0,29,0,30],[0,31,0,32],[0,35,0,36],[0,33,0,34],[0,45,0,46],[0,43,0,44],[0,41,0,42],[0,39,0,40],[0,37,0,38]]}
[null,null,"Department",null,"Full Dept Name","Dept Code","Inspection Time ",null,"Inspection Frequency",null,"Tree Species",null,"Triage Colour",null,"TRMZ Category",null,"Target Description",null,"Target zone",null,"Occupancy rate",null,"Tree Part",null,"Target Number","Failure",null,"Impact",null,"Failure and Impact",null,"Consequences of failure",null,"Risk rating MATRIX",null,"Risk rating ",null,"Residual risk",null,"Tree mitigation measures",null,"Advance assessment",null,"HK Districts",null,"Attachment Type",null,"PestDiseaseList"]
["Yes",1,"AFCD",1,"Agriculture, Fisheries and Conservation Department ","AFC","0.5 hr",1,"Less than 少於 3 months 個月",1,"Unidentified未能鑑別",-2,"Black 黑",3,"Category I 第一類",1,"People (residents, students, working staff, etc) 人(居民、學生、員工等）",1,"Within dripline 滴水線內",1,"Constant 恆常",1,"Whole Tree 整株",1,1,"Improbable 不太可能",1,"Very low 非常低",1,"Unlikely \n很低機會",1,"Negligible 微小",1,"Low\n低",1,"Extreme 極端",1,"Extreme 極端",1,"Crown cleaning 清理樹冠",1,"Risitographic test 微鑽探檢測",1,"Central and Western 中西區",1,"TREE 樹木",1,"Wood Decay Fungi 木腐真菌",2]
["No",0,"AMS",2,"Auxiliary Medical Service","AMS","1.0 hr",2,"3 months 個月",2,"Others其他",-1,"Red 紅",2,"Category II 第二類",2,"People (pedestrains, facility users, activity participants, etc.) 人（行人、設施使用者、活動參與者等）",2,"within 1.5 X Ht. 1.5倍樹高範圍內",2,"Frequent 經常",2,"Crown 樹冠",2,2,"Possible 有可能",2,"Low 低",2,"Somewhat likely \n有機會",2,"Minor 較小",2,"Moderate\n中",2,"High 高",2,"High 高",2,"Crown thinning 樹冠疏理",2,"Sonic Tomographic test  聲納探測",2,"Eastern 東區",2,"PHOTO 照片",2,"Emerald ash borer 白蠟樹蛀蟲",3]
[null,null,"ArchSD",3,"Architectural Services Department","ASD","1.5 hr",3,"6 months 個月",3,"Acacia auriculiformis耳果相思(耳葉相思)",1,"Orange 橙",4,"Category III 第三類",3,"People (vehicle drivers, bikers, etc.) 人（司機、單車駕駛者等）",3,null,null,"Occasional 偶爾",3,"Main trunk/codominant trunk 主幹/等勢幹",3,3,"Probable 相當可能",3,"Medium 中等",3,"Likely \n較大機會",3,"Significant 重大",3,"High\n高",3,"Moderate 中",3,"Moderate 中",3,"Crown reduction 縮減樹冠",3,"Aerial inspection 空中檢測",3,"Islands 離島區",3,"MAP 地圖",3,"Odontotermes formosanus Shiraki (termite) 白蟻",5]
[null,null,"BD",4,"Building Department","DLD","2.0 hr",4,"12 months 個月",4,"Acacia confusa台灣相思",2,"Yellow 黃",1,null,null,"Buildings (residential, commercial, school, utility, covered carparks, etc)建築物（民居、商業、學校、公用設施、有蓋停車場等）",4,null,null,"Rare 甚少",4,"Large branch (diamenter over 200 mm) 大型枝條（直徑>200毫米）",4,4,"Highly Probable 非常可能",4,"High 高",4,"Very likely\n很大機會",4,"Severe 嚴重",4,"Extreme\n極高",4,"Low 低",4,"Low 低",4,"Structural Pruning 結構修剪 ",4,"Root radar test 樹根雷達探測",4,"Kowloon City 九龍城區",4,"OTHER 其他",4,"Cerambycidae 天牛科幼蟲(蛀心蟲)",6]
[null,null,"C&SD ",5,"Census and Statistics Department","CNS","2.5 hr",5,"24 months 個月",5,"Acacia dealbata銀荊",3,"No 無",0,null,null,"Urban parks/seating out area/recreation site. 公園、休憩地點、康樂場地等",5,null,null,null,null,"Medium branch (diameter >100 mm but <200 mm) 中型枝條（直徑>100毫米 但<200毫米）",5,5,null,null,null,null,null,null,null,null,null,null,null,null,"None 沒有",5,"Crown raising 樹冠提升",5,"Soil/slope/wall stability test  土壤/斜坡/石牆穩定性檢測",5,"Kwai Tsing 葵青區",5,null,null,"Thrips palmi Karny/ Gynaikothrips uzeli 薊馬類/榕母管薊馬",7]
[null,null,"CAD",6,"Civil Aviation Department","CAD","3.0 hr",6,"36 months 個月",6,"Acacia holosericea絹毛相思",4,null,null,null,null,"Countryside/rural/country parks recreational site/parks/sitting out areas.  郊外、鄉村、郊野公園活動地點等",6,null,null,null,null,"Small branch (diameter 100mm or less)小型枝條（直徑<100毫米）",6,null,null,null,null,null,null,null,null,null,null,null,null,null,null,null,"Cabling, bracing or propping 纜索拉纜或支柱",6,"Others 其他",-1,"Kwun Tong 觀塘區",6,null,null,"Quadrastichus erythrinae 刺桐姬小蜂",8]
[null,null,"CAS",7,"Civil Aid Service","CAS","3.5 hr",7,"48 months 個月",7,"Acacia mangium大葉相思(馬占相思)",5,null,null,null,null,"Open carparks 露天停車場",7,null,null,null,null,"Fruit果實",7,null,null,null,null,null,null,null,null,null,null,null,null,null,null,null,"Pest/ disease control 病蟲害控制",7,null,null,"North 北區",7,null,null,"Phauda flammans 朱紅毛斑蛾",9]
[null,null,"CEDD",8,"Civil Engineering and Development Department","CED","4.0 hr",8,"60 months 個月",8,"Acer buergerianum三角槭",6,null,null,null,null,"Open space (square, promenade, plaza, etc.) 公共空間（廣場、散步地點、公眾地點等）",8,null,null,null,null,"Root樹根",8,null,null,null,null,null,null,null,null,null,null,null,null,null,null,null,"Removal 移除",8,null,null,"Sai Kung 西貢區",8,null,null,"Eriogyna pyretorum 樟天蠶蛾",10]
[null,null,"CPU",9,"Central Policy Unit","CPU","More than 4 hr.",9,"Over 超過 60 months 個月",9,"Acer palmatum雞爪槭",7,null,null,null,null,"Hiking trails/rural footpaths 遠足徑、鄉村小徑",9,null,null,null,null,null,null,null,null,null,null,null,null,null,null,null,null,null,null,null,null,null,"Others:",-1,null,null,"Sha Tin 沙田區",9,null,null,"Perina nuda 榕透翅毒蛾",11]
[null,null,"CSD",10,"Hong Kong Correctional Services","CSD",null,null,"Ad hoc",10,"Acer tutcheri嶺南槭",8,null,null,null,null,"Urban paths, pedestrian walkways, etc   市區行人徑、步行路徑",10,null,null,null,null,null,null,null,null,null,null,null,null,null,null,null,null,null,null,null,null,null,null,null,null,null,"Sham Shui Po 深水埗區",10,null,null,"Aphidoidea(Aphids) 芽蟲",12]
[null,null,"CSO",11,"Chief Secretary for Administration's Office","CSO",null,null,null,null,"Acmena acuminatissima肖蒲桃",9,null,null,null,null,"Bus stops, tram stops, taxi stops, minibus stops, etc. 巴士站站、電車站、的士站、小巴站等",11,null,null,null,null,null,null,null,null,null,null,null,null,null,null,null,null,null,null,null,null,null,null,null,null,null,"Southern 南區",11,null,null,"Pseudococcidae (mealy bugs) 粉介殼蟲",13]
[null,null,"CUSTOMS",12,"Customs and Excise Department","CUS",null,null,null,null,"Acmena 'Doubloon'紅車(千頭肖蒲桃)",10,null,null,null,null,"Expressways 幹線公路",12,null,null,null,null,null,null,null,null,null,null,null,null,null,null,null,null,null,null,null,null,null,null,null,null,null,"Tai Po 大埔區",12,null,null,"Collectotrichum spp. 炭疽病",14]
[null,null,"DEVB",13,"Development Bureau","DEV",null,null,null,null,"Acronychia pedunculata山油柑(降真香)",11,null,null,null,null,"Busy public road (4 lanes of above) 繁忙道路（4線行車道或以上）",13,null,null,null,null,null,null,null,null,null,null,null,null,null,null,null,null,null,null,null,null,null,null,null,null,null,"Tsuen Wan 荃灣區",13,null,null,"Phoma insidiosa 葉斑病",15]
[null,null,"DH",14,"Department of Health","DOH",null,null,null,null,"Adenanthera microsperma海紅豆",12,null,null,null,null,"Moderate public road (2 lanes) 中度繁忙道路（2線行車道）",14,null,null,null,null,null,null,null,null,null,null,null,null,null,null,null,null,null,null,null,null,null,null,null,null,null,"Tuen Mun 屯門區",14,null,null,"Phellinus noxius 有害木層孔菌(褐根病菌)",16]
[null,null,"DoJ",15,"Department of Justice","DOJ",null,null,null,null,"Adinandra millettii黃瑞木",13,null,null,null,null,"Minor public road/village road (1 lane) 疏落道路（1線行車道）",15,null,null,null,null,null,null,null,null,null,null,null,null,null,null,null,null,null,null,null,null,null,null,null,null,null,"Wan Chai 灣仔區",15,null,null,"Fuscoporia senex 老褐孔菌",17]
[null,null,"DSD",16,"Drainage Services Department","DSD",null,null,null,null,"Aegle marmelos木橘(肖木蘋果)",14,null,null,null,null,"Others 其他:",-1,null,null,null,null,null,null,null,null,null,null,null,null,null,null,null,null,null,null,null,null,null,null,null,null,null,"Wong Tai Sin 黃大仙區",16,null,null,"Ganoderma lucidum 赤靈芝",18]
[null,null,"EDB",17,"Education Bureau","EDB",null,null,null,null,"Agathis dammara貝殼杉",15,null,null,null,null,null,null,null,null,null,null,null,null,null,null,null,null,null,null,null,null,null,null,null,null,null,null,null,null,null,null,null,"Yau Tsim Mong 油尖旺區",17,null,null,"Ganoderma applanatum 樹舌靈芝",19]
[null,null,"EMSD",18,"Electrical and Mechanical Services Department","EMS",null,null,null,null,"Aglaia odorata米仔蘭",16,null,null,null,null,null,null,null,null,null,null,null,null,null,null,null,null,null,null,null,null,null,null,null,null,null,null,null,null,null,null,null,"Yuen Long 元朗區",18,null,null,"Inonotus rickii 瑞克纖孔菌",20]
[null,null,"EPD",19,"Environmental Protection Department","EPD",null,null,null,null,"Ailanthus fordii福氏臭椿(常綠臭椿)",17,null,null,null,null,null,null,null,null,null,null,null,null,null,null,null,null,null,null,null,null,null,null,null,null,null,null,null,null,null,null,null,null,null,null,null,"Kretzschmaria sandvicensis 炭墩屬",21]
[null,null,"FEHD",20,"Food and Environmental Hygiene Department","FEH",null,null,null,null,"Alangium chinense八角楓",18,null,null,null,null,null,null,null,null,null,null,null,null,null,null,null,null,null,null,null,null,null,null,null,null,null,null,null,null,null,null,null,null,null,null,null,"Rigidoporus ulmarius 榆硬孔菌",22]
[null,null,"FSD",21,"Fire Services Department","FSD",null,null,null,null,"Albizia chinensis楹樹",19]
[null,null,"GFS",22,"Government Flying Service","GFS",null,null,null,null,"Albizia julibrissin合歡",20]
[null,null,"GL",23,"Government Laboratory","GOL",null,null,null,null,"Albizia lebbeck大葉合歡",21]
[null,null,"GLD",24,"Government Logistics Department","GLD",null,null,null,null,"Albizia lucidior光葉合歡",22]
[null,null,"GPA",25,"Government Property Agency","GPA",null,null,null,null,"Albizia procera黃豆樹",23]
[null,null,"HAB",26,"Home Affairs Bureau","HAB",null,null,null,null,"Samanea saman (syn. Albizia saman)雨樹",24]
[null,null,"HAD",27,"Home Affairs Department","HAD",null,null,null,null,"Aleurites moluccana石栗",25]
[null,null,"HD",28,"Housing Department","HSD",null,null,null,null,"Alnus japonica赤楊",26]
[null,null,"HKO",29,"Hong Kong Observatory","HKO",null,null,null,null,"Alsophila spinulosa刺桫欏",27]
[null,null,"HKPF",30,"Hong Kong Police Force","HKP",null,null,null,null,"Alstonia scholaris糖膠樹(黑板樹)",28]
[null,null,"HKPO",31,"Hong Kong Post","POS",null,null,null,null,"Altingia chinensis蕈樹(阿丁楓、山荔枝)",29]
[null,null,"HyD",32,"Highways Department","HYD",null,null,null,null,"Amentotaxus argotaenia穗花杉",30]
[null,null,"ICAC",33,"Independent Commission Against Corruption","ICA",null,null,null,null,"Annona glabra圓滑番荔枝 ",31]
[null,null,"JUDICIARY",34,"Judiciary","JUD",null,null,null,null,"Annona squamosa番荔枝",32]
[null,null,"LandsD",35,"Lands Department","LAN",null,null,null,null,"Antidesma bunius五月茶(五味子)",33]
[null,null,"LCSD",36,"Leisure and Cultural Services Department","LCS",null,null,null,null,"Antidesma fordii黃毛五月茶",34]
[null,null,"MarDep",37,"Hong Kong Marine Department","MAD",null,null,null,null,"Antidesma ghaesembilla方葉五月茶",35]
[null,null,"RTHK",38,"Radio Television Hong Kong","RTH",null,null,null,null,"Antidesma japonicum日本五月茶",36]
[null,null,"SB",39,"Security Bureau","SEB",null,null,null,null,"Aphananthe cuspidata (syn. Gironniera nitida)滇糙葉樹(坡命工)",37]
[null,null,"SWD",40,"Social Welfare Department","SWD",null,null,null,null,"Aporusa dioica銀柴(大沙葉)",38]
[null,null,"TD",41,"Transport Department","TRD",null,null,null,null,"Aquilaria sinensis土沉香(牙香樹)",39]
[null,null,"Treasury",42,"The Treasury","TRE",null,null,null,null,"Aralia finlaysoniana虎刺楤木",40]
[null,null,"WSD",43,"Water Supplies Department","WSD",null,null,null,null,"Araucaria bidwillii大葉南洋杉",41]
[null,null,"HA",44,"Hospital Authority","HAU",null,null,null,null,"Araucaria cunninghamii南洋杉(花旗杉)",42]
[null,null,"AA",45,"Airport Authority","AAU",null,null,null,null,"Araucaria heterophylla異葉南洋杉",43]
[null,null,"The LINK",46,"The LINK","LIN",null,null,null,null,"Archidendron clypearia猴耳環",44]
[null,null,"MTRC",47,"Mass Transport Railway Corporation","MTR",null,null,null,null,"Archidendron lucidum亮葉猴耳環",45]
[null,null,"PriO",48,"Private Owner","PRO",null,null,null,null,"Archontophoenix alexandrae假檳榔",46]
[null,null,null,null,null,null,null,null,null,null,"Areca catechu檳榔",47]
[null,null,null,null,null,null,null,null,null,null,"Arenga pinnata砂糖椰子(桄榔)",48]
[null,null,null,null,null,null,null,null,null,null,"Artocarpus communis (syn. Artocarpus altilis) 麵包樹",49]
[null,null,null,null,null,null,null,null,null,null,"Artocarpus hypargyreus白桂木",50]
[null,null,null,null,null,null,null,null,null,null,"Artocarpus heterophyllus (syn. Artocarpus macrocarpon)菠蘿蜜",51]
[null,null,null,null,null,null,null,null,null,null,"Artocarpus nitidus subsp. lingnanensis桂木(紅桂木)",52]
[null,null,null,null,null,null,null,null,null,null,"Astrocaryum jauari-",53]
[null,null,null,null,null,null,null,null,null,null,"Averrhoa carambola楊桃",54]
[null,null,null,null,null,null,null,null,null,null,"Bauhinia x blakeana洋紫荊",55]
[null,null,null,null,null,null,null,null,null,null,"Bauhinia purpurea紅花羊蹄甲",56]
[null,null,null,null,null,null,null,null,null,null,"Bauhinia tomentosa黃花羊蹄甲",57]
[null,null,null,null,null,null,null,null,null,null,"Bauhinia variegata宮粉羊蹄甲",58]
[null,null,null,null,null,null,null,null,null,null,"Bauhinia variegata var. candida白花羊蹄甲",59]
[null,null,null,null,null,null,null,null,null,null,"Bischofia javanica秋楓",60]
[null,null,null,null,null,null,null,null,null,null,"Bischofia polycarpa重陽木",61]
[null,null,null,null,null,null,null,null,null,null,"Bixa orellana紅木",62]
[null,null,null,null,null,null,null,null,null,null,"Bombax ceiba木棉",63]
[null,null,null,null,null,null,null,null,null,null,"Brachychiton acerifolius槭葉蘋婆",64]
[null,null,null,null,null,null,null,null,null,null,"Brachychiton discolor澳洲蘋婆",65]
[null,null,null,null,null,null,null,null,null,null,"Brachychiton rupestris昆士蘭瓶子樹",66]
[null,null,null,null,null,null,null,null,null,null,"Bridelia tomentosa土蜜樹(逼迫仔)",67]
[null,null,null,null,null,null,null,null,null,null,"Broussonetia papyrifera構樹(殼木)",68]
[null,null,null,null,null,null,null,null,null,null,"Brownea grandiceps繡球樹",69]
[null,null,null,null,null,null,null,null,null,null,"Caesalpinia sappan蘇木",70]
[null,null,null,null,null,null,null,null,null,null,"Callistemon rigidus紅千層",71]
[null,null,null,null,null,null,null,null,null,null,"Callistemon viminalis串錢柳",72]
[null,null,null,null,null,null,null,null,null,null,"Callitris rhomoboidea菱形美麗柏",73]
[null,null,null,null,null,null,null,null,null,null,"Callitris cupressiformis彎垂柏松",74]
[null,null,null,null,null,null,null,null,null,null,"Callitris robusta柏松",75]
[null,null,null,null,null,null,null,null,null,null,"Calocedrus macrolepis翠柏",76]
[null,null,null,null,null,null,null,null,null,null,"Camellia crapnelliana紅皮糙果茶(克氏茶)",77]
[null,null,null,null,null,null,null,null,null,null,"Camellia granthamiana大苞山茶(葛量洪茶)",78]
[null,null,null,null,null,null,null,null,null,null,"Camellia hongkongensis香港茶",79]
[null,null,null,null,null,null,null,null,null,null,"Camellia japonica山茶",80]
[null,null,null,null,null,null,null,null,null,null,"Camellia salicifolia柳葉茶",81]
[null,null,null,null,null,null,null,null,null,null,"Cananga odorata依蘭(依蘭香)",82]
[null,null,null,null,null,null,null,null,null,null,"Canarium album橄欖(白欖)",83]
[null,null,null,null,null,null,null,null,null,null,"Canarium tramdenum烏欖",84]
[null,null,null,null,null,null,null,null,null,null,"Canthium dicoccum魚骨木",85]
[null,null,null,null,null,null,null,null,null,null,"Carallia brachiata竹節樹",86]
[null,null,null,null,null,null,null,null,null,null,"Carica papaya番木瓜",87]
[null,null,null,null,null,null,null,null,null,null,"Caryota obtusa槿棕",88]
[null,null,null,null,null,null,null,null,null,null,"Caryota maxima (syn. Caryota ochlandra)魚尾葵",89]
[null,null,null,null,null,null,null,null,null,null,"Caryota rumphiana-",90]
[null,null,null,null,null,null,null,null,null,null,"Caryota urens董棕(大魚尾葵)",91]
[null,null,null,null,null,null,null,null,null,null,"Cassia fistula臘腸樹(豬腸豆)",92]
[null,null,null,null,null,null,null,null,null,null,"Cassia javanica爪哇決明",93]
[null,null,null,null,null,null,null,null,null,null,"Cassia javanica var. indochinensis節果決明",94]
[null,null,null,null,null,null,null,null,null,null,"Cassia roxburghii紅花決明(紅桂木)",95]
[null,null,null,null,null,null,null,null,null,null,"Cassia roxburghii 'Marginata'紅槐",96]
[null,null,null,null,null,null,null,null,null,null,"Cassia speciosa大葉黃槐",97]
[null,null,null,null,null,null,null,null,null,null,"Cassia spectabilis美國槐(美麗決明)",98]
[null,null,null,null,null,null,null,null,null,null,"Castanopsis carlesii米櫧",99]
[null,null,null,null,null,null,null,null,null,null,"Castanopsis concinna華南錐",100]
[null,null,null,null,null,null,null,null,null,null,"Castanopsis eyrei甜櫧",101]
[null,null,null,null,null,null,null,null,null,null,"Castanopsis fabri羅浮錐",102]
[null,null,null,null,null,null,null,null,null,null,"Castanopsis fargesii栲",103]
[null,null,null,null,null,null,null,null,null,null,"Castanopsis fissa黧蒴錐(裂斗錐栗)",104]
[null,null,null,null,null,null,null,null,null,null,"Castanopsis fordii毛錐",105]
[null,null,null,null,null,null,null,null,null,null,"Castanopsis kawakamii吊皮錐",106]
[null,null,null,null,null,null,null,null,null,null,"Castanopsis lamontii鹿角錐",107]
[null,null,null,null,null,null,null,null,null,null,"Castanopsis sclerophylla苦櫧",108]
[null,null,null,null,null,null,null,null,null,null,"Castanospermum australe澳洲豆樹",109]
[null,null,null,null,null,null,null,null,null,null,"Casuarina cunninghamia細枝木麻黃",110]
[null,null,null,null,null,null,null,null,null,null,"Casuarina equisetifolia木麻黃",111]
[null,null,null,null,null,null,null,null,null,null,"Casuarina stricta牛尾松",112]
[null,null,null,null,null,null,null,null,null,null,"Catunaregam spinosa (syn. Randia spinosa)山石榴(山蒲桃)",113]
[null,null,null,null,null,null,null,null,null,null,"Cedrus deodara雪松",114]
[null,null,null,null,null,null,null,null,null,null,"Ceiba pentandra吉貝(美洲木棉)",115]
[null,null,null,null,null,null,null,null,null,null,"Celtis philippinensis大果油朴(大朴)",116]
[null,null,null,null,null,null,null,null,null,null,"Celtis sinensis朴樹",117]
[null,null,null,null,null,null,null,null,null,null,"Celtis timorensis假玉桂(樟葉朴)",118]
[null,null,null,null,null,null,null,null,null,null,"Cerbera manghas海芒果",119]
[null,null,null,null,null,null,null,null,null,null,"Cercis chinensis紫荊",120]
[null,null,null,null,null,null,null,null,null,null,"Chamaecyparis pisifera  'Squarrosa'絨柏(雲松)",121]
[null,null,null,null,null,null,null,null,null,null,"Choerospondias axillaris南酸棗(酸棗)",122]
[null,null,null,null,null,null,null,null,null,null,"Chorisia insignis白花絲木棉",123]
[null,null,null,null,null,null,null,null,null,null,"Chorisia speciosa絲木棉(美人樹)",124]
[null,null,null,null,null,null,null,null,null,null,"Chukrasia tabularis麻楝",125]
[null,null,null,null,null,null,null,null,null,null,"Cinnamomum aromaticum (syn. Cinnamomum cassia)肉桂",126]
[null,null,null,null,null,null,null,null,null,null,"Cinnamomum burmannii陰香",127]
[null,null,null,null,null,null,null,null,null,null,"Cinnamomum camphora樟",128]
[null,null,null,null,null,null,null,null,null,null,"Cinnamomum parthenoxylon黃樟",129]
[null,null,null,null,null,null,null,null,null,null,"Citrus limonia黎檬",130]
[null,null,null,null,null,null,null,null,null,null,"Citrus maxima柚",131]
[null,null,null,null,null,null,null,null,null,null,"Citrus reticulata柑橘",132]
[null,null,null,null,null,null,null,null,null,null,"Citrus sinensis甜橙(橙)",133]
[null,null,null,null,null,null,null,null,null,null,"Citrus x paradisi葡萄柚(西柚)",134]
[null,null,null,null,null,null,null,null,null,null,"Claoxylon indicum白桐樹(丟了捧)",135]
[null,null,null,null,null,null,null,null,null,null,"Clausena lansium黃皮",136]
[null,null,null,null,null,null,null,null,null,null,"Cleidiocarpon cavaleriei蝴蝶果",137]
[null,null,null,null,null,null,null,null,null,null,"Cleistocalyx nervosum水翁",138]
[null,null,null,null,null,null,null,null,null,null,"Cocos nucifera椰子",139]
[null,null,null,null,null,null,null,null,null,null,"Cordia dichotoma破布木",140]
[null,null,null,null,null,null,null,null,null,null,"Cordia sebestena紅花破布木",141]
[null,null,null,null,null,null,null,null,null,null,"Crateva trifoliata鈍葉魚木",142]
[null,null,null,null,null,null,null,null,null,null,"Crateva unilocularis樹頭菜(魚木)",143]
[null,null,null,null,null,null,null,null,null,null,"Cratoxylum cochinchinense黃牛木",144]
[null,null,null,null,null,null,null,null,null,null,"Crescentia alata十字架樹",145]
[null,null,null,null,null,null,null,null,null,null,"Cryptomeria japonica日本柳杉",146]
[null,null,null,null,null,null,null,null,null,null,"Cunninghamia lanceolata杉木",147]
[null,null,null,null,null,null,null,null,null,null,"Cupressus funebris柏木(垂柏)",148]
[null,null,null,null,null,null,null,null,null,null,"Cyclobalanopsis blakei櫟子青岡",149]
[null,null,null,null,null,null,null,null,null,null,"Cyclobalanopsis championii嶺南青岡",150]
[null,null,null,null,null,null,null,null,null,null,"Cyclobalanopsis chungii福建青岡",151]
[null,null,null,null,null,null,null,null,null,null,"Cyclobalanopsis edithiae華南青岡",152]
[null,null,null,null,null,null,null,null,null,null,"Cyclobalanopsis glauca青岡",153]
[null,null,null,null,null,null,null,null,null,null,"Cyclobalanopsis hui雷公青岡",154]
[null,null,null,null,null,null,null,null,null,null,"Cyclobalanopsis litseoides木薑葉青岡",155]
[null,null,null,null,null,null,null,null,null,null,"Cyclobalanopsis myrsinifolia (syn. Quercus  myrsinifolia)小葉青岡",156]
[null,null,null,null,null,null,null,null,null,null,"Cyclobalanopsis neglecta (syn. Quercus bambusifolia)竹葉青岡",157]
[null,null,null,null,null,null,null,null,null,null,"Dacrycarpus imbricatus雞毛松",158]
[null,null,null,null,null,null,null,null,null,null,"Dalbergia odorifera降香黃檀",159]
[null,null,null,null,null,null,null,null,null,null,"Dalbergia sissoo印度黃檀",160]
[null,null,null,null,null,null,null,null,null,null,"Dalbergia assamica (syn. Dalbergia balansae) 南嶺黃檀",161]
[null,null,null,null,null,null,null,null,null,null,"Daphniphyllum calycinum牛耳楓",162]
[null,null,null,null,null,null,null,null,null,null,"Daphniphyllum oldhamii虎皮楠",163]
[null,null,null,null,null,null,null,null,null,null,"Decaspermum gracilentum子楝樹(桑枝米碎葉)",164]
[null,null,null,null,null,null,null,null,null,null,"Delonix regia鳳凰木",165]
[null,null,null,null,null,null,null,null,null,null,"Dicksonia antarctica塔斯馬尼亞蚌殼蕨",166]
[null,null,null,null,null,null,null,null,null,null,"Dillenia alata (syn. Wormia alata)厚葉黃花樹",167]
[null,null,null,null,null,null,null,null,null,null,"Dillenia indica五椏果(第倫桃)",168]
[null,null,null,null,null,null,null,null,null,null,"Dimocarpus longan龍眼",169]
[null,null,null,null,null,null,null,null,null,null,"Diospyros eriantha烏柿",170]
[null,null,null,null,null,null,null,null,null,null,"Diospyros kaki柿",171]
[null,null,null,null,null,null,null,null,null,null,"Diospyros morrisiana羅浮柿",172]
[null,null,null,null,null,null,null,null,null,null,"Diospyros tutcheri嶺南柿",173]
[null,null,null,null,null,null,null,null,null,null,"Dizygotheca elegantissima孔雀木",174]
[null,null,null,null,null,null,null,null,null,null,"Markhamia stipulata var. kerrii (syn. Dolichandrone cauda-felina)貓尾木",175]
[null,null,null,null,null,null,null,null,null,null,"Dombeya wallichii吊芙蓉",176]
[null,null,null,null,null,null,null,null,null,null,"Dracontomelon duperreanum人面子",177]
[null,null,null,null,null,null,null,null,null,null,"Drypetes roxburghii藥用核果木",178]
[null,null,null,null,null,null,null,null,null,null,"Dysoxylum hongkongense香港樫木",179]
[null,null,null,null,null,null,null,null,null,null,"Ehretia acuminata厚殼樹",180]
[null,null,null,null,null,null,null,null,null,null,"Ehretia longiflora長花厚殼樹",181]
[null,null,null,null,null,null,null,null,null,null,"Elaeis guineensis油棕",182]
[null,null,null,null,null,null,null,null,null,null,"Elaeocarpus apiculatus長芒杜英(尖葉杜英)",183]
[null,null,null,null,null,null,null,null,null,null,"Elaeocarpus balansae大葉杜英",184]
[null,null,null,null,null,null,null,null,null,null,"Elaeocarpus chinensis中華杜英",185]
[null,null,null,null,null,null,null,null,null,null,"Elaeocarpus decipiens杜英",186]
[null,null,null,null,null,null,null,null,null,null,"Elaeocarpus dubius顯脈杜英",187]
[null,null,null,null,null,null,null,null,null,null,"Elaeocarpus hainanensis水石榕",188]
[null,null,null,null,null,null,null,null,null,null,"Elaeocarpus japonicus日本杜英",189]
[null,null,null,null,null,null,null,null,null,null,"Elaeocarpus nitentifolius絹毛杜英",190]
[null,null,null,null,null,null,null,null,null,null,"Elaeocarpus sylvestris山杜英(膽八樹)",191]
[null,null,null,null,null,null,null,null,null,null,"Elaeodendron orientale福木",192]
[null,null,null,null,null,null,null,null,null,null,"Endospermum chinense黃桐",193]
[null,null,null,null,null,null,null,null,null,null,"Eriobotrya fragrans山枇杷(香花枇杷)",194]
[null,null,null,null,null,null,null,null,null,null,"Eriobotrya japonica枇杷",195]
[null,null,null,null,null,null,null,null,null,null,"Erythrina caffra南非刺桐",196]
[null,null,null,null,null,null,null,null,null,null,"Erythrina corallodendron龍牙花",197]
[null,null,null,null,null,null,null,null,null,null,"Erythrina crista-galli雞冠刺桐",198]
[null,null,null,null,null,null,null,null,null,null,"Erythrina indica 'Picta'花葉刺桐",199]
[null,null,null,null,null,null,null,null,null,null,"Erythrina speciosa象牙花",200]
[null,null,null,null,null,null,null,null,null,null,"Erythrina variegata刺桐",201]
[null,null,null,null,null,null,null,null,null,null,"Eucalyptus calophylla紅花桉",202]
[null,null,null,null,null,null,null,null,null,null,"Eucalyptus camaldulensis赤桉",203]
[null,null,null,null,null,null,null,null,null,null,"Eucalyptus cinerea銀葉桉",204]
[null,null,null,null,null,null,null,null,null,null,"Eucalyptus citriodora檸檬桉",205]
[null,null,null,null,null,null,null,null,null,null,"Eucalyptus exserta窿緣桉",206]
[null,null,null,null,null,null,null,null,null,null,"Eucalyptus maculata花皮桉",207]
[null,null,null,null,null,null,null,null,null,null,"Eucalyptus robusta大葉桉",208]
[null,null,null,null,null,null,null,null,null,null,"Eucalyptus saligna柳葉桉",209]
[null,null,null,null,null,null,null,null,null,null,"Eucalyptus tereticornis細葉桉",210]
[null,null,null,null,null,null,null,null,null,null,"Eucalyptus torelliana毛葉桉",211]
[null,null,null,null,null,null,null,null,null,null,"Eugenia oleina紅心樹",212]
[null,null,null,null,null,null,null,null,null,null,"Euphorbia continifolia非洲紅",213]
[null,null,null,null,null,null,null,null,null,null,"Excoecaria agallocha海漆",214]
[null,null,null,null,null,null,null,null,null,null,"Falcataria moluccana (syn. Albizia falcataria)南洋楹",215]
[null,null,null,null,null,null,null,null,null,null,"Ficus altissima高山榕(雞榕)",216]
[null,null,null,null,null,null,null,null,null,null,"Ficus annulata環紋榕",217]
[null,null,null,null,null,null,null,null,null,null,"Ficus benghalensis印度榕",218]
[null,null,null,null,null,null,null,null,null,null,"Ficus benjamina垂葉榕",219]
[null,null,null,null,null,null,null,null,null,null,"Ficus carica無花果",220]
[null,null,null,null,null,null,null,null,null,null,"Ficus concinna雅榕",221]
[null,null,null,null,null,null,null,null,null,null,"Ficus elastica印度榕(印度橡樹)",222]
[null,null,null,null,null,null,null,null,null,null,"Ficus erecta (syn. Ficus erecta var. beecheyana)天仙果",223]
[null,null,null,null,null,null,null,null,null,null,"Ficus fistulosa水同木",224]
[null,null,null,null,null,null,null,null,null,null,"Ficus hispida對葉榕(牛乳樹)",225]
[null,null,null,null,null,null,null,null,null,null,"Ficus langkokensis青藤公",226]
[null,null,null,null,null,null,null,null,null,null,"Ficus longifolia長葉榕",227]
[null,null,null,null,null,null,null,null,null,null,"Ficus lyrata大琴葉榕",228]
[null,null,null,null,null,null,null,null,null,null,"Ficus microcarpa榕樹(細葉榕)",229]
[null,null,null,null,null,null,null,null,null,null,"Ficus nervosa凸葉榕(九丁樹)",230]
[null,null,null,null,null,null,null,null,null,null,"Ficus religiosa菩提樹",231]
[null,null,null,null,null,null,null,null,null,null,"Ficus rumphii心葉榕(假菩提樹)",232]
[null,null,null,null,null,null,null,null,null,null,"Ficus subpisocarpa筆管榕",233]
[null,null,null,null,null,null,null,null,null,null,"Ficus tinctoria subsp. gibbosa斜葉榕(水榕)",234]
[null,null,null,null,null,null,null,null,null,null,"Ficus triangularis三角榕",235]
[null,null,null,null,null,null,null,null,null,null,"Ficus variegata (syn. Ficus variegata var. chlorocarpa)青果榕",236]
[null,null,null,null,null,null,null,null,null,null,"Ficus variolosa變葉榕",237]
[null,null,null,null,null,null,null,null,null,null,"Ficus vasculosa白肉榕",238]
[null,null,null,null,null,null,null,null,null,null,"Ficus virens (syn. Ficus virens var. sublanceolata)大葉榕(黃葛樹)",239]
[null,null,null,null,null,null,null,null,null,null,"Firmiana simplex梧桐",240]
[null,null,null,null,null,null,null,null,null,null,"Fokienia hodginsii福建柏",241]
[null,null,null,null,null,null,null,null,null,null,"Fraxinus americana美國灰木",242]
[null,null,null,null,null,null,null,null,null,null,"Fraxinus chinensis白蠟樹",243]
[null,null,null,null,null,null,null,null,null,null,"Fraxinus griffithii (syn. Fraxinus formosana)光蠟樹",244]
[null,null,null,null,null,null,null,null,null,null,"Fraxinus insularis (syn. Fraxinus retusa)苦櫪木",245]
[null,null,null,null,null,null,null,null,null,null,"Garcinia multiflora多花山竹子",246]
[null,null,null,null,null,null,null,null,null,null,"Garcinia oblongifolia嶺南山竹子(黃牙果)",247]
[null,null,null,null,null,null,null,null,null,null,"Garcinia spicata福木",248]
[null,null,null,null,null,null,null,null,null,null,"Garcinia subelliptica菲島福木",249]
[null,null,null,null,null,null,null,null,null,null,"Ginkgo biloba銀杏(白果樹)",250]
[null,null,null,null,null,null,null,null,null,null,"Gironniera subaequalis白顏樹",251]
[null,null,null,null,null,null,null,null,null,null,"Gleditsia australis小果皂莢",252]
[null,null,null,null,null,null,null,null,null,null,"Gleditsia fera華南皂莢",253]
[null,null,null,null,null,null,null,null,null,null,"Glochidion lanceolarium艾膠算盤子",254]
[null,null,null,null,null,null,null,null,null,null,"Glochidion wrightii白背算盤子",255]
[null,null,null,null,null,null,null,null,null,null,"Glyptostrobus pensilis水松",256]
[null,null,null,null,null,null,null,null,null,null,"Gmelina arborea雲南石梓(印度石梓)",257]
[null,null,null,null,null,null,null,null,null,null,"Gmelina chinensis石梓(華石梓)",258]
[null,null,null,null,null,null,null,null,null,null,"Gordonia axillaris大頭茶",259]
[null,null,null,null,null,null,null,null,null,null,"Grevillea banksii昆士蘭銀樺(紅花銀樺)",260]
[null,null,null,null,null,null,null,null,null,null,"Grevillea robusta銀樺",261]
[null,null,null,null,null,null,null,null,null,null,"Grewia asiatica山桑",262]
[null,null,null,null,null,null,null,null,null,null,"Grewia eriocarpa毛果扁擔捍",263]
[null,null,null,null,null,null,null,null,null,null,"Hevea brasiliensis巴西橡膠樹",264]
[null,null,null,null,null,null,null,null,null,null,"Heritiera angustata長柄銀葉樹",265]
[null,null,null,null,null,null,null,null,null,null,"Heritiera littoralis銀葉樹",266]
[null,null,null,null,null,null,null,null,null,null,"Heteropanax fragrans幌傘楓 (火通木)",267]
[null,null,null,null,null,null,null,null,null,null,"Hibiscus tiliaceus黃槿",268]
[null,null,null,null,null,null,null,null,null,null,"Homalium cochinchinense天料木",269]
[null,null,null,null,null,null,null,null,null,null,"Homalium hainanensis紅花天料木",270]
[null,null,null,null,null,null,null,null,null,null,"Howea belmoreana拱葉棕",271]
[null,null,null,null,null,null,null,null,null,null,"Howea forsteriana根地亞葵",272]
[null,null,null,null,null,null,null,null,null,null,"Hydnocarpus anthelminthica泰國大風子",273]
[null,null,null,null,null,null,null,null,null,null,"Hyophorbe lagenicaulis酒瓶椰子",274]
[null,null,null,null,null,null,null,null,null,null,"Hyophorbe verschaffeltii棍棒椰子",275]
[null,null,null,null,null,null,null,null,null,null,"Ilex chapaensis沙壩冬青",276]
[null,null,null,null,null,null,null,null,null,null,"Ilex cinerea灰冬青",277]
[null,null,null,null,null,null,null,null,null,null,"Ilex cornuta枸骨",278]
[null,null,null,null,null,null,null,null,null,null,"Ilex ficoidea榕葉冬青",279]
[null,null,null,null,null,null,null,null,null,null,"Ilex graciliflora細花冬青",280]
[null,null,null,null,null,null,null,null,null,null,"Ilex latifolia大葉冬青",281]
[null,null,null,null,null,null,null,null,null,null,"Ilex macrocarpa大果冬青",282]
[null,null,null,null,null,null,null,null,null,null,"Ilex memecylifolia谷木葉冬青",283]
[null,null,null,null,null,null,null,null,null,null,"Ilex rotunda鐵冬青",284]
[null,null,null,null,null,null,null,null,null,null,"Ilex rotunda var. microcarpa小果鐵冬青",285]
[null,null,null,null,null,null,null,null,null,null,"Ilex viridis綠冬青(亮葉冬青)",286]
[null,null,null,null,null,null,null,null,null,null,"Itea chinensis鼠刺(老鼠刺)",287]
[null,null,null,null,null,null,null,null,null,null,"Jacaranda mimosifolia藍花楹",288]
[null,null,null,null,null,null,null,null,null,null,"Juniperus chinensis圓柏",289]
[null,null,null,null,null,null,null,null,null,null,"Juniperus chinensis 'Aurea'金葉檜",290]
[null,null,null,null,null,null,null,null,null,null,"Juniperus chinensis 'Kaizuca'龍柏",291]
[null,null,null,null,null,null,null,null,null,null,"Juniperus chinensis 'Globosa'球柏",292]
[null,null,null,null,null,null,null,null,null,null,"Juniperus chinensis 'Sargentii'清水山檜",293]
[null,null,null,null,null,null,null,null,null,null,"Juniperus excelsa 'Stricta'洋白柏",294]
[null,null,null,null,null,null,null,null,null,null,"Juniperus formosana刺柏",295]
[null,null,null,null,null,null,null,null,null,null,"Keteleeria fortunei油杉",296]
[null,null,null,null,null,null,null,null,null,null,"Khaya senegalensis非洲楝",297]
[null,null,null,null,null,null,null,null,null,null,"Kigelia pinnata吊瓜樹",298]
[null,null,null,null,null,null,null,null,null,null,"Koelreuteria bipinnata複羽葉欒樹",299]
[null,null,null,null,null,null,null,null,null,null,"Koelreuteria formosana台灣欒樹",300]
[null,null,null,null,null,null,null,null,null,null,"Lagerstroemia fordii廣東紫薇",301]
[null,null,null,null,null,null,null,null,null,null,"Lagerstroemia indica紫薇",302]
[null,null,null,null,null,null,null,null,null,null,"Lagerstroemia speciosa大花紫薇(洋紫薇)",303]
[null,null,null,null,null,null,null,null,null,null,"Leptospermum petersonii檸檬茶薇",304]
[null,null,null,null,null,null,null,null,null,null,"Leucaena leucocephala銀合歡",305]
[null,null,null,null,null,null,null,null,null,null,"Ligustrum liukiuense (syn. Ligustrum amamianum)台灣女貞",306]
[null,null,null,null,null,null,null,null,null,null,"Ligustrum lucidum女貞",307]
[null,null,null,null,null,null,null,null,null,null,"Ligustrum sinense山指甲",308]
[null,null,null,null,null,null,null,null,null,null,"Liquidambar formosana楓香",309]
[null,null,null,null,null,null,null,null,null,null,"Litchi chinensis荔枝",310]
[null,null,null,null,null,null,null,null,null,null,"Lithocarpus attenuatus尖葉柯",311]
[null,null,null,null,null,null,null,null,null,null,"Lithocarpus corneus煙斗柯",312]
[null,null,null,null,null,null,null,null,null,null,"Lithocarpus elizabethae厚斗柯",313]
[null,null,null,null,null,null,null,null,null,null,"Lithocarpus fenestratus var. brachycarpus泥柯",314]
[null,null,null,null,null,null,null,null,null,null,"Lithocarpus glaber柯",315]
[null,null,null,null,null,null,null,null,null,null,"Lithocarpus haipinii耳柯",316]
[null,null,null,null,null,null,null,null,null,null,"Lithocarpus hancei硬殼柯",317]
[null,null,null,null,null,null,null,null,null,null,"Lithocarpus harlandii港柯(夏蘭柯)",318]
[null,null,null,null,null,null,null,null,null,null,"Lithocarpus irwinii廣南柯 ",319]
[null,null,null,null,null,null,null,null,null,null,"Lithocarpus iteaphyllus鼠刺葉柯",320]
[null,null,null,null,null,null,null,null,null,null,"Lithocarpus litseifolius木姜葉柯 ",321]
[null,null,null,null,null,null,null,null,null,null,"Lithocarpus macilentus粉葉柯",322]
[null,null,null,null,null,null,null,null,null,null,"Lithocarpus quercifolius櫟葉柯",323]
[null,null,null,null,null,null,null,null,null,null,"Litsea cubeba木薑子(山蒼樹)",324]
[null,null,null,null,null,null,null,null,null,null,"Litsea glutinosa潺槁樹",325]
[null,null,null,null,null,null,null,null,null,null,"Litsea monopetala假柿木薑子(假柿樹)",326]
[null,null,null,null,null,null,null,null,null,null,"Livistona australis澳洲蒲葵",327]
[null,null,null,null,null,null,null,null,null,null,"Livistona chinensis蒲葵",328]
[null,null,null,null,null,null,null,null,null,null,"Livistona decipiens迷惑蒲葵",329]
[null,null,null,null,null,null,null,null,null,null,"Lophostemon confertus紅膠木",330]
[null,null,null,null,null,null,null,null,null,null,"Lysidice rhodostegia儀花",331]
[null,null,null,null,null,null,null,null,null,null,"Macadamia ternifolia澳洲堅果",332]
[null,null,null,null,null,null,null,null,null,null,"Macaranga tanarius var. tomentosa血桐",333]
[null,null,null,null,null,null,null,null,null,null,"Machilus breviflora短序潤楠",334]
[null,null,null,null,null,null,null,null,null,null,"Machilus chekiangensis浙江潤楠",335]
[null,null,null,null,null,null,null,null,null,null,"Machilus chinensis華潤楠(香港楠)",336]
[null,null,null,null,null,null,null,null,null,null,"Machilus gamblei黃心樹",337]
[null,null,null,null,null,null,null,null,null,null,"Machilus grijsii黃絨潤楠",338]
[null,null,null,null,null,null,null,null,null,null,"Machilus kwangtungensis廣東潤楠",339]
[null,null,null,null,null,null,null,null,null,null,"Machilus leptophylla薄葉潤楠",340]
[null,null,null,null,null,null,null,null,null,null,"Machilus oreophila水楠",341]
[null,null,null,null,null,null,null,null,null,null,"Machilus pauhoi刨花潤楠",342]
[null,null,null,null,null,null,null,null,null,null,"Machilus robusta粗壯潤楠",343]
[null,null,null,null,null,null,null,null,null,null,"Machilus thunbergii紅楠",344]
[null,null,null,null,null,null,null,null,null,null,"Machilus velutina絨毛潤楠",345]
[null,null,null,null,null,null,null,null,null,null,"Machilus wangchiana信宜潤楠",346]
[null,null,null,null,null,null,null,null,null,null,"Magnolia championii香港木蘭",347]
[null,null,null,null,null,null,null,null,null,null,"Yulania denudata (syn. Magnolia denudata)玉蘭(玉堂春)",348]
[null,null,null,null,null,null,null,null,null,null,"Magnolia grandiflora荷花玉蘭(洋玉蘭)",349]
[null,null,null,null,null,null,null,null,null,null,"Yulania liliiflora (syn. Magnolia liliiflora)紫玉蘭(辛夷)",350]
[null,null,null,null,null,null,null,null,null,null,"Yulania x soulangeana (syn. Magnolia soulangeana) 二喬木蘭(紫玉蘭)",351]
[null,null,null,null,null,null,null,null,null,null,"Mallotus apelta白背葉(白桐)",352]
[null,null,null,null,null,null,null,null,null,null,"Mallotus paniculatus白楸",353]
[null,null,null,null,null,null,null,null,null,null,"Malus halliana垂絲海棠",354]
[null,null,null,null,null,null,null,null,null,null,"Malus micromalus西府海棠",355]
[null,null,null,null,null,null,null,null,null,null,"Mangifera indica芒果",356]
[null,null,null,null,null,null,null,null,null,null,"Mangifera persiciformis扁桃",357]
[null,null,null,null,null,null,null,null,null,null,"Manglietia glauca灰木蓮",358]
[null,null,null,null,null,null,null,null,null,null,"Manglietia insignis紅花木蓮",359]
[null,null,null,null,null,null,null,null,null,null,"Manglietia megaphylla大葉木蓮",360]
[null,null,null,null,null,null,null,null,null,null,"Manilkara zapota人心果",361]
[null,null,null,null,null,null,null,null,null,null,"Melaleuca cajuputi subsp. cumingiana白千層",362]
[null,null,null,null,null,null,null,null,null,null,"Melaleuca styphelioides捲葉千層",363]
[null,null,null,null,null,null,null,null,null,null,"Melia azedarach楝(苦楝)",364]
[null,null,null,null,null,null,null,null,null,null,"Melicope pteleifolia (syn. Evodia lepta)密茱萸(三椏苦)",365]
[null,null,null,null,null,null,null,null,null,null,"Metasequoia glyptostroboides水杉",366]
[null,null,null,null,null,null,null,null,null,null,"Michelia champaca黃蘭",367]
[null,null,null,null,null,null,null,null,null,null,"Michelia chapensis樂昌含笑(景烈含笑)",368]
[null,null,null,null,null,null,null,null,null,null,"Michelia figo含笑",369]
[null,null,null,null,null,null,null,null,null,null,"Michelia macclurei醉香含笑(火力楠)",370]
[null,null,null,null,null,null,null,null,null,null,"Michelia maudiae深山含笑(莫氏含笑)",371]
[null,null,null,null,null,null,null,null,null,null,"Michelia x alba白蘭",372]
[null,null,null,null,null,null,null,null,null,null,"Microcos nervosa破布葉(布渣葉)",373]
[null,null,null,null,null,null,null,null,null,null,"Mimusops elengi香欖(牛油果)",374]
[null,null,null,null,null,null,null,null,null,null,"Morus alba桑",375]
[null,null,null,null,null,null,null,null,null,null,"Murraya paniculata九里香",376]
[null,null,null,null,null,null,null,null,null,null,"Myrica rubra楊梅",377]
[null,null,null,null,null,null,null,null,null,null,"Nageia nagi (syn. Podocarpus nagi)竹柏",378]
[null,null,null,null,null,null,null,null,null,null,"Nauclea officinalis烏檀",379]
[null,null,null,null,null,null,null,null,null,null,"Nauclea orientalis東方烏檀",380]
[null,null,null,null,null,null,null,null,null,null,"Neodypsis decaryi三角葵",381]
[null,null,null,null,null,null,null,null,null,null,"Nerium oleander夾竹桃",382]
[null,null,null,null,null,null,null,null,null,null,"Nerium oleander 'Album'白花夾竹桃",383]
[null,null,null,null,null,null,null,null,null,null,"Nerium oleander 'Varigatum plenum'花葉夾竹桃",384]
[null,null,null,null,null,null,null,null,null,null,"Nolina recurvata酒瓶蘭",385]
[null,null,null,null,null,null,null,null,null,null,"Ormosia emarginata凹葉紅豆",386]
[null,null,null,null,null,null,null,null,null,null,"Ormosia henryi花梨木",387]
[null,null,null,null,null,null,null,null,null,null,"Ormosia indurata韌莢紅豆",388]
[null,null,null,null,null,null,null,null,null,null,"Ormosia pachycarpa茸莢紅豆",389]
[null,null,null,null,null,null,null,null,null,null,"Ormosia pinnata海南紅豆",390]
[null,null,null,null,null,null,null,null,null,null,"Ormosia semicastrata軟莢紅豆",391]
[null,null,null,null,null,null,null,null,null,null,"Oroxylum indicum木蝴蝶(千層紙)",392]
[null,null,null,null,null,null,null,null,null,null,"Osmanthus fragrans桂花(木犀)",393]
[null,null,null,null,null,null,null,null,null,null,"Osmanthus matsumuranus牛矢果",394]
[null,null,null,null,null,null,null,null,null,null,"Pachira aquatica瓜栗",395]
[null,null,null,null,null,null,null,null,null,null,"Pachira macrocarpa瓜栗",396]
[null,null,null,null,null,null,null,null,null,null,"Pandanus furcatus分叉露兜",397]
[null,null,null,null,null,null,null,null,null,null,"Pandanus tectorius露兜樹",398]
[null,null,null,null,null,null,null,null,null,null,"Pandanus utilis扇葉露兜樹 (馬達加斯加露兜)",399]
[null,null,null,null,null,null,null,null,null,null,"Parkia javanica球花豆",400]
[null,null,null,null,null,null,null,null,null,null,"Paulownia fortunei白花泡桐(泡桐)",401]
[null,null,null,null,null,null,null,null,null,null,"Pavetta hongkongensis香港大沙葉(茜木)",402]
[null,null,null,null,null,null,null,null,null,null,"Peltophorum pterocarpum盾柱木(雙翼豆)",403]
[null,null,null,null,null,null,null,null,null,null,"Peltophorum tonkinense銀珠",404]
[null,null,null,null,null,null,null,null,null,null,"Persea americana鱷梨 (牛油果)",405]
[null,null,null,null,null,null,null,null,null,null,"Phoenix canariensis加那利刺葵",406]
[null,null,null,null,null,null,null,null,null,null,"Phoenix dactylifera海棗(棗椰樹)",407]
[null,null,null,null,null,null,null,null,null,null,"Phoenix loureiroi刺葵",408]
[null,null,null,null,null,null,null,null,null,null,"Phoenix reclinata非洲海棗",409]
[null,null,null,null,null,null,null,null,null,null,"Phoenix roebelenii日本葵(軟葉刺葵)",410]
[null,null,null,null,null,null,null,null,null,null,"Phoenix rupicola崖葵",411]
[null,null,null,null,null,null,null,null,null,null,"Pinanga sinii燕尾山檳榔",412]
[null,null,null,null,null,null,null,null,null,null,"Pinus elliottii濕地松(愛氏松)",413]
[null,null,null,null,null,null,null,null,null,null,"Pinus massoniana馬尾松",414]
[null,null,null,null,null,null,null,null,null,null,"Pinus taeda火炬松",415]
[null,null,null,null,null,null,null,null,null,null,"Pithecellobium dulce牛蹄豆",416]
[null,null,null,null,null,null,null,null,null,null,"Platanus x acerifolia英國梧桐(二球懸鈴木)",417]
[null,null,null,null,null,null,null,null,null,null,"Plumeria obtusa鈍葉雞蛋花",418]
[null,null,null,null,null,null,null,null,null,null,"Plumeria rubra雞蛋花",419]
[null,null,null,null,null,null,null,null,null,null,"Podocarpus costlalis蘭嶼羅漢松",420]
[null,null,null,null,null,null,null,null,null,null,"Podocarpus macrophyllus羅漢松",421]
[null,null,null,null,null,null,null,null,null,null,"Podocarpus neriifolius百日青",422]
[null,null,null,null,null,null,null,null,null,null,"Polyalthia longifolia var. pendula長葉暗羅",423]
[null,null,null,null,null,null,null,null,null,null,"Pongamia pinnata水黃皮",424]
[null,null,null,null,null,null,null,null,null,null,"Populus nigra 'Italica'箭杆楊",425]
[null,null,null,null,null,null,null,null,null,null,"Populus simonii小白楊",426]
[null,null,null,null,null,null,null,null,null,null,"Prunus campanulata鐘花櫻桃",427]
[null,null,null,null,null,null,null,null,null,null,"Prunus cerasifera var. atropurpurea紅葉李",428]
[null,null,null,null,null,null,null,null,null,null,"Prunus japonica 'Sinensis'郁李(李樹)",429]
[null,null,null,null,null,null,null,null,null,null,"Prunus mume梅",430]
[null,null,null,null,null,null,null,null,null,null,"Prunus persica桃",431]
[null,null,null,null,null,null,null,null,null,null,"Prunus phaeosticta腺葉桂櫻(腺葉野櫻)",432]
[null,null,null,null,null,null,null,null,null,null,"Prunus salicina李",433]
[null,null,null,null,null,null,null,null,null,null,"Prunus serrulata櫻花",434]
[null,null,null,null,null,null,null,null,null,null,"Psidium guajava番石榴",435]
[null,null,null,null,null,null,null,null,null,null,"Pterocarpus indicus紫檀",436]
[null,null,null,null,null,null,null,null,null,null,"Pterocarya stenoptera楓楊",437]
[null,null,null,null,null,null,null,null,null,null,"Pterospermum heterophyllum翻白葉樹",438]
[null,null,null,null,null,null,null,null,null,null,"Ptychosperma macarthurii齒葉葵(麥氏葵)",439]
[null,null,null,null,null,null,null,null,null,null,"Punica granatum安石榴(石榴)",440]
[null,null,null,null,null,null,null,null,null,null,"Pygeum topengii臀果木",441]
[null,null,null,null,null,null,null,null,null,null,"Pyracantha crenulata火棘(細圓齒火棘)",442]
[null,null,null,null,null,null,null,null,null,null,"Pyrus calleryana豆梨(麻子梨)",443]
[null,null,null,null,null,null,null,null,null,null,"Pyrus pyrifolia沙梨(梨)",444]
[null,null,null,null,null,null,null,null,null,null,"Quercus acutissima麻櫟",445]
[null,null,null,null,null,null,null,null,null,null,"Quercus fabri白櫟",446]
[null,null,null,null,null,null,null,null,null,null,"Radermachera hainanensis海南菜豆樹",447]
[null,null,null,null,null,null,null,null,null,null,"Ravenala madagascariensis旅人蕉",448]
[null,null,null,null,null,null,null,null,null,null,"Ravenea glauca迷你國皇椰子",449]
[null,null,null,null,null,null,null,null,null,null,"Ravenea rivularis國皇椰子",450]
[null,null,null,null,null,null,null,null,null,null,"Reevesia thyrsoidea梭羅樹",451]
[null,null,null,null,null,null,null,null,null,null,"Rhaphiolepis indica石斑木(車輪梅)",452]
[null,null,null,null,null,null,null,null,null,null,"Rhodoleia championii紅苞木(紅花荷)",453]
[null,null,null,null,null,null,null,null,null,null,"Rhus chinensis鹽膚木",454]
[null,null,null,null,null,null,null,null,null,null,"Rhus succedanea木蠟樹(野漆樹)",455]
[null,null,null,null,null,null,null,null,null,null,"Roystonea regia大王椰子(王棕)",456]
[null,null,null,null,null,null,null,null,null,null,"Sabal palmetto箸棕",457]
[null,null,null,null,null,null,null,null,null,null,"Salix babylonica垂柳",458]
[null,null,null,null,null,null,null,null,null,null,"Sandoricum koetjape山道楝",459]
[null,null,null,null,null,null,null,null,null,null,"Sapindus saponaria (syn. Sapindus mukorossi)無患子(木患子)",460]
[null,null,null,null,null,null,null,null,null,null,"Sapium discolor山烏桕",461]
[null,null,null,null,null,null,null,null,null,null,"Sapium sebiferum烏桕",462]
[null,null,null,null,null,null,null,null,null,null,"Saraca dives中國無憂花",463]
[null,null,null,null,null,null,null,null,null,null,"Saraca indica無憂花",464]
[null,null,null,null,null,null,null,null,null,null,"Sarcosperma laurinum肉實樹",465]
[null,null,null,null,null,null,null,null,null,null,"Saurauia tristyla水東哥",466]
[null,null,null,null,null,null,null,null,null,null,"Schefflera actinophylla傘樹",467]
[null,null,null,null,null,null,null,null,null,null,"Schefflera heptaphylla鵝掌柴(鴨腳木)",468]
[null,null,null,null,null,null,null,null,null,null,"Schima superba木荷(荷樹)",469]
[null,null,null,null,null,null,null,null,null,null,"Schizolobium parahyba巴西豆",470]
[null,null,null,null,null,null,null,null,null,null,"Scolopia chinensis刺柊",471]
[null,null,null,null,null,null,null,null,null,null,"Scolopia saeva廣東刺柊",472]
[null,null,null,null,null,null,null,null,null,null,"Senna siamea (syn. Cassia siamea)鐵刀木",473]
[null,null,null,null,null,null,null,null,null,null,"Senna surattensis (syn. Cassia surattensis)黃槐決明(黃槐)",474]
[null,null,null,null,null,null,null,null,null,null,"Sinosideroxylon wightianum革葉鐵欖",475]
[null,null,null,null,null,null,null,null,null,null,"Sloanea sinensis猴歡喜",476]
[null,null,null,null,null,null,null,null,null,null,"Sophora japonica槐",477]
[null,null,null,null,null,null,null,null,null,null,"Sophora japonica var. penaula龍爪槐",478]
[null,null,null,null,null,null,null,null,null,null,"Sophora tomentosa絨毛槐(海南豆樹)",479]
[null,null,null,null,null,null,null,null,null,null,"Spathodea campanulata火焰樹",480]
[null,null,null,null,null,null,null,null,null,null,"Sphaeropteris lepifera筆筒樹",481]
[null,null,null,null,null,null,null,null,null,null,"Spondias lakonensis嶺南酸棗",482]
[null,null,null,null,null,null,null,null,null,null,"Stenocarpus sinuatus火輪樹",483]
[null,null,null,null,null,null,null,null,null,null,"Sterculia lanceolata假蘋婆",484]
[null,null,null,null,null,null,null,null,null,null,"Sterculia nobilis蘋婆",485]
[null,null,null,null,null,null,null,null,null,null,"Strelitzia nicolai大鶴望蘭(扇蕉)",486]
[null,null,null,null,null,null,null,null,null,null,"Styrax odoratissimus芬芳安息香",487]
[null,null,null,null,null,null,null,null,null,null,"Styrax suberifolius 栓葉安息香(紅皮) ",488]
[null,null,null,null,null,null,null,null,null,null,"Swietenia mahagoni桃花心木",489]
[null,null,null,null,null,null,null,null,null,null,"Syagrus romanzoffiana皇后葵(金山葵)",490]
[null,null,null,null,null,null,null,null,null,null,"Symplocos cochinchinensis var. laurina黃牛奶樹",491]
[null,null,null,null,null,null,null,null,null,null,"Syncarpia glomulifera白心膠",492]
[null,null,null,null,null,null,null,null,null,null,"Syzygium cumini烏墨(海南蒲桃)",493]
[null,null,null,null,null,null,null,null,null,null,"Syzygium hancei韓氏蒲桃(紅鱗蒲桃)",494]
[null,null,null,null,null,null,null,null,null,null,"Syzygium jambos蒲桃",495]
[null,null,null,null,null,null,null,null,null,null,"Syzygium levinei山蒲桃",496]
[null,null,null,null,null,null,null,null,null,null,"Syzygium rehderianum紅枝蒲桃",497]
[null,null,null,null,null,null,null,null,null,null,"Syzygium samarangense洋蒲桃",498]
[null,null,null,null,null,null,null,null,null,null,"Tabebuia argentea銀鱗風鈴木",499]
[null,null,null,null,null,null,null,null,null,null,"Tabebuia chrysantha (syn. Tabebuia chrysotricha)黃鐘木(風鈴木)",500]
[null,null,null,null,null,null,null,null,null,null,"Tabebuia donnell-smithii史氏鐘花",501]
[null,null,null,null,null,null,null,null,null,null,"Tabebuia impetiginosa紫花風鈴木",502]
[null,null,null,null,null,null,null,null,null,null,"Taxodium ascendens池杉",503]
[null,null,null,null,null,null,null,null,null,null,"Taxodium distichum落羽杉",504]
[null,null,null,null,null,null,null,null,null,null,"Tecoma stans黃鐘花",505]
[null,null,null,null,null,null,null,null,null,null,"Tectona grandis柚木",506]
[null,null,null,null,null,null,null,null,null,null,"Terminalia arjuna阿江欖仁",507]
[null,null,null,null,null,null,null,null,null,null,"Terminalia calamansanai菲律賓欖仁",508]
[null,null,null,null,null,null,null,null,null,null,"Terminalia catappa欖仁樹",509]
[null,null,null,null,null,null,null,null,null,null,"Terminalia hainanensis海南欖仁",510]
[null,null,null,null,null,null,null,null,null,null,"Terminalia mantaly小葉欖仁",511]
[null,null,null,null,null,null,null,null,null,null,"Terminalia mantaly 'Tricolour'錦葉欖仁",512]
[null,null,null,null,null,null,null,null,null,null,"Terminalia muelleri美洲欖仁",513]
[null,null,null,null,null,null,null,null,null,null,"Ternstroemia gymnanthera厚皮香",514]
[null,null,null,null,null,null,null,null,null,null,"Tetradium glabrifolium楝葉吳茱萸",515]
[null,null,null,null,null,null,null,null,null,null,"Thespesia populnea恒春黃槿(繖楊)",516]
[null,null,null,null,null,null,null,null,null,null,"Thevetia peruviana黃花夾竹桃",517]
[null,null,null,null,null,null,null,null,null,null,"Theobroma cacao可可樹",518]
[null,null,null,null,null,null,null,null,null,null,"Platycladus orientalis側柏(扁柏)",519]
[null,null,null,null,null,null,null,null,null,null,"Thuja orientalis 'Aurea Nana'金柏",520]
[null,null,null,null,null,null,null,null,null,null,"Toona rubriflora紅花香椿",521]
[null,null,null,null,null,null,null,null,null,null,"Toona sinensis香椿",522]
[null,null,null,null,null,null,null,null,null,null,"Trachycarpus fortunei棕櫚",523]
[null,null,null,null,null,null,null,null,null,null,"Trema tomentosa山黃麻",524]
[null,null,null,null,null,null,null,null,null,null,"Tutcheria microcarpa小果石筆木",525]
[null,null,null,null,null,null,null,null,null,null,"Pyrenaria spectabilis (syn. Tutcheria spectabilis)石筆木",526]
[null,null,null,null,null,null,null,null,null,null,"Ulmus parvifolia榔榆",527]
[null,null,null,null,null,null,null,null,null,null,"Ulmus pumila 'Pendula'垂枝榆",528]
[null,null,null,null,null,null,null,null,null,null,"Veitchia merrillii聖誕椰子",529]
[null,null,null,null,null,null,null,null,null,null,"Vernicia fordii (syn. Aleurites fordii)油桐(三年桐)",530]
[null,null,null,null,null,null,null,null,null,null,"Vernicia montana木油樹(千年桐)",531]
[null,null,null,null,null,null,null,null,null,null,"Viburnum odoratissimum珊瑚樹",532]
[null,null,null,null,null,null,null,null,null,null,"Vitex tripinnata越南牡荊(小花牡荊)",533]
[null,null,null,null,null,null,null,null,null,null,"Vitex quinata山牡荊",534]
[null,null,null,null,null,null,null,null,null,null,"Washingtonia robusta大絲葵(華盛頓葵)",535]
[null,null,null,null,null,null,null,null,null,null,"Wodyetia bifurcata狐尾棕 (狐尾椰子)",536]
[null,null,null,null,null,null,null,null,null,null,"Wollemia nobilis恐龍杉",537]
[null,null,null,null,null,null,null,null,null,null,"Wrightia laevis藍樹",539]
[null,null,null,null,null,null,null,null,null,null,"Xylosma longifolium長葉柞木",540]
[null,null,null,null,null,null,null,null,null,null,"Xylosma racemorum柞木",541]
[null,null,null,null,null,null,null,null,null,null,"Zanthoxylum ailanthoides椿葉花椒",542]
[null,null,null,null,null,null,null,null,null,null,"Zanthoxylum avicennae簕欓花椒(簕欓)",543]
[null,null,null,null,null,null,null,null,null,null,"Zanthoxylum myriacanthum大葉臭花椒",544]
[null,null,null,null,null,null,null,null,null,null,"Zanthoxylum ovalifolium異葉花椒",545]
[null,null,null,null,null,null,null,null,null,null,"Ziziphus jujuba棗",546]
[null,null,null,null,null,null,null,null,null,null,"Ziziphus mauritiana滇刺棗",547]
[null,null,null,null,null,null,null,null,null,null,"Ilex spp.冬青屬",548]
[null,null,null,null,null,null,null,null,null,null,"Ilex asprella梅葉冬青 (秤星樹)",549]
[null,null,null,null,null,null,null,null,null,null,"Ilex pubescens毛冬青",550]
[null,null,null,null,null,null,null,null,null,null,"Jacaranda spp.藍花楹屬",551]
[null,null,null,null,null,null,null,null,null,null,"Acacia spp.金合歡屬",552]
[null,null,null,null,null,null,null,null,null,null,"Jatropha integerrima全緣葉麻瘋樹(全緣葉珊瑚)",553]
[null,null,null,null,null,null,null,null,null,null,"Jatropha pandurifolia日日櫻",554]
[null,null,null,null,null,null,null,null,null,null,"Juniperus spp.刺柏屬",555]
[null,null,null,null,null,null,null,null,null,null,"Acer spp.槭樹屬",556]
[null,null,null,null,null,null,null,null,null,null,"Khaya spp.非洲楝屬",557]
[null,null,null,null,null,null,null,null,null,null,"Acer sino-oblongum濱海槭",558]
[null,null,null,null,null,null,null,null,null,null,"Adina pilulifera水團花",559]
[null,null,null,null,null,null,null,null,null,null,"Aesculus californica加州七葉樹",560]
[null,null,null,null,null,null,null,null,null,null,"Aesculus chinensis七葉樹",561]
[null,null,null,null,null,null,null,null,null,null,"Aidia canthioides香楠 (山黃皮)",562]
[null,null,null,null,null,null,null,null,null,null,"Albizia spp.合歡屬",563]
[null,null,null,null,null,null,null,null,null,null,"Lagerstroemia spp.紫薇屬",564]
[null,null,null,null,null,null,null,null,null,null,"Antirhea chinensis 毛茶",565]
[null,null,null,null,null,null,null,null,null,null,"Latania lontaroides紅棕櫚",566]
[null,null,null,null,null,null,null,null,null,null,"Aralia chinensis楤木",567]
[null,null,null,null,null,null,null,null,null,null,"Liriodendron chinense馬褂木(鵝掌楸)",568]
[null,null,null,null,null,null,null,null,null,null,"Lithocarpus spp.柯屬",569]
[null,null,null,null,null,null,null,null,null,null,"Litsea spp.木薑子屬",570]
[null,null,null,null,null,null,null,null,null,null,"Ardisia quinquegona羅傘樹",571]
[null,null,null,null,null,null,null,null,null,null,"Areca triandra三藥檳榔",572]
[null,null,null,null,null,null,null,null,null,null,"Litsea rotundifolia var. oblongifolia豺皮樟 ",573]
[null,null,null,null,null,null,null,null,null,null,"Arenga engleri山棕(白欖王)",574]
[null,null,null,null,null,null,null,null,null,null,"Loropetalum chinense rubrum紅花繼木",575]
[null,null,null,null,null,null,null,null,null,null,"Artocarpus spp.桂木屬",576]
[null,null,null,null,null,null,null,null,null,null,"Machilus spp.潤楠屬",577]
[null,null,null,null,null,null,null,null,null,null,"Artocarpus tonkinensis胭脂樹",578]
[null,null,null,null,null,null,null,null,null,null,"Bambusa spp.簕竹屬",579]
[null,null,null,null,null,null,null,null,null,null,"Bambusa multiplex孝順竹(蓬來竹)",580]
[null,null,null,null,null,null,null,null,null,null,"Mallotus philippensis粗糠柴",581]
[null,null,null,null,null,null,null,null,null,null,"Bambusa tuldoides青稈竹(花眉竹)",582]
[null,null,null,null,null,null,null,null,null,null,"Markhamia stipulata var. kerrii貓尾木",583]
[null,null,null,null,null,null,null,null,null,null,"Melaleuca spp.白千層屬",584]
[null,null,null,null,null,null,null,null,null,null,"Bambusa ventricosa佛肚竹",585]
[null,null,null,null,null,null,null,null,null,null,"Melaleuca bracteata黃金香柳",586]
[null,null,null,null,null,null,null,null,null,null,"Bambusa vulgaris 'Vittata'黃金間碧竹",587]
[null,null,null,null,null,null,null,null,null,null,"Bauhinia spp.羊蹄甲屬",588]
[null,null,null,null,null,null,null,null,null,null,"Bauhinia acuminata矮白花羊蹄甲",589]
[null,null,null,null,null,null,null,null,null,null,"Bauhinia galpinii嘉氏羊蹄甲",590]
[null,null,null,null,null,null,null,null,null,null,"Memecylon ligustrifolium 谷木",591]
[null,null,null,null,null,null,null,null,null,null,"Beaucarnea recurvata酒瓶蘭",592]
[null,null,null,null,null,null,null,null,null,null,"Moringa oleifera辣木",593]
[null,null,null,null,null,null,null,null,null,null,"Bischofia spp.秋楓屬",594]
[null,null,null,null,null,null,null,null,null,null,"Moringa thouarsii象腳樹(象腿木)",595]
[null,null,null,null,null,null,null,null,null,null,"Bismarckia nobilis霸王棕",596]
[null,null,null,null,null,null,null,null,null,null,"Musa spp.芭蕉屬",597]
[null,null,null,null,null,null,null,null,null,null,"Bombax spp.木棉屬",598]
[null,null,null,null,null,null,null,null,null,null,"Musa x paradisiaca大蕉(甘蕉)",599]
[null,null,null,null,null,null,null,null,null,null,"Bougainvillea glabra 'Variegata'花葉簕杜鵑",600]
[null,null,null,null,null,null,null,null,null,null,"Myrsine seguinii 密花樹",601]
[null,null,null,null,null,null,null,null,null,null,"Bougainvillea spectabilis光葉子花 (簕杜鵑)",602]
[null,null,null,null,null,null,null,null,null,null,"Brachychiton spp.-",603]
[null,null,null,null,null,null,null,null,null,null,"Caesalpinia pulcherrima洋金鳳(金鳳花)",604]
[null,null,null,null,null,null,null,null,null,null,"Callistemon spp.紅千層屬",605]
[null,null,null,null,null,null,null,null,null,null,"Callistemon formosus美麗紅千層",606]
[null,null,null,null,null,null,null,null,null,null,"Callistemon hybridus黃金香柳",607]
[null,null,null,null,null,null,null,null,null,null,"Camellia spp.山茶屬",608]
[null,null,null,null,null,null,null,null,null,null,"Paulownia tomentosa毛泡桐",609]
[null,null,null,null,null,null,null,null,null,null,"Peltophorum spp.盾柱木屬",610]
[null,null,null,null,null,null,null,null,null,null,"Camptotheca acuminata喜樹",611]
[null,null,null,null,null,null,null,null,null,null,"Pentaphylax euryoides五列木",612]
[null,null,null,null,null,null,null,null,null,null,"Phoenix hanceana var. Formosana台灣海棗",613]
[null,null,null,null,null,null,null,null,null,null,"Caryota mitis短穗魚尾葵(小魚尾葵)",614]
[null,null,null,null,null,null,null,null,null,null,"Phoenix robusta壯幹海棗",615]
[null,null,null,null,null,null,null,null,null,null,"Phoenix sylvestris銀海棗",616]
[null,null,null,null,null,null,null,null,null,null,"Photinia benthamiana閩粵石楠",617]
[null,null,null,null,null,null,null,null,null,null,"Photinia raupingensis饒平石楠",618]
[null,null,null,null,null,null,null,null,null,null,"Phyllanthus emblica餘甘子(油甘子)",619]
[null,null,null,null,null,null,null,null,null,null,"Phyllostachys nigra紫竹",620]
[null,null,null,null,null,null,null,null,null,null,"Castanopsis spp.錐屬",621]
[null,null,null,null,null,null,null,null,null,null,"Pittosporum tobira海桐",622]
[null,null,null,null,null,null,null,null,null,null,"Chamaecyparis obtusa日本扁柏",623]
[null,null,null,null,null,null,null,null,null,null,"Platanus spp.懸鈴木屬",624]
[null,null,null,null,null,null,null,null,null,null,"Chamaedorea elegans袖珍椰子",625]
[null,null,null,null,null,null,null,null,null,null,"Claoxylon spp.白桐樹屬",626]
[null,null,null,null,null,null,null,null,null,null,"Plumeria rubra var. acutifolia黃雞蛋花",627]
[null,null,null,null,null,null,null,null,null,null,"Podocarpus spp.羅漢松屬",628]
[null,null,null,null,null,null,null,null,null,null,"Clerodendrum quadriloculare煙火樹",629]
[null,null,null,null,null,null,null,null,null,null,"Cordia spp.破布木屬",630]
[null,null,null,null,null,null,null,null,null,null,"Crateva spp.魚木屬",631]
[null,null,null,null,null,null,null,null,null,null,"Polyspora axillaris大頭茶",632]
[null,null,null,null,null,null,null,null,null,null,"Cryptocarya chinensis厚殼桂",633]
[null,null,null,null,null,null,null,null,null,null,"Cupressus spp.柏木屬",634]
[null,null,null,null,null,null,null,null,null,null,"Cupressus sempervirens地中海柏木",635]
[null,null,null,null,null,null,null,null,null,null,"Pouteria campechiana蛋黃果",636]
[null,null,null,null,null,null,null,null,null,null,"Prunus spp.櫻桃屬",637]
[null,null,null,null,null,null,null,null,null,null,"Cycas media澳洲蘇鐵",638]
[null,null,null,null,null,null,null,null,null,null,"Cycas revoluta蘇鐵",639]
[null,null,null,null,null,null,null,null,null,null,"Cyclobalanopsis spp.青岡屬",640]
[null,null,null,null,null,null,null,null,null,null,"Pterocarpus spp.紫檀屬",641]
[null,null,null,null,null,null,null,null,null,null,"Putranjiva roxburghii假黃楊(藥用核果木)",642]
[null,null,null,null,null,null,null,null,null,null,"Rhapis excelsa棕竹",643]
[null,null,null,null,null,null,null,null,null,null,"Davidia involucrata珙桐",644]
[null,null,null,null,null,null,null,null,null,null,"Rhus hypoleuca白背鹽膚木 (白背漆)",645]
[null,null,null,null,null,null,null,null,null,null,"Delonix spp.鳳凰木屬",646]
[null,null,null,null,null,null,null,null,null,null,"Roystonea oleracea菜王棕",647]
[null,null,null,null,null,null,null,null,null,null,"Desmos chinensis 假鷹爪",648]
[null,null,null,null,null,null,null,null,null,null,"Salix spp.楊柳屬",649]
[null,null,null,null,null,null,null,null,null,null,"Sapindus spp.無患子屬",650]
[null,null,null,null,null,null,null,null,null,null,"Dracaena draco龍血樹",651]
[null,null,null,null,null,null,null,null,null,null,"Dracaena fragrans巴西鐵樹",652]
[null,null,null,null,null,null,null,null,null,null,"Dracaena marginata紅邊鐵樹",653]
[null,null,null,null,null,null,null,null,null,null,"Dypsis lutescens (syn. Chrysalidocarpus lutescens) 散尾葵",654]
[null,null,null,null,null,null,null,null,null,null,"Elaeocarpus spp.杜英屬",655]
[null,null,null,null,null,null,null,null,null,null,"Scolopia buxifolia黃楊葉刺柊",656]
[null,null,null,null,null,null,null,null,null,null,"Engelhardia roxburghiana黃杞",657]
[null,null,null,null,null,null,null,null,null,null,"Erythrina spp.刺桐屬",658]
[null,null,null,null,null,null,null,null,null,null,"Senna alata翅莢決明",659]
[null,null,null,null,null,null,null,null,null,null,"Senna bicapsularis雙莢決明",660]
[null,null,null,null,null,null,null,null,null,null,"Eucalyptus spp.桉屬",661]
[null,null,null,null,null,null,null,null,null,null,"Senna spectabilis美麗決明(美洲槐)",662]
[null,null,null,null,null,null,null,null,null,null,"Eucalyptus urophylla尾葉桉",663]
[null,null,null,null,null,null,null,null,null,null,"Euonymus glaber光葉衛矛",664]
[null,null,null,null,null,null,null,null,null,null,"Euphorbia antiquorum火殃簕",665]
[null,null,null,null,null,null,null,null,null,null,"Euphorbia pulcherrima一品紅(聖誕樹)",666]
[null,null,null,null,null,null,null,null,null,null,"Stenocarpus spp.-",667]
[null,null,null,null,null,null,null,null,null,null,"Eurya brevistyla短柱柃",668]
[null,null,null,null,null,null,null,null,null,null,"Eurya chinensis 米碎花 (崗茶)",669]
[null,null,null,null,null,null,null,null,null,null,"Strelitzia reginae鶴望蘭(天堂鳥蕉)",670]
[null,null,null,null,null,null,null,null,null,null,"Eurya nitida 細齒葉柃",671]
[null,null,null,null,null,null,null,null,null,null,"Symplocos spp.山礬屬",672]
[null,null,null,null,null,null,null,null,null,null,"Symplocos congesta 密花山礬",673]
[null,null,null,null,null,null,null,null,null,null,"Ficus spp.榕屬",674]
[null,null,null,null,null,null,null,null,null,null,"Symplocos crassifolia 厚葉山礬(厚皮灰木)",675]
[null,null,null,null,null,null,null,null,null,null,"Symplocos glauca羊舌樹",676]
[null,null,null,null,null,null,null,null,null,null,"Ficus altissima 'Goldenedged'斑葉高山榕",677]
[null,null,null,null,null,null,null,null,null,null,"Symplocos lancifolia光葉山礬",678]
[null,null,null,null,null,null,null,null,null,null,"Ficus benjamina 'Comosa'黃果垂榕",679]
[null,null,null,null,null,null,null,null,null,null,"Ficus benjamina 'De Gantle'迪根圖垂榕",680]
[null,null,null,null,null,null,null,null,null,null,"Ficus benjamina 'Golden Leaf'黃金垂榕",681]
[null,null,null,null,null,null,null,null,null,null,"Syzygium formosanum紅牙赤楠",682]
[null,null,null,null,null,null,null,null,null,null,"Ficus benjamina var. variegata花葉垂葉榕",683]
[null,null,null,null,null,null,null,null,null,null,"Ficus benjamina 'Variegata'班葉垂榕",684]
[null,null,null,null,null,null,null,null,null,null,"Ficus benjaminia 'Starlight'星光垂榕",685]
[null,null,null,null,null,null,null,null,null,null,"Ficus binnendijkii阿里垂榕",686]
[null,null,null,null,null,null,null,null,null,null,"Ficus celebensis柳葉榕",687]
[null,null,null,null,null,null,null,null,null,null,"Ficus diversifolia槲寄生榕",688]
[null,null,null,null,null,null,null,null,null,null,"Tabebuia spp.黃鐘木屬",689]
[null,null,null,null,null,null,null,null,null,null,"Ficus elastica 'Variegata'花葉印度橡樹",690]
[null,null,null,null,null,null,null,null,null,null,"Ficus henryi尖葉榕",691]
[null,null,null,null,null,null,null,null,null,null,"Tabebuia pentaphylla洋紅風鈴木 (紅花風鈴木)",692]
[null,null,null,null,null,null,null,null,null,null,"Ficus microcarpa 'Golden Leaf'黃榕",693]
[null,null,null,null,null,null,null,null,null,null,"Ficus microcarpa 'Yellow Stripe'黃紋榕",694]
[null,null,null,null,null,null,null,null,null,null,"Tamarindus indica酸豆",695]
[null,null,null,null,null,null,null,null,null,null,"Terminalia spp.欖仁樹屬",696]
[null,null,null,null,null,null,null,null,null,null,"Ficus pandurata琴葉榕",697]
[null,null,null,null,null,null,null,null,null,null,"Ficus racemosa聚果榕",698]
[null,null,null,null,null,null,null,null,null,null,"Terminalia chebula訶子",699]
[null,null,null,null,null,null,null,null,null,null,"Firmiana spp.梧桐屬",700]
[null,null,null,null,null,null,null,null,null,null,"Tipuana tipu大班木",701]
[null,null,null,null,null,null,null,null,null,null,"Trema orientalis異色山黃麻",702]
[null,null,null,null,null,null,null,null,null,null,"Garcinia spp.藤黃屬",703]
[null,null,null,null,null,null,null,null,null,null,"Trevesia palmata刺通草",704]
[null,null,null,null,null,null,null,null,null,null,"Tristania spp.-",705]
[null,null,null,null,null,null,null,null,null,null,"Gleditsia spp.皂莢屬",706]
[null,null,null,null,null,null,null,null,null,null,"Tristaniopsis laurina月桂異紅膠木",707]
[null,null,null,null,null,null,null,null,null,null,"Ulmus pumila榆樹",708]
[null,null,null,null,null,null,null,null,null,null,"Glochidion hirsutum厚葉算盤子 ",709]
[null,null,null,null,null,null,null,null,null,null,"Glochidion puberum算盤子",710]
[null,null,null,null,null,null,null,null,null,null,"Glochidion zeylanicum香港算盤子",711]
[null,null,null,null,null,null,null,null,null,null,"Grevillea spp.銀樺屬",712]
[null,null,null,null,null,null,null,null,null,null,"Hibiscus mutabilis木芙蓉(芙蓉花)",713]
[null,null,null,null,null,null,null,null,null,null,"Wallichia disticha羽扇椰子",714]
[null,null,null,null,null,null,null,null,null,null,"Hibiscus syriacus木槿",715]
[null,null,null,null,null,null,null,null,null,null,"Hovenia acerba 拐棗 (枳椇)",716]
[null,null,null,null,null,null,null,null,null,null,"Woodfordia fruticosa蝦仔花",717]
[null,null,null,null,null,null,null,null,null,null,"Xanthostemon chrysanthus金蒲桃",718]
[null,null,null,null,null,null,null,null,null,null,"Yucca spp.絲蘭屬",719]
[null,null,null,null,null,null,null,null,null,null,"Yucca filamentosa絲蘭 ",720]
[null,null,null,null,null,null,null,null,null,null,"Zanthoxylum cuspidatum胡椒",721]
[null,null,null,null,null,null,null,null,null,null,"Archidendron spp.猴耳環屬",722]
[null,null,null,null,null,null,null,null,null,null,"Ligustrum spp.女貞屬",723]
[null,null,null,null,null,null,null,null,null,null,"Liquidambar spp.楓香屬",724]
[null,null,null,null,null,null,null,null,null,null,"Acacia farnesiana金合歡",725]
[null,null,null,null,null,null,null,null,null,null,"Acacia pennata羽葉金合歡",726]
[null,null,null,null,null,null,null,null,null,null,"Altingia gracilipes細柄蕈樹",727]
[null,null,null,null,null,null,null,null,null,null,"Aphanamixis grandifolia大葉山楝",728]
[null,null,null,null,null,null,null,null,null,null,"Bridelia insulana禾串樹(大葉逼迫仔)",729]
[null,null,null,null,null,null,null,null,null,null,"Calliandra haematocephala朱纓花(紅絨球)",730]
[null,null,null,null,null,null,null,null,null,null,"Callicarpa kochiana枇杷葉紫珠",731]
[null,null,null,null,null,null,null,null,null,null,"Callicarpa nudiflora裸花紫珠",732]
[null,null,null,null,null,null,null,null,null,null,"Casearia glomerata嘉賜樹",733]
[null,null,null,null,null,null,null,null,null,null,"Celtis biondii紫彈朴",734]
[null,null,null,null,null,null,null,null,null,null,"Cinnamomum validinerve粗脈桂",735]
[null,null,null,null,null,null,null,null,null,null,"Cordyline fruticosa朱蕉(鐵樹)",736]
[null,null,null,null,null,null,null,null,null,null,"Diospyros vaccinioides Lindl.小果柿",737]
[null,null,null,null,null,null,null,null,null,null,"Diplospora dubia狗骨柴(三萼木)",738]
[null,null,null,null,null,null,null,null,null,null,"Distylium racemosum蚊母樹",739]
[null,null,null,null,null,null,null,null,null,null,"Dracaena reflexa百合竹",740]
[null,null,null,null,null,null,null,null,null,null,"Duranta erecta假連翹",741]
[null,null,null,null,null,null,null,null,null,null,"Euonymus ?tsoi? Merr.長葉衛矛",742]
[null,null,null,null,null,null,null,null,null,null,"Euonymus alatus衛矛",743]
[null,null,null,null,null,null,null,null,null,null,"Euonymus laxiflorus疏花衛矛",744]
[null,null,null,null,null,null,null,null,null,null,"Euonymus nitidus中華衛矛",745]
[null,null,null,null,null,null,null,null,null,null,"Eustigma? oblongifolium秀柱花",746]
[null,null,null,null,null,null,null,null,null,null,"Fortunella hindsii山橘",747]
[null,null,null,null,null,null,null,null,null,null,"Helicia kwangtungensis廣東山龍眼",748]
[null,null,null,null,null,null,null,null,null,null,"Helicia reticulata網脈山龍眼",749]
[null,null,null,null,null,null,null,null,null,null,"Ilex denticulata細齒冬青",750]
[null,null,null,null,null,null,null,null,null,null,"Ilex hanceana青茶冬青(青茶)",751]
[null,null,null,null,null,null,null,null,null,null,"Ilex triflora三花冬青",752]
[null,null,null,null,null,null,null,null,null,null,"Ixonanthes reticulata黏木",753]
[null,null,null,null,null,null,null,null,null,null,"Lithocarpus konishii油葉柯",754]
[null,null,null,null,null,null,null,null,null,null,"Macaranga denticulata中平樹",755]
[null,null,null,null,null,null,null,null,null,null,"Maesa perlarius鯽魚膽",756]
[null,null,null,null,null,null,null,null,null,null,"Melastoma sanguineum Sims毛菍",757]
[null,null,null,null,null,null,null,null,null,null,"Meliosma rigida筆羅子(筆實子)",758]
[null,null,null,null,null,null,null,null,null,null,"Neolitsea cambodiana var. glabra香港新木薑子",759]
[null,null,null,null,null,null,null,null,null,null,"Picrasma quassioides苦樹",760]
[null,null,null,null,null,null,null,null,null,null,"Pistacia chinensis黃連木",761]
[null,null,null,null,null,null,null,null,null,null,"Prunus zippeliana大葉桂櫻",762]
[null,null,null,null,null,null,null,null,null,null,"Psychotria asiatica L.九節(山大刀)",763]
[null,null,null,null,null,null,null,null,null,null,"Symplocos lucida厚葉山礬(光亮山礬、厚皮灰木)",764]
[null,null,null,null,null,null,null,null,null,null,"Syzygium buxifolium赤楠",765]
[null,null,null,null,null,null,null,null,null,null,"Syzygium championii灶地烏骨木(子凌蒲桃)",766]
[null,null,null,null,null,null,null,null,null,null,"Syzygium kwangtungense廣東蒲桃",767]
[null,null,null,null,null,null,null,null,null,null,"Tarenna attenuata假桂烏口樹(達崙木)",768]
[null,null,null,null,null,null,null,null,null,null,"Ternstroemia luteoflora尖萼厚皮香",769]
[null,null,null,null,null,null,null,null,null,null,"Yucca elephantipes象腳王蘭",770]
[null,null,null,null,null,null,null,null,null,null,"Livistona saribus大葉蒲葵",771]
[null,null,null,null,null,null,null,null,null,null,"Aidia pycnantha多毛茜草樹",772]
[null,null,null,null,null,null,null,null,null,null,"Nyctanthes arbor-tristis夜花",773]
[null,null,null,null,null,null,null,null,null,null,"Barringtonia acutangula銳棱玉蕊",774]
[null,null,null,null,null,null,null,null,null,null,"Elaeocarpus rugosus毛果杜英",775]
[null,null,null,null,null,null,null,null,null,null,"Tabernaemontana divaricata狗牙花",776]
[null,null,null,null,null,null,null,null,null,null,"Dendrobenthamia hongkongensis (Hemsl.) Hutch香港四照花",777]
[null,null,null,null,null,null,null,null,null,null,"Ficus macrophylla澳洲大葉榕",778]
[null,null,null,null,null,null,null,null,null,null,"Cassia bakeriana花旗木",779]
[null,null,null,null,null,null,null,null,null,null,"Michelia spp.含笑屬",780]
[null,null,null,null,null,null,null,null,null,null,"Michelia odora觀光木",781]
[null,null,null,null,null,null,null,null,null,null,"Acacia podalyriifolia珍珠合歡",782]
[null,null,null,null,null,null,null,null,null,null,"Dillenia turbinata大花五椏果",783]
[null,null,null,null,null,null,null,null,null,null,"Aidia cochinchinensis茜樹 (越南香楠)",784]
[null,null,null,null,null,null,null,null,null,null,"Helicia cochinchinensis小果山龍眼 (越南山龍眼)",785]
[null,null,null,null,null,null,null,null,null,null,"Antidesma spp.五月茶屬",786]
[null,null,null,null,null,null,null,null,null,null,"Antidesma montanum山地五月茶",787]
[null,null,null,null,null,null,null,null,null,null,"Cleidion brevipetiolatum棒柄花",788]
[null,null,null,null,null,null,null,null,null,null,"Drypetes littoralis濱海核果木",789]
[null,null,null,null,null,null,null,null,null,null,"Glochidion spp.算盤子屬",790]
[null,null,null,null,null,null,null,null,null,null,"Hancea hookeriana粗毛野桐",791]
[null,null,null,null,null,null,null,null,null,null,"Macaranga spp.血桐屬",792]
[null,null,null,null,null,null,null,null,null,null,"Macaranga lowii刺果血桐",793]
[null,null,null,null,null,null,null,null,null,null,"Macaranga sampsonii鼎湖血桐",794]
[null,null,null,null,null,null,null,null,null,null,"Celtis spp.朴屬",795]
[null,null,null,null,null,null,null,null,null,null,"Aphananthe spp.糙葉樹屬",796]
[null,null,null,null,null,null,null,null,null,null,"Aphananthe aspera糙葉樹",797]
[null,null,null,null,null,null,null,null,null,null,"Myristica spp.肉荳蔻屬",798]
[null,null,null,null,null,null,null,null,null,null,"Myristica cagayanensis蘭嶼肉豆蔻 (台灣肉荳蔻)",799]
[null,null,null,null,null,null,null,null,null,null,"Myristica fragrans肉豆蔻",800]
[null,null,null,null,null,null,null,null,null,null,"Cassia spp.決明屬",801]
[null,null,null,null,null,null,null,null,null,null,"Colvillea racemosa總狀垂花楹 (黃金葡萄樹)",802]
[null,null,null,null,null,null,null,null,null,null,"Butea spp.紫礦屬",803]
[null,null,null,null,null,null,null,null,null,null,"Butea monosperma紫礦 (膠蟲樹)",804]
[null,null,null,null,null,null,null,null,null,null,"Caesalpinia ferrea豹木 (巴西鐵木)",805]
[null,null,null,null,null,null,null,null,null,null,"Dalbergia spp.黃檀屬",806]
[null,null,null,null,null,null,null,null,null,null,"Dalbergia millettii香港黃檀",807]
[null,null,null,null,null,null,null,null,null,null,"Dalbergia oliveri奧氏黃檀",808]
[null,null,null,null,null,null,null,null,null,null,"Livistona spp.蒲葵屬",809]
[null,null,null,null,null,null,null,null,null,null,"Ternstroemia spp.厚皮香屬",810]
[null,null,null,null,null,null,null,null,null,null,"Ternstroemia microphylla小葉厚皮香",811]
[null,null,null,null,null,null,null,null,null,null,"Ternstroemia kwangtungensis廣東厚皮香",812]
[null,null,null,null,null,null,null,null,null,null,"Ternstroemia japonica日本厚皮香",813]
[null,null,null,null,null,null,null,null,null,null,"Callicarpa spp.紫珠屬",814]
[null,null,null,null,null,null,null,null,null,null,"Gmelina spp.石梓屬",815]
[null,null,null,null,null,null,null,null,null,null,"Gmelina philippensis刺石梓 (菲律賓石梓)",816]
[null,null,null,null,null,null,null,null,null,null,"Acer laevigatum網脈槭 (光葉槭樹)",817]
[null,null,null,null,null,null,null,null,null,null,"Rhus spp.鹽膚木屬",818]
[null,null,null,null,null,null,null,null,null,null,"Dendropanax spp.樹參屬",819]
[null,null,null,null,null,null,null,null,null,null,"Dendropanax dentiger樹參",820]
[null,null,null,null,null,null,null,null,null,null,"Palaquium spp.膠木屬",821]
[null,null,null,null,null,null,null,null,null,null,"Palaquium formosanum大葉山欖",822]
[null,null,null,null,null,null,null,null,null,null,"Carpinus spp.鵝耳櫪屬",823]
[null,null,null,null,null,null,null,null,null,null,"Carpinus insularis香港鵝耳櫪",824]
[null,null,null,null,null,null,null,null,null,null,"Calophyllum sspp.紅厚殼屬",825]
[null,null,null,null,null,null,null,null,null,null,"Calophyllum membranaceum薄葉紅厚殼 ",826]
[null,null,null,null,null,null,null,null,null,null,"Cornus spp.山茱萸屬",827]
[null,null,null,null,null,null,null,null,null,null,"Cornus hongkongensis香港四照花",828]
[null,null,null,null,null,null,null,null,null,null,"Casearia spp.嘉賜樹屬",829]
[null,null,null,null,null,null,null,null,null,null,"Casearia velutina毛嘉賜樹 ",830]
[null,null,null,null,null,null,null,null,null,null,"Illicium spp.八角屬",831]
[null,null,null,null,null,null,null,null,null,null,"Illicium angustisepalum大嶼八角",832]
[null,null,null,null,null,null,null,null,null,null,"Lindera spp.山胡椒屬",833]
[null,null,null,null,null,null,null,null,null,null,"Lindera communis香葉樹",834]
[null,null,null,null,null,null,null,null,null,null,"Lagerstroemia subcostata南紫薇 (九芎)",835]
[null,null,null,null,null,null,null,null,null,null,"Aglaia odorata var. microphyllina?????",836]
[null,null,null,null,null,null,null,null,null,null,"Bambusa vulgaris cv Wamin大佛肚竹",837]
[null,null,null,null,null,null,null,null,null,null,"Camellia caudata長尾毛蕊茶",838]
[null,null,null,null,null,null,null,null,null,null,"Camellia oleifera油茶",839]
[null,null,null,null,null,null,null,null,null,null,"Citrus microcarpa 四季橘",840]
[null,null,null,null,null,null,null,null,null,null,"Codiaeum variegatum變葉木",841]
[null,null,null,null,null,null,null,null,null,null,"Croton tiglium巴豆",842]
[null,null,null,null,null,null,null,null,null,null,"Dypsis decaryi三角椰子",843]
[null,null,null,null,null,null,null,null,null,null,"Euonymus tsoi Merr.長葉衛矛",844]
[null,null,null,null,null,null,null,null,null,null,"Eurya groffii崗柃",845]
[null,null,null,null,null,null,null,null,null,null,"Eustigma oblongifolium秀柱花",846]
[null,null,null,null,null,null,null,null,null,null,"Flueggea virosa白飯樹",847]
[null,null,null,null,null,null,null,null,null,null,"Fortunella margarita金橘",848]
[null,null,null,null,null,null,null,null,null,null,"Glochidion lanceolarium (Roxb.) Voigt艾膠算盤子, 大葉算盤子",849]
[null,null,null,null,null,null,null,null,null,null,"Hamelia patens長隔木/希美利",850]
[null,null,null,null,null,null,null,null,null,null,"Ilex kwangtungensis廣東冬青",851]
[null,null,null,null,null,null,null,null,null,null,"Kandelia Obovata秋茄",852]
[null,null,null,null,null,null,null,null,null,null,"Machilus salicina柳葉潤楠",853]
[null,null,null,null,null,null,null,null,null,null,"Millettia pulchra印度崖豆",854]
[null,null,null,null,null,null,null,null,null,null,"Nerium indicum mill紅花夾竹桃",855]
[null,null,null,null,null,null,null,null,null,null,"Polyalthia suberosa暗羅",856]
[null,null,null,null,null,null,null,null,null,null,"Rhaphiolepis lanceolata細葉石斑木",857]
[null,null,null,null,null,null,null,null,null,null,"Schima wallichii紅木荷",858]
[null,null,null,null,null,null,null,null,null,null,"Strychnos nux-vomica馬錢子",859]
[null,null,null,null,null,null,null,null,null,null,"Vitex negundo黄荆",860]
[null,null,null,null,null,null,null,null,null,null,"Vitex negundo L. var. cannabifolia牡荊",861]
[null,null,null,null,null,null,null,null,null,null,"Araucaria columnaris柱狀南洋杉",862]

{"sheet":"matrix","index":3,"n_rows":17,"n_cols":5,"rows_kept":17,"cut":false,"hidden":true,"merged":[]}
["Matrix 1: Likelihood matrix 可能性組合"]
["Likelihood of Failure\n倒塌的可能性","Likelihood of Impacting Target\n影響目標的可能性"]
[null,"Very Low          非常低","Low \n低","Medium\n中等","High\n高"]
["Highly Probable            非常可能","Unlikely \n很低機會","Somewhat likely \n有機會","Likely \n較大機會","Very likely\n很大機會"]
["Probable                          相當可能","Unlikely \n很低機會","Unlikely \n很低機會","Somewhat likely \n有機會","Likely \n較大機會"]
["Possible                           有可能","Unlikely \n很低機會","Unlikely \n很低機會","Unlikely \n很低機會","Somewhat likely \n有機會"]
["Improbable                    不太可能","Unlikely \n很低機會","Unlikely \n很低機會","Unlikely \n很低機會","Unlikely \n很低機會"]
[]
[]
[]
["Matrix 2: Risk rating matrix 風險評級組合"]
["Likelihood of Failure \nand Impact \n倒塌並影響的可能性","Consequences of Failure\n倒塌後果"]
[null,"Negligible        微小","Minor           較小","Significant        重大","Severe          嚴重"]
["Very likely\n很大機會","Low\n低","Moderate\n中","High\n高","Extreme\n極高"]
["Likely \n較大機會","Low\n低","Moderate\n中","High\n高","High\n高"]
["Somewhat likely \n有機會","Low\n低","Low\n低","Moderate\n中","Moderate\n中"]
["Unlikely \n很低機會","Low\n低","Low\n低","Low\n低","Low\n低"]